Body name,Directorate,Service Area Categorisation,Supplier Name,Payment Date,Card Transaction,Net Amount,Purpose of Spend,Procurement Classification: ProClass Label
Solihull MBC,Children's Services & Skills,Children & Education Services,1GC Chambers,24/04/2020,,2245.00,Other Fees,Not Yet Classified
Solihull MBC,Public Health & Commissioning,Central Services to the Public,1st Marston Green Scout Group,24/04/2020,,10000.00,Grant & Subscription (SCITT),Not Yet Classified
Solihull MBC,Economy and Infrastructure,Adult Social Care,2 Hills Consultancy,09/04/2020,,818.90,Other Contracted Services,Not Yet Classified
Solihull MBC,Resources,Central Services to the Public,39 Essex Chambers,28/04/2020,,11327.16,Other Fees,Not Yet Classified
Solihull MBC,Public Health & Commissioning,Central Services to the Public,3Belle Ami Health Ltd,28/04/2020,,10000.00,Grant & Subscription (SCITT),Not Yet Classified
Solihull MBC,Children's Services & Skills,Children & Education Services,3PB Barristers,17/04/2020,,780.00,Other Fees,Not Yet Classified
Solihull MBC,Children's Services & Skills,Children & Education Services,3PB Barristers,28/04/2020,,600.00,Other Fees,Not Yet Classified
Solihull MBC,Children's Services & Skills,Children & Education Services,3PB Barristers,30/04/2020,,1170.00,Other Fees,Not Yet Classified
Solihull MBC,Children's Services & Skills,Children & Education Services,3PB Barristers,03/04/2020,,780.00,Other Fees,Not Yet Classified
Solihull MBC,Resources,Central Services to the Public,3PB Barristers,03/04/2020,,2040.00,Other Fees,Not Yet Classified
Solihull MBC,Resources,Central Services to the Public,3PB Barristers,03/04/2020,,600.00,Other Fees,Not Yet Classified
Solihull MBC,Children's Services & Skills,Children & Education Services,3PB Barristers,28/04/2020,,1290.00,Other Fees,Not Yet Classified
Solihull MBC,Children's Services & Skills,Children & Education Services,3PB Barristers,16/04/2020,,780.00,Other Fees,Not Yet Classified
Solihull MBC,Children's Services & Skills,Children & Education Services,3PB Barristers,03/04/2020,,780.00,Other Fees,Not Yet Classified
Solihull MBC,Children's Services & Skills,Children & Education Services,3PB Barristers,03/04/2020,,1200.00,Other Fees,Not Yet Classified
Solihull MBC,Public Health & Commissioning,Central Services to the Public,3V Consultants Ltd,14/04/2020,,10000.00,Grant & Subscription (SCITT),Not Yet Classified
Solihull MBC,Public Health & Commissioning,Central Services to the Public,4320 Hosp Ltd,14/04/2020,,25000.00,Grant & Subscription (SCITT),Not Yet Classified
Solihull MBC,Public Health & Commissioning,Central Services to the Public,68 Kitchen Ltd,08/04/2020,,10000.00,Grant & Subscription (SCITT),Not Yet Classified
Solihull MBC,Public Health & Commissioning,Central Services to the Public,A B Optics Ltd,23/04/2020,,25000.00,Grant & Subscription (SCITT),Not Yet Classified
Solihull MBC,Public Health & Commissioning,Central Services to the Public,A M Convenience Store Ltd,03/04/2020,,25000.00,Grant & Subscription (SCITT),Not Yet Classified
Solihull MBC,Public Health & Commissioning,Central Services to the Public,A M Khan (A I Foods Ltd),03/04/2020,,25000.00,Grant & Subscription (SCITT),Not Yet Classified
Solihull MBC,Children's Services & Skills,Children & Education Services,A M Price & Sons Construction Ltd,15/04/2020,,24035.00,Contractors,Not Yet Classified
Solihull MBC,Public Health & Commissioning,Central Services to the Public,A Tech Chemicals UK Ltd,07/04/2020,,10000.00,Grant & Subscription (SCITT),Not Yet Classified
Solihull MBC,Children's Services & Skills,Children & Education Services,A Wilderness Way Ltd,02/04/2020,,22000.00,Other Contracted Services,Not Yet Classified
Solihull MBC,Children's Services & Skills,Children & Education Services,A Wilderness Way Ltd,02/04/2020,,-22000.00,Other Contracted Services,Not Yet Classified
Solihull MBC,Children's Services & Skills,Children & Education Services,A Wilderness Way Ltd,02/04/2020,,20400.00,Other Contracted Services,Not Yet Classified
Solihull MBC,Children's Services & Skills,Children & Education Services,A1 Support Limited,22/04/2020,,2760.00,External Fostering,Not Yet Classified
Solihull MBC,Children's Services & Skills,Children & Education Services,A1 Support Limited,02/04/2020,,2760.00,Supported Lodgings,Not Yet Classified
Solihull MBC,Children's Services & Skills,Children & Education Services,A1 Support Limited,02/04/2020,,2760.00,Supported Lodgings,Not Yet Classified
Solihull MBC,Children's Services & Skills,Children & Education Services,A1 Support Limited,02/04/2020,,2760.00,Supported Lodgings,Not Yet Classified
Solihull MBC,Children's Services & Skills,Children & Education Services,A1 Support Limited,02/04/2020,,2760.00,Supported Lodgings,Not Yet Classified
Solihull MBC,Children's Services & Skills,Children & Education Services,A1 Taxis,02/04/2020,,2200.00,Transport-Contract Hire,Not Yet Classified
Solihull MBC,Adult Social Care,Adult Social Care,A2B Radio Cars,15/04/2020,,404.28,Clients Transport Costs,360000 - Public Transport
Solihull MBC,Adult Social Care,Adult Social Care,A2B Radio Cars,15/04/2020,,771.25,Clients Transport Costs,360000 - Public Transport
Solihull MBC,Public Health & Commissioning,Central Services to the Public,Aasaka Ltd,30/04/2020,,10000.00,Grant & Subscription (SCITT),Not Yet Classified
Solihull MBC,Children's Services - DSG Central.,Children & Education Services,Abable Ltd,21/04/2020,,1755.00,Professional Fees,Not Yet Classified
Solihull MBC,Adult Social Care,Adult Social Care,Abbey Healthcare Homes Ltd,23/04/2020,,289.60,ASC - Nursing Care Permanent,321000 - Social Community Care Supplies & Services - Adult
Solihull MBC,Adult Social Care,Adult Social Care,Abbey Healthcare Homes Ltd,23/04/2020,,724.00,ASC - Nursing Care Permanent,321000 - Social Community Care Supplies & Services - Adult
Solihull MBC,Adult Social Care,Adult Social Care,Abbey Healthcare Homes Ltd,23/04/2020,,3176.04,ASC - Nursing Care Permanent,321000 - Social Community Care Supplies & Services - Adult
Solihull MBC,Children's Services & Skills,Children & Education Services,Accalia Care Services Ltd,14/04/2020,,30200.00,Other Contracted Services,Not Yet Classified
Solihull MBC,Adult Social Care,Adult Social Care,Accomplish Group Lifestyles Ltd,23/04/2020,,495.43,ASC - Residential Care Permanent,Not Yet Classified
Solihull MBC,Adult Social Care,Adult Social Care,Accomplish Group Lifestyles Ltd,23/04/2020,,1238.57,ASC - Residential Care Permanent,Not Yet Classified
Solihull MBC,Adult Social Care,Adult Social Care,Accomplish Group Lifestyles Ltd,23/04/2020,,5257.98,ASC - Residential Care Permanent,Not Yet Classified
Solihull MBC,Adult Social Care,Adult Social Care,Accomplish Group Lifestyles Ltd,23/04/2020,,650.00,ASC - Residential Care Permanent,Not Yet Classified
Solihull MBC,Adult Social Care,Adult Social Care,Accomplish Group Lifestyles Ltd,23/04/2020,,1625.00,ASC - Residential Care Permanent,Not Yet Classified
Solihull MBC,Adult Social Care,Adult Social Care,Accomplish Group Lifestyles Ltd,23/04/2020,,7013.37,ASC - Residential Care Permanent,Not Yet Classified
Solihull MBC,Adult Social Care,Adult Social Care,Accomplish Group Lifestyles Ltd,23/04/2020,,378.32,ASC - Residential Care Permanent,Not Yet Classified
Solihull MBC,Adult Social Care,Adult Social Care,Accomplish Group Lifestyles Ltd,23/04/2020,,945.80,ASC - Residential Care Permanent,Not Yet Classified
Solihull MBC,Adult Social Care,Adult Social Care,Accomplish Group Lifestyles Ltd,23/04/2020,,4160.73,ASC - Residential Care Permanent,Not Yet Classified
Solihull MBC,Adult Social Care,Adult Social Care,Accora,14/04/2020,,910.00,Furniture & Equipment,Not Yet Classified
Solihull MBC,Adult Social Care,Adult Social Care,Accora,28/04/2020,,950.00,Furniture & Equipment,Not Yet Classified
Solihull MBC,Economy and Infrastructure,Planning & Development Services,Accord Housing Association,07/04/2020,,113242.50,Other Contracted Services,321000 - Social Community Care Supplies & Services - Adult
Solihull MBC,Adult Social Care,Other Housing Services,Accord Housing Association,21/04/2020,,364.00,Other Contracted Services,321000 - Social Community Care Supplies & Services - Adult
Solihull MBC,Adult Social Care,Adult Social Care,Accord Housing Asssociation,02/04/2020,,2086.49,ASC - Residential Care Respite,321000 - Social Community Care Supplies & Services - Adult
Solihull MBC,Adult Social Care,Adult Social Care,Accord Housing Asssociation,02/04/2020,,1814.34,ASC - Residential Care Respite,321000 - Social Community Care Supplies & Services - Adult
Solihull MBC,Adult Social Care,Adult Social Care,Accord Housing Asssociation,02/04/2020,,1814.34,ASC - Residential Care Respite,321000 - Social Community Care Supplies & Services - Adult
Solihull MBC,Adult Social Care,Adult Social Care,Accord Housing Asssociation,02/04/2020,,907.17,ASC - Residential Care Respite,321000 - Social Community Care Supplies & Services - Adult
Solihull MBC,Adult Social Care,Adult Social Care,Accord Housing Asssociation,02/04/2020,,1088.61,ASC - Residential Care Respite,321000 - Social Community Care Supplies & Services - Adult
Solihull MBC,Adult Social Care,Adult Social Care,Accord Housing Asssociation,02/04/2020,,2086.49,ASC - Residential Care Respite,321000 - Social Community Care Supplies & Services - Adult
Solihull MBC,Adult Social Care,Adult Social Care,Accord Housing Asssociation,02/04/2020,,907.17,ASC - Residential Care Respite,321000 - Social Community Care Supplies & Services - Adult
Solihull MBC,Adult Social Care,Adult Social Care,Accord Housing Asssociation,23/04/2020,,-511.98,ASC - Residential Care Respite,321000 - Social Community Care Supplies & Services - Adult
Solihull MBC,Adult Social Care,Adult Social Care,Accord Housing Asssociation,23/04/2020,,-255.99,ASC - Residential Care Respite,321000 - Social Community Care Supplies & Services - Adult
Solihull MBC,Adult Social Care,Adult Social Care,Accord Housing Asssociation,23/04/2020,,-2389.24,ASC - Residential Care Respite,321000 - Social Community Care Supplies & Services - Adult
Solihull MBC,Adult Social Care,Adult Social Care,Accord Housing Asssociation,23/04/2020,,-2389.24,ASC - Residential Care Respite,321000 - Social Community Care Supplies & Services - Adult
Solihull MBC,Adult Social Care,Adult Social Care,Accord Housing Asssociation,23/04/2020,,-2389.24,ASC - Residential Care Respite,321000 - Social Community Care Supplies & Services - Adult
Solihull MBC,Adult Social Care,Adult Social Care,Accord Housing Asssociation,02/04/2020,,453.59,ASC - Residential Care Respite,321000 - Social Community Care Supplies & Services - Adult
Solihull MBC,Adult Social Care,Adult Social Care,Accord Housing Asssociation,02/04/2020,,362.87,ASC - Residential Care Respite,321000 - Social Community Care Supplies & Services - Adult
Solihull MBC,Adult Social Care,Adult Social Care,Accord Housing Asssociation,02/04/2020,,1179.32,ASC - Residential Care Respite,321000 - Social Community Care Supplies & Services - Adult
Solihull MBC,Adult Social Care,Adult Social Care,Accord Housing Asssociation,02/04/2020,,272.15,ASC - Residential Care Respite,321000 - Social Community Care Supplies & Services - Adult
Solihull MBC,Adult Social Care,Adult Social Care,Accord Housing Asssociation,02/04/2020,,453.59,ASC - Residential Care Respite,321000 - Social Community Care Supplies & Services - Adult
Solihull MBC,Adult Social Care,Adult Social Care,Accord Housing Asssociation,23/04/2020,,341.32,ASC - Residential Care Permanent,321000 - Social Community Care Supplies & Services - Adult
Solihull MBC,Adult Social Care,Adult Social Care,Accord Housing Asssociation,23/04/2020,,682.64,ASC - Residential Care Permanent,321000 - Social Community Care Supplies & Services - Adult
Solihull MBC,Adult Social Care,Adult Social Care,Accord Housing Asssociation,23/04/2020,,2133.25,ASC - Residential Care Permanent,321000 - Social Community Care Supplies & Services - Adult
Solihull MBC,Adult Social Care,Adult Social Care,Accord Housing Asssociation,23/04/2020,,12048.24,ASC - Residential Care Permanent,321000 - Social Community Care Supplies & Services - Adult
Solihull MBC,Adult Social Care,Adult Social Care,Accord Housing Asssociation,23/04/2020,,767.97,ASC - Residential Care Permanent,321000 - Social Community Care Supplies & Services - Adult
Solihull MBC,Adult Social Care,Adult Social Care,Accord Housing Asssociation,23/04/2020,,426.65,ASC - Residential Care Permanent,321000 - Social Community Care Supplies & Services - Adult
Solihull MBC,Adult Social Care,Adult Social Care,Accord Housing Asssociation,23/04/2020,,1860.39,ASC - Residential Care Permanent,321000 - Social Community Care Supplies & Services - Adult
Solihull MBC,Adult Social Care,Adult Social Care,Accord Housing Asssociation,23/04/2020,,426.65,ASC - Residential Care Permanent,321000 - Social Community Care Supplies & Services - Adult
Solihull MBC,Adult Social Care,Adult Social Care,Accord Housing Asssociation,23/04/2020,,1860.39,ASC - Residential Care Permanent,321000 - Social Community Care Supplies & Services - Adult
Solihull MBC,Adult Social Care,Adult Social Care,Accord Housing Asssociation,23/04/2020,,426.65,ASC - Residential Care Permanent,321000 - Social Community Care Supplies & Services - Adult
Solihull MBC,Adult Social Care,Adult Social Care,Accord Housing Asssociation,23/04/2020,,1860.39,ASC - Residential Care Permanent,321000 - Social Community Care Supplies & Services - Adult
Solihull MBC,Adult Social Care,Adult Social Care,Accord Housing Asssociation,23/04/2020,,426.65,ASC - Residential Care Permanent,321000 - Social Community Care Supplies & Services - Adult
Solihull MBC,Adult Social Care,Adult Social Care,Accord Housing Asssociation,23/04/2020,,1860.39,ASC - Residential Care Permanent,321000 - Social Community Care Supplies & Services - Adult
Solihull MBC,Adult Social Care,Adult Social Care,Accord Housing Asssociation,23/04/2020,,426.65,ASC - Residential Care Permanent,321000 - Social Community Care Supplies & Services - Adult
Solihull MBC,Adult Social Care,Adult Social Care,Accord Housing Asssociation,23/04/2020,,1860.39,ASC - Residential Care Permanent,321000 - Social Community Care Supplies & Services - Adult
Solihull MBC,Adult Social Care,Adult Social Care,Accord Housing Asssociation,23/04/2020,,426.65,ASC - Residential Care Permanent,321000 - Social Community Care Supplies & Services - Adult
Solihull MBC,Adult Social Care,Adult Social Care,Accord Housing Asssociation,23/04/2020,,1860.39,ASC - Residential Care Permanent,321000 - Social Community Care Supplies & Services - Adult
Solihull MBC,Adult Social Care,Adult Social Care,Accord Housing Asssociation,23/04/2020,,426.65,ASC - Residential Care Permanent,321000 - Social Community Care Supplies & Services - Adult
Solihull MBC,Adult Social Care,Adult Social Care,Accord Housing Asssociation,23/04/2020,,1860.39,ASC - Residential Care Permanent,321000 - Social Community Care Supplies & Services - Adult
Solihull MBC,Adult Social Care,Adult Social Care,Accord Housing Asssociation,23/04/2020,,426.65,ASC - Residential Care Permanent,321000 - Social Community Care Supplies & Services - Adult
Solihull MBC,Adult Social Care,Adult Social Care,Accord Housing Asssociation,23/04/2020,,1860.39,ASC - Residential Care Permanent,321000 - Social Community Care Supplies & Services - Adult
Solihull MBC,Adult Social Care,Adult Social Care,Accord Housing Asssociation,23/04/2020,,426.65,ASC - Residential Care Permanent,321000 - Social Community Care Supplies & Services - Adult
Solihull MBC,Adult Social Care,Adult Social Care,Accord Housing Asssociation,23/04/2020,,1860.39,ASC - Residential Care Permanent,321000 - Social Community Care Supplies & Services - Adult
Solihull MBC,Adult Social Care,Adult Social Care,Accord Housing Asssociation,23/04/2020,,426.65,ASC - Residential Care Permanent,321000 - Social Community Care Supplies & Services - Adult
Solihull MBC,Adult Social Care,Adult Social Care,Accord Housing Asssociation,23/04/2020,,1860.39,ASC - Residential Care Permanent,321000 - Social Community Care Supplies & Services - Adult
Solihull MBC,Adult Social Care,Adult Social Care,Accord Housing Asssociation,23/04/2020,,426.65,ASC - Residential Care Permanent,321000 - Social Community Care Supplies & Services - Adult
Solihull MBC,Adult Social Care,Adult Social Care,Accord Housing Asssociation,23/04/2020,,531.54,ASC - Residential Care Permanent,321000 - Social Community Care Supplies & Services - Adult
Solihull MBC,Adult Social Care,Adult Social Care,Accord Housing Asssociation,23/04/2020,,-341.32,ASC - Residential Care Permanent,321000 - Social Community Care Supplies & Services - Adult
Solihull MBC,Adult Social Care,Adult Social Care,Accord Housing Asssociation,23/04/2020,,426.65,ASC - Residential Care Permanent,321000 - Social Community Care Supplies & Services - Adult
Solihull MBC,Adult Social Care,Adult Social Care,Accord Housing Asssociation,23/04/2020,,1860.39,ASC - Residential Care Permanent,321000 - Social Community Care Supplies & Services - Adult
Solihull MBC,Adult Social Care,Adult Social Care,Accord Housing Asssociation,23/04/2020,,426.65,ASC - Residential Care Permanent,321000 - Social Community Care Supplies & Services - Adult
Solihull MBC,Adult Social Care,Adult Social Care,Accord Housing Asssociation,23/04/2020,,1860.39,ASC - Residential Care Permanent,321000 - Social Community Care Supplies & Services - Adult
Solihull MBC,Adult Social Care,Adult Social Care,Accord Housing Asssociation,23/04/2020,,426.65,ASC - Residential Care Permanent,321000 - Social Community Care Supplies & Services - Adult
Solihull MBC,Adult Social Care,Adult Social Care,Accord Housing Asssociation,23/04/2020,,1860.39,ASC - Residential Care Permanent,321000 - Social Community Care Supplies & Services - Adult
Solihull MBC,Adult Social Care,Adult Social Care,Accord Housing Asssociation,23/04/2020,,368.90,ASC - Residential Care Permanent,321000 - Social Community Care Supplies & Services - Adult
Solihull MBC,Adult Social Care,Adult Social Care,Accord Housing Asssociation,23/04/2020,,1605.45,ASC - Residential Care Permanent,321000 - Social Community Care Supplies & Services - Adult
Solihull MBC,Adult Social Care,Adult Social Care,Accord Housing Asssociation,23/04/2020,,426.65,ASC - Residential Care Permanent,321000 - Social Community Care Supplies & Services - Adult
Solihull MBC,Adult Social Care,Adult Social Care,Accord Housing Asssociation,23/04/2020,,1860.39,ASC - Residential Care Permanent,321000 - Social Community Care Supplies & Services - Adult
Solihull MBC,Adult Social Care,Adult Social Care,Accord Housing Asssociation,23/04/2020,,426.65,ASC - Residential Care Permanent,321000 - Social Community Care Supplies & Services - Adult
Solihull MBC,Adult Social Care,Adult Social Care,Accord Housing Asssociation,23/04/2020,,1860.39,ASC - Residential Care Permanent,321000 - Social Community Care Supplies & Services - Adult
Solihull MBC,Adult Social Care,Adult Social Care,Accord Housing Asssociation,23/04/2020,,426.65,ASC - Residential Care Permanent,321000 - Social Community Care Supplies & Services - Adult
Solihull MBC,Adult Social Care,Adult Social Care,Accord Housing Asssociation,23/04/2020,,1860.39,ASC - Residential Care Permanent,321000 - Social Community Care Supplies & Services - Adult
Solihull MBC,Adult Social Care,Adult Social Care,Accord Housing Asssociation,23/04/2020,,426.65,ASC - Residential Care Permanent,321000 - Social Community Care Supplies & Services - Adult
Solihull MBC,Adult Social Care,Adult Social Care,Accord Housing Asssociation,23/04/2020,,1860.39,ASC - Residential Care Permanent,321000 - Social Community Care Supplies & Services - Adult
Solihull MBC,Adult Social Care,Adult Social Care,Accord Housing Asssociation,23/04/2020,,426.65,ASC - Residential Care Permanent,321000 - Social Community Care Supplies & Services - Adult
Solihull MBC,Adult Social Care,Adult Social Care,Accord Housing Asssociation,23/04/2020,,1860.39,ASC - Residential Care Permanent,321000 - Social Community Care Supplies & Services - Adult
Solihull MBC,Adult Social Care,Adult Social Care,Accord Housing Asssociation,23/04/2020,,426.65,ASC - Residential Care Permanent,321000 - Social Community Care Supplies & Services - Adult
Solihull MBC,Adult Social Care,Adult Social Care,Accord Housing Asssociation,23/04/2020,,1860.39,ASC - Residential Care Permanent,321000 - Social Community Care Supplies & Services - Adult
Solihull MBC,Adult Social Care,Adult Social Care,Accord Housing Asssociation,23/04/2020,,-1109.29,ASC - Residential Care Permanent,321000 - Social Community Care Supplies & Services - Adult
Solihull MBC,Adult Social Care,Adult Social Care,Accord Housing Asssociation,23/04/2020,,-341.32,ASC - Residential Care Permanent,321000 - Social Community Care Supplies & Services - Adult
Solihull MBC,Adult Social Care,Adult Social Care,Accord Housing Asssociation,23/04/2020,,-853.30,ASC - Residential Care Permanent,321000 - Social Community Care Supplies & Services - Adult
Solihull MBC,Adult Social Care,Adult Social Care,Accord Housing Asssociation,23/04/2020,,426.65,ASC - Residential Care Permanent,321000 - Social Community Care Supplies & Services - Adult
Solihull MBC,Adult Social Care,Adult Social Care,Accord Housing Asssociation,23/04/2020,,1860.39,ASC - Residential Care Permanent,321000 - Social Community Care Supplies & Services - Adult
Solihull MBC,Adult Social Care,Adult Social Care,Accord Housing Asssociation,23/04/2020,,426.65,ASC - Residential Care Permanent,321000 - Social Community Care Supplies & Services - Adult
Solihull MBC,Adult Social Care,Adult Social Care,Accord Housing Asssociation,23/04/2020,,442.95,ASC - Residential Care Permanent,321000 - Social Community Care Supplies & Services - Adult
Solihull MBC,Adult Social Care,Adult Social Care,Accord Housing Asssociation,23/04/2020,,426.65,ASC - Residential Care Permanent,321000 - Social Community Care Supplies & Services - Adult
Solihull MBC,Adult Social Care,Adult Social Care,Accord Housing Asssociation,23/04/2020,,1860.39,ASC - Residential Care Permanent,321000 - Social Community Care Supplies & Services - Adult
Solihull MBC,Adult Social Care,Adult Social Care,Accord Housing Asssociation,23/04/2020,,426.65,ASC - Residential Care Permanent,321000 - Social Community Care Supplies & Services - Adult
Solihull MBC,Adult Social Care,Adult Social Care,Accord Housing Asssociation,23/04/2020,,1860.39,ASC - Residential Care Permanent,321000 - Social Community Care Supplies & Services - Adult
Solihull MBC,Adult Social Care,Adult Social Care,Accord Housing Asssociation,23/04/2020,,426.65,ASC - Residential Care Permanent,321000 - Social Community Care Supplies & Services - Adult
Solihull MBC,Adult Social Care,Adult Social Care,Accord Housing Asssociation,23/04/2020,,1860.39,ASC - Residential Care Permanent,321000 - Social Community Care Supplies & Services - Adult
Solihull MBC,Adult Social Care,Adult Social Care,Accord Housing Asssociation,23/04/2020,,426.65,ASC - Residential Care Permanent,321000 - Social Community Care Supplies & Services - Adult
Solihull MBC,Adult Social Care,Adult Social Care,Accord Housing Asssociation,23/04/2020,,1860.39,ASC - Residential Care Permanent,321000 - Social Community Care Supplies & Services - Adult
Solihull MBC,Adult Social Care,Adult Social Care,Accord Housing Asssociation,23/04/2020,,341.32,ASC - Residential Care Permanent,321000 - Social Community Care Supplies & Services - Adult
Solihull MBC,Adult Social Care,Adult Social Care,Accord Housing Asssociation,23/04/2020,,341.32,ASC - Residential Care Permanent,321000 - Social Community Care Supplies & Services - Adult
Solihull MBC,Adult Social Care,Adult Social Care,Accord Housing Asssociation,23/04/2020,,853.30,ASC - Residential Care Permanent,321000 - Social Community Care Supplies & Services - Adult
Solihull MBC,Adult Social Care,Adult Social Care,Accord Housing Asssociation,23/04/2020,,426.65,ASC - Residential Care Permanent,321000 - Social Community Care Supplies & Services - Adult
Solihull MBC,Adult Social Care,Adult Social Care,Accord Housing Asssociation,23/04/2020,,1860.39,ASC - Residential Care Permanent,321000 - Social Community Care Supplies & Services - Adult
Solihull MBC,Adult Social Care,Adult Social Care,Accord Housing Asssociation,23/04/2020,,426.65,ASC - Residential Care Permanent,321000 - Social Community Care Supplies & Services - Adult
Solihull MBC,Adult Social Care,Adult Social Care,Accord Housing Asssociation,23/04/2020,,1860.39,ASC - Residential Care Permanent,321000 - Social Community Care Supplies & Services - Adult
Solihull MBC,Adult Social Care,Adult Social Care,Accord Housing Asssociation,23/04/2020,,426.65,ASC - Residential Care Permanent,321000 - Social Community Care Supplies & Services - Adult
Solihull MBC,Adult Social Care,Adult Social Care,Accord Housing Asssociation,23/04/2020,,1860.39,ASC - Residential Care Permanent,321000 - Social Community Care Supplies & Services - Adult
Solihull MBC,Adult Social Care,Adult Social Care,Accord Housing Asssociation,23/04/2020,,426.65,ASC - Residential Care Permanent,321000 - Social Community Care Supplies & Services - Adult
Solihull MBC,Adult Social Care,Adult Social Care,Accord Housing Asssociation,23/04/2020,,1860.39,ASC - Residential Care Permanent,321000 - Social Community Care Supplies & Services - Adult
Solihull MBC,Adult Social Care,Adult Social Care,Accord Housing Asssociation,23/04/2020,,426.65,ASC - Residential Care Permanent,321000 - Social Community Care Supplies & Services - Adult
Solihull MBC,Adult Social Care,Adult Social Care,Accord Housing Asssociation,23/04/2020,,1860.39,ASC - Residential Care Permanent,321000 - Social Community Care Supplies & Services - Adult
Solihull MBC,Adult Social Care,Adult Social Care,Accord Housing Asssociation,23/04/2020,,426.65,ASC - Residential Care Permanent,321000 - Social Community Care Supplies & Services - Adult
Solihull MBC,Adult Social Care,Adult Social Care,Accord Housing Asssociation,23/04/2020,,1860.39,ASC - Residential Care Permanent,321000 - Social Community Care Supplies & Services - Adult
Solihull MBC,Adult Social Care,Adult Social Care,Accord Housing Asssociation,23/04/2020,,426.65,ASC - Residential Care Permanent,321000 - Social Community Care Supplies & Services - Adult
Solihull MBC,Adult Social Care,Adult Social Care,Accord Housing Asssociation,23/04/2020,,1860.39,ASC - Residential Care Permanent,321000 - Social Community Care Supplies & Services - Adult
Solihull MBC,Adult Social Care,Adult Social Care,Accord Housing Asssociation,23/04/2020,,426.65,ASC - Residential Care Permanent,321000 - Social Community Care Supplies & Services - Adult
Solihull MBC,Adult Social Care,Adult Social Care,Accord Housing Asssociation,23/04/2020,,1860.39,ASC - Residential Care Permanent,321000 - Social Community Care Supplies & Services - Adult
Solihull MBC,Adult Social Care,Adult Social Care,Accord Housing Asssociation,23/04/2020,,426.65,ASC - Residential Care Permanent,321000 - Social Community Care Supplies & Services - Adult
Solihull MBC,Adult Social Care,Adult Social Care,Accord Housing Asssociation,23/04/2020,,1860.39,ASC - Residential Care Permanent,321000 - Social Community Care Supplies & Services - Adult
Solihull MBC,Adult Social Care,Adult Social Care,Accord Housing Asssociation,23/04/2020,,426.65,ASC - Residential Care Permanent,321000 - Social Community Care Supplies & Services - Adult
Solihull MBC,Adult Social Care,Adult Social Care,Accord Housing Asssociation,23/04/2020,,1860.39,ASC - Residential Care Permanent,321000 - Social Community Care Supplies & Services - Adult
Solihull MBC,Adult Social Care,Adult Social Care,Accord Housing Asssociation,23/04/2020,,426.65,ASC - Residential Care Permanent,321000 - Social Community Care Supplies & Services - Adult
Solihull MBC,Adult Social Care,Adult Social Care,Accord Housing Asssociation,23/04/2020,,1860.39,ASC - Residential Care Permanent,321000 - Social Community Care Supplies & Services - Adult
Solihull MBC,Adult Social Care,Adult Social Care,Accord Housing Asssociation,23/04/2020,,2358.65,ASC - Residential Care Respite,321000 - Social Community Care Supplies & Services - Adult
Solihull MBC,Adult Social Care,Adult Social Care,Accord Housing Asssociation,23/04/2020,,426.65,ASC - Residential Care Permanent,321000 - Social Community Care Supplies & Services - Adult
Solihull MBC,Adult Social Care,Adult Social Care,Accord Housing Asssociation,23/04/2020,,1860.39,ASC - Residential Care Permanent,321000 - Social Community Care Supplies & Services - Adult
Solihull MBC,Adult Social Care,Adult Social Care,Accord Housing Asssociation,23/04/2020,,426.65,ASC - Residential Care Respite,321000 - Social Community Care Supplies & Services - Adult
Solihull MBC,Adult Social Care,Adult Social Care,Accord Housing Asssociation,23/04/2020,,1860.39,ASC - Residential Care Respite,321000 - Social Community Care Supplies & Services - Adult
Solihull MBC,Adult Social Care,Adult Social Care,Accord Housing Asssociation,23/04/2020,,2358.65,ASC - Residential Care Respite,321000 - Social Community Care Supplies & Services - Adult
Solihull MBC,Public Health & Commissioning,Central Services to the Public,Accountancy & IT Services Limited,08/04/2020,,10000.00,Grant & Subscription (SCITT),Not Yet Classified
Solihull MBC,Children's Services & Skills,Children & Education Services,Acorn Children's Home (Branston House),24/04/2020,,10613.12,Other Contracted Services,Not Yet Classified
Solihull MBC,Children's Services & Skills,Children & Education Services,Acorn Children's Home (Branston House),24/04/2020,,17980.00,Other Contracted Services,Not Yet Classified
Solihull MBC,Public Health & Commissioning,Central Services to the Public,Acorns Childrens H,14/04/2020,,25000.00,Grant & Subscription (SCITT),Not Yet Classified
Solihull MBC,Public Health & Commissioning,Central Services to the Public,Acorns Childrens H,14/04/2020,,25000.00,Grant & Subscription (SCITT),Not Yet Classified
Solihull MBC,Public Health & Commissioning,Central Services to the Public,Acorns Childrens H,14/04/2020,,25000.00,Grant & Subscription (SCITT),Not Yet Classified
Solihull MBC,Public Health & Commissioning,Central Services to the Public,Acorns Childrens H,14/04/2020,,25000.00,Grant & Subscription (SCITT),Not Yet Classified
Solihull MBC,Economy and Infrastructure,Highways & Transport Services,Action Graphics (Bham) Ltd,28/04/2020,,1942.60,Furniture & Equipment,"391111 - Works - Construction, Repair & Maintenance - Buildings - Repair & Maintenance"
Solihull MBC,Children's Services - DSG Central.,Children & Education Services,Active Angels,27/04/2020,,31826.07,Grant & Subscription (SCITT),321100 - Social Community Care Supplies & Services - Children
Solihull MBC,Children's Services - DSG Central.,Children & Education Services,Active Angels,23/04/2020,,8618.40,Grant & Subscription (SCITT),321100 - Social Community Care Supplies & Services - Children
Solihull MBC,Public Health & Commissioning,Central Services to the Public,Adam Myers Ltd,07/04/2020,,10000.00,Grant & Subscription (SCITT),Not Yet Classified
Solihull MBC,Public Health & Commissioning,Central Services to the Public,Adam Myers Ltd,03/04/2020,,25000.00,Grant & Subscription (SCITT),Not Yet Classified
Solihull MBC,Public Health & Commissioning,Central Services to the Public,Addfrost Maintenance Services Ltd,15/04/2020,,10000.00,Grant & Subscription (SCITT),Not Yet Classified
Solihull MBC,Adult Social Care,Adult Social Care,Advanced Caring Ltd,23/04/2020,,442.04,ASC - Residential Care Permanent,Not Yet Classified
Solihull MBC,Adult Social Care,Adult Social Care,Advanced Caring Ltd,23/04/2020,,1105.10,ASC - Residential Care Permanent,Not Yet Classified
Solihull MBC,Adult Social Care,Adult Social Care,Advanced Caring Ltd,23/04/2020,,4829.79,ASC - Residential Care Permanent,Not Yet Classified
Solihull MBC,Public Health & Commissioning,Central Services to the Public,Advanced Cleaning (Midlands) Ltd,09/04/2020,,10000.00,Grant & Subscription (SCITT),Not Yet Classified
Solihull MBC,Economy and Infrastructure,Planning & Development Services,Aecom Limited,23/04/2020,,3999.45,Professional Fees,Not Yet Classified
Solihull MBC,Economy and Infrastructure,Planning & Development Services,Aecom Limited,22/04/2020,,8129.39,Professional Fees,Not Yet Classified
Solihull MBC,Public Health & Commissioning,Central Services to the Public,Aesthetics Ltd,03/04/2020,,25000.00,Grant & Subscription (SCITT),Not Yet Classified
Solihull MBC,Public Health & Commissioning,Central Services to the Public,Africastamps.co.uk,14/04/2020,,10000.00,Grant & Subscription (SCITT),Not Yet Classified
Solihull MBC,Public Health & Commissioning,Central Services to the Public,Age Concern Solihull,15/04/2020,,10000.00,Grant & Subscription (SCITT),Not Yet Classified
Solihull MBC,Public Health & Commissioning,Central Services to the Public,Age Concern Solihull,15/04/2020,,10000.00,Grant & Subscription (SCITT),Not Yet Classified
Solihull MBC,Adult Social Care,Adult Social Care,Age UK Solihull,07/04/2020,,12504.42,Other Contracted Services,321000 - Social Community Care Supplies & Services - Adult
Solihull MBC,Adult Social Care,Adult Social Care,Age UK Solihull,07/04/2020,,56616.83,Other Contracted Services,321000 - Social Community Care Supplies & Services - Adult
Solihull MBC,Adult Social Care,Adult Social Care,Age UK Solihull,07/04/2020,,6750.00,Other Contracted Services,321000 - Social Community Care Supplies & Services - Adult
Solihull MBC,Public Health & Commissioning,Central Services to the Public,AGS Technical Solutions Ltd,15/04/2020,,10000.00,Grant & Subscription (SCITT),Not Yet Classified
Solihull MBC,Adult Social Care,Adult Social Care,Aidapt Bathrooms Ltd,06/04/2020,,167.50,Furniture & Equipment,321000 - Social Community Care Supplies & Services - Adult
Solihull MBC,Adult Social Care,Adult Social Care,Aidapt Bathrooms Ltd,06/04/2020,,1260.00,Furniture & Equipment,321000 - Social Community Care Supplies & Services - Adult
Solihull MBC,Adult Social Care,Adult Social Care,Aidapt Bathrooms Ltd,06/04/2020,,47.50,Furniture & Equipment,321000 - Social Community Care Supplies & Services - Adult
Solihull MBC,Adult Social Care,Adult Social Care,Aidapt Bathrooms Ltd,06/04/2020,,66.00,Furniture & Equipment,321000 - Social Community Care Supplies & Services - Adult
Solihull MBC,Adult Social Care,Adult Social Care,Aidapt Bathrooms Ltd,01/04/2020,,3000.00,Furniture & Equipment,321000 - Social Community Care Supplies & Services - Adult
Solihull MBC,Adult Social Care,Adult Social Care,Aidapt Bathrooms Ltd,01/04/2020,,3880.00,Furniture & Equipment,321000 - Social Community Care Supplies & Services - Adult
Solihull MBC,Adult Social Care,Adult Social Care,Aidapt Bathrooms Ltd,01/04/2020,,1520.64,Furniture & Equipment,321000 - Social Community Care Supplies & Services - Adult
Solihull MBC,Adult Social Care,Adult Social Care,Aidapt Bathrooms Ltd,01/04/2020,,704.00,Furniture & Equipment,321000 - Social Community Care Supplies & Services - Adult
Solihull MBC,Adult Social Care,Adult Social Care,Aidapt Bathrooms Ltd,01/04/2020,,1056.00,Furniture & Equipment,321000 - Social Community Care Supplies & Services - Adult
Solihull MBC,Adult Social Care,Adult Social Care,Aidapt Bathrooms Ltd,01/04/2020,,1200.00,Furniture & Equipment,321000 - Social Community Care Supplies & Services - Adult
Solihull MBC,Adult Social Care,Adult Social Care,Aidapt Bathrooms Ltd,01/04/2020,,220.00,Furniture & Equipment,321000 - Social Community Care Supplies & Services - Adult
Solihull MBC,Adult Social Care,Adult Social Care,Aidapt Bathrooms Ltd,01/04/2020,,-80.00,Furniture & Equipment,321000 - Social Community Care Supplies & Services - Adult
Solihull MBC,Adult Social Care,Adult Social Care,Aidapt Bathrooms Ltd,01/04/2020,,625.00,Furniture & Equipment,321000 - Social Community Care Supplies & Services - Adult
Solihull MBC,Adult Social Care,Adult Social Care,Aidapt Bathrooms Ltd,29/04/2020,,502.50,Furniture & Equipment,321000 - Social Community Care Supplies & Services - Adult
Solihull MBC,Adult Social Care,Adult Social Care,Aidapt Bathrooms Ltd,29/04/2020,,630.00,Furniture & Equipment,321000 - Social Community Care Supplies & Services - Adult
Solihull MBC,Adult Social Care,Adult Social Care,Aidapt Bathrooms Ltd,29/04/2020,,840.00,Furniture & Equipment,321000 - Social Community Care Supplies & Services - Adult
Solihull MBC,Adult Social Care,Adult Social Care,Aidapt Bathrooms Ltd,29/04/2020,,435.60,Furniture & Equipment,321000 - Social Community Care Supplies & Services - Adult
Solihull MBC,Adult Social Care,Adult Social Care,Aidapt Bathrooms Ltd,29/04/2020,,849.50,Furniture & Equipment,321000 - Social Community Care Supplies & Services - Adult
Solihull MBC,Adult Social Care,Adult Social Care,Aidapt Bathrooms Ltd,29/04/2020,,322.00,Furniture & Equipment,321000 - Social Community Care Supplies & Services - Adult
Solihull MBC,Adult Social Care,Adult Social Care,Aidapt Bathrooms Ltd,02/04/2020,,714.00,Furniture & Equipment,321000 - Social Community Care Supplies & Services - Adult
Solihull MBC,Adult Social Care,Adult Social Care,Aidapt Bathrooms Ltd,02/04/2020,,469.00,Furniture & Equipment,321000 - Social Community Care Supplies & Services - Adult
Solihull MBC,Adult Social Care,Adult Social Care,Aidapt Bathrooms Ltd,02/04/2020,,945.00,Furniture & Equipment,321000 - Social Community Care Supplies & Services - Adult
Solihull MBC,Adult Social Care,Adult Social Care,Aidapt Bathrooms Ltd,02/04/2020,,506.00,Furniture & Equipment,321000 - Social Community Care Supplies & Services - Adult
Solihull MBC,Adult Social Care,Adult Social Care,Aidapt Bathrooms Ltd,09/04/2020,,250.00,Furniture & Equipment,321000 - Social Community Care Supplies & Services - Adult
Solihull MBC,Adult Social Care,Adult Social Care,Aidapt Bathrooms Ltd,09/04/2020,,315.00,Furniture & Equipment,321000 - Social Community Care Supplies & Services - Adult
Solihull MBC,Adult Social Care,Adult Social Care,Aidapt Bathrooms Ltd,09/04/2020,,690.00,Furniture & Equipment,321000 - Social Community Care Supplies & Services - Adult
Solihull MBC,Adult Social Care,Adult Social Care,Aidapt Bathrooms Ltd,09/04/2020,,278.30,Furniture & Equipment,321000 - Social Community Care Supplies & Services - Adult
Solihull MBC,Adult Social Care,Adult Social Care,Aidapt Bathrooms Ltd,09/04/2020,,1257.26,Furniture & Equipment,321000 - Social Community Care Supplies & Services - Adult
Solihull MBC,Adult Social Care,Adult Social Care,Aidapt Bathrooms Ltd,14/04/2020,,48.40,Furniture & Equipment,321000 - Social Community Care Supplies & Services - Adult
Solihull MBC,Adult Social Care,Adult Social Care,Aidapt Bathrooms Ltd,14/04/2020,,1036.39,Furniture & Equipment,321000 - Social Community Care Supplies & Services - Adult
Solihull MBC,Adult Social Care,Adult Social Care,Aidapt Bathrooms Ltd,20/04/2020,,585.90,Furniture & Equipment,321000 - Social Community Care Supplies & Services - Adult
Solihull MBC,Adult Social Care,Adult Social Care,Aidapt Bathrooms Ltd,20/04/2020,,5250.00,Furniture & Equipment,321000 - Social Community Care Supplies & Services - Adult
Solihull MBC,Adult Social Care,Adult Social Care,Aidapt Bathrooms Ltd,22/04/2020,,1104.00,Furniture & Equipment,321000 - Social Community Care Supplies & Services - Adult
Solihull MBC,Adult Social Care,Adult Social Care,Aidapt Bathrooms Ltd,22/04/2020,,599.00,Furniture & Equipment,321000 - Social Community Care Supplies & Services - Adult
Solihull MBC,Adult Social Care,Adult Social Care,Aidapt Bathrooms Ltd,23/04/2020,,445.50,Furniture & Equipment,321000 - Social Community Care Supplies & Services - Adult
Solihull MBC,Public Health & Commissioning,Central Services to the Public,Aim Software Ltd,07/04/2020,,10000.00,Grant & Subscription (SCITT),Not Yet Classified
Solihull MBC,Public Health & Commissioning,Central Services to the Public,Air Tools And Compressors,15/04/2020,,10000.00,Grant & Subscription (SCITT),Not Yet Classified
Solihull MBC,Resources,Central Services to the Public,Airey Consultancy Services Ltd,30/04/2020,,600.00,Grant & Subscription (SCITT),Not Yet Classified
Solihull MBC,Public Health & Commissioning,Central Services to the Public,Airwaves Facilities Management Ltd,28/04/2020,,10000.00,Grant & Subscription (SCITT),Not Yet Classified
Solihull MBC,Public Health & Commissioning,Central Services to the Public,AJBD Ltd,30/04/2020,,25000.00,Grant & Subscription (SCITT),Not Yet Classified
Solihull MBC,Public Health & Commissioning,Central Services to the Public,AK Fitted Interiors T/A Affordable Kitchens Ltd,07/04/2020,,10000.00,Grant & Subscription (SCITT),Not Yet Classified
Solihull MBC,Public Health & Commissioning,Central Services to the Public,Akamba,09/04/2020,,10000.00,Grant & Subscription (SCITT),Not Yet Classified
Solihull MBC,Adult Social Care,Adult Social Care,Akari Care Ltd,23/04/2020,,434.15,ASC - Residential Care Permanent,Not Yet Classified
Solihull MBC,Adult Social Care,Adult Social Care,Akari Care Ltd,23/04/2020,,1891.89,ASC - Residential Care Permanent,Not Yet Classified
Solihull MBC,Adult Social Care,Adult Social Care,Akari Care Ltd,23/04/2020,,368.90,ASC - Residential Care Permanent,Not Yet Classified
Solihull MBC,Adult Social Care,Adult Social Care,Akari Care Ltd,23/04/2020,,1605.45,ASC - Residential Care Permanent,Not Yet Classified
Solihull MBC,Adult Social Care,Adult Social Care,Akari Care Ltd,23/04/2020,,376.20,ASC - Residential Care Permanent,Not Yet Classified
Solihull MBC,Adult Social Care,Adult Social Care,Akari Care Ltd,23/04/2020,,1636.11,ASC - Residential Care Permanent,Not Yet Classified
Solihull MBC,Adult Social Care,Adult Social Care,Akari Care Ltd,23/04/2020,,480.45,ASC - Nursing Care Permanent,Not Yet Classified
Solihull MBC,Adult Social Care,Adult Social Care,Akari Care Ltd,23/04/2020,,2084.46,ASC - Nursing Care Permanent,Not Yet Classified
Solihull MBC,Adult Social Care,Adult Social Care,Akari Care Ltd,23/04/2020,,480.45,ASC - Nursing Care Permanent,Not Yet Classified
Solihull MBC,Adult Social Care,Adult Social Care,Akari Care Ltd,23/04/2020,,2084.46,ASC - Nursing Care Permanent,Not Yet Classified
Solihull MBC,Adult Social Care,Adult Social Care,Akari Care Ltd,23/04/2020,,480.45,ASC - Nursing Care Permanent,Not Yet Classified
Solihull MBC,Adult Social Care,Adult Social Care,Akari Care Ltd,23/04/2020,,2084.46,ASC - Nursing Care Permanent,Not Yet Classified
Solihull MBC,Public Health & Commissioning,Central Services to the Public,AKM Birmingham Ltd,14/04/2020,,25000.00,Grant & Subscription (SCITT),Not Yet Classified
Solihull MBC,Public Health & Commissioning,Central Services to the Public,AKM Birmingham Ltd,14/04/2020,,10000.00,Grant & Subscription (SCITT),Not Yet Classified
Solihull MBC,Public Health & Commissioning,Central Services to the Public,AKM Birmingham Ltd,14/04/2020,,25000.00,Grant & Subscription (SCITT),Not Yet Classified
Solihull MBC,Public Health & Commissioning,Central Services to the Public,Alan Tyler Limited,14/04/2020,,10000.00,Grant & Subscription (SCITT),Not Yet Classified
Solihull MBC,Public Health & Commissioning,Central Services to the Public,Alan Warwick Ltd,07/04/2020,,10000.00,Grant & Subscription (SCITT),Not Yet Classified
Solihull MBC,Public Health & Commissioning,Central Services to the Public,Alarm & Vision Ltd,07/04/2020,,10000.00,Grant & Subscription (SCITT),Not Yet Classified
Solihull MBC,Economy and Infrastructure,Planning & Development Services,Alcium Software Ltd,14/04/2020,,375.00,IT Equipment & Software,270000 - Information Communication Technology
Solihull MBC,Public Health & Commissioning,Central Services to the Public,Ale Rooms Ltd,07/04/2020,,10000.00,Grant & Subscription (SCITT),Not Yet Classified
Solihull MBC,Public Health & Commissioning,Central Services to the Public,Alex M Property Ltd Formerly Open Door Solihull Ltd,21/04/2020,,10000.00,Grant & Subscription (SCITT),Not Yet Classified
Solihull MBC,Adult Social Care,Adult Social Care,Alexandra House - SJMT,23/04/2020,,1530.00,ASC - Residential Care Permanent,Not Yet Classified
Solihull MBC,Adult Social Care,Adult Social Care,Alexandra House - SJMT,23/04/2020,,410.71,ASC - Residential Care Permanent,Not Yet Classified
Solihull MBC,Adult Social Care,Adult Social Care,Alexandra House - SJMT,23/04/2020,,1781.01,ASC - Residential Care Permanent,Not Yet Classified
Solihull MBC,Adult Social Care,Adult Social Care,Alexandra House - SJMT,23/04/2020,,410.71,ASC - Residential Care Permanent,Not Yet Classified
Solihull MBC,Adult Social Care,Adult Social Care,Alexandra House - SJMT,23/04/2020,,1781.01,ASC - Residential Care Permanent,Not Yet Classified
Solihull MBC,Adult Social Care,Adult Social Care,Alexandra House - SJMT,23/04/2020,,405.80,ASC - Residential Care Permanent,Not Yet Classified
Solihull MBC,Adult Social Care,Adult Social Care,Alexandra House - SJMT,23/04/2020,,1760.43,ASC - Residential Care Permanent,Not Yet Classified
Solihull MBC,Adult Social Care,Adult Social Care,Alexandra House - SJMT,23/04/2020,,338.05,ASC - Residential Care Permanent,Not Yet Classified
Solihull MBC,Adult Social Care,Adult Social Care,Alexandra House - SJMT,23/04/2020,,1475.88,ASC - Residential Care Permanent,Not Yet Classified
Solihull MBC,Adult Social Care,Adult Social Care,Alexandra House - SJMT,23/04/2020,,410.71,ASC - Residential Care Permanent,Not Yet Classified
Solihull MBC,Adult Social Care,Adult Social Care,Alexandra House - SJMT,23/04/2020,,1793.40,ASC - Residential Care Permanent,Not Yet Classified
Solihull MBC,Adult Social Care,Adult Social Care,Alexandra House - SJMT,23/04/2020,,402.90,ASC - Residential Care Permanent,Not Yet Classified
Solihull MBC,Adult Social Care,Adult Social Care,Alexandra House - SJMT,23/04/2020,,1748.25,ASC - Residential Care Permanent,Not Yet Classified
Solihull MBC,Adult Social Care,Adult Social Care,Alexandra House - SJMT,23/04/2020,,426.65,ASC - Residential Care Permanent,Not Yet Classified
Solihull MBC,Adult Social Care,Adult Social Care,Alexandra House - SJMT,23/04/2020,,1860.39,ASC - Residential Care Permanent,Not Yet Classified
Solihull MBC,Adult Social Care,Adult Social Care,Alexandra House - SJMT,23/04/2020,,410.71,ASC - Residential Care Permanent,Not Yet Classified
Solihull MBC,Adult Social Care,Adult Social Care,Alexandra House - SJMT,23/04/2020,,1793.40,ASC - Residential Care Permanent,Not Yet Classified
Solihull MBC,Adult Social Care,Adult Social Care,Alexandra House - SJMT,23/04/2020,,464.29,ASC - Residential Care Respite,Not Yet Classified
Solihull MBC,Adult Social Care,Adult Social Care,Alexandra House - SJMT,23/04/2020,,464.29,ASC - Residential Care Respite,Not Yet Classified
Solihull MBC,Adult Social Care,Adult Social Care,Alexandra House - SJMT,23/04/2020,,2006.13,ASC - Residential Care Respite,Not Yet Classified
Solihull MBC,Adult Social Care,Adult Social Care,Alexandra House - SJMT,23/04/2020,,2006.13,ASC - Residential Care Respite,Not Yet Classified
Solihull MBC,Adult Social Care,Adult Social Care,Alexandra House - SJMT,23/04/2020,,1719.54,ASC - Residential Care Respite,Not Yet Classified
Solihull MBC,Adult Social Care,Adult Social Care,Alexandra House - SJMT,23/04/2020,,464.29,ASC - Residential Care Respite,Not Yet Classified
Solihull MBC,Adult Social Care,Adult Social Care,Alexandra House - SJMT,23/04/2020,,286.59,ASC - Residential Care Respite,Not Yet Classified
Solihull MBC,Adult Social Care,Adult Social Care,Alexandra House - SJMT,23/04/2020,,464.29,ASC - Residential Care Respite,Not Yet Classified
Solihull MBC,Adult Social Care,Adult Social Care,Alexandra House - SJMT,23/04/2020,,2006.13,ASC - Residential Care Respite,Not Yet Classified
Solihull MBC,Adult Social Care,Adult Social Care,Alexandra House - SJMT,23/04/2020,,464.29,ASC - Residential Care Respite,Not Yet Classified
Solihull MBC,Adult Social Care,Adult Social Care,Alexandra House - SJMT,23/04/2020,,2006.13,ASC - Residential Care Respite,Not Yet Classified
Solihull MBC,Adult Social Care,Adult Social Care,Alexandra House - SJMT,23/04/2020,,464.29,ASC - Residential Care Respite,Not Yet Classified
Solihull MBC,Adult Social Care,Adult Social Care,Alexandra House - SJMT,23/04/2020,,2006.13,ASC - Residential Care Respite,Not Yet Classified
Solihull MBC,Adult Social Care,Adult Social Care,Alexandra House - SJMT,23/04/2020,,464.29,ASC - Residential Care Respite,Not Yet Classified
Solihull MBC,Adult Social Care,Adult Social Care,Alexandra House - SJMT,23/04/2020,,2006.13,ASC - Residential Care Respite,Not Yet Classified
Solihull MBC,Adult Social Care,Adult Social Care,Alexandra House - SJMT,23/04/2020,,464.29,ASC - Residential Care Respite,Not Yet Classified
Solihull MBC,Adult Social Care,Adult Social Care,Alexandra House - SJMT,23/04/2020,,2006.13,ASC - Residential Care Respite,Not Yet Classified
Solihull MBC,Adult Social Care,Adult Social Care,Alexandra House - SJMT,23/04/2020,,1615.00,ASC - Residential Care Permanent,Not Yet Classified
Solihull MBC,Public Health & Commissioning,Central Services to the Public,All Wanda Company Ltd,28/04/2020,,25000.00,Grant & Subscription (SCITT),Not Yet Classified
Solihull MBC,Public Health & Commissioning,Central Services to the Public,Allenco Worldwide (Freight Management) Ltd,14/04/2020,,10000.00,Grant & Subscription (SCITT),Not Yet Classified
Solihull MBC,Adult Social Care,Central Services to the Public,Allied Publicity Services (Manchester) Ltd,02/04/2020,,992.27,Professional Fees,Not Yet Classified
Solihull MBC,Adult Social Care,Adult Social Care,Alophonsus Services Ltd,23/04/2020,,771.78,ASC - Residential Care Permanent,321000 - Social Community Care Supplies & Services - Adult
Solihull MBC,Adult Social Care,Adult Social Care,Alophonsus Services Ltd,23/04/2020,,1929.45,ASC - Residential Care Permanent,321000 - Social Community Care Supplies & Services - Adult
Solihull MBC,Adult Social Care,Adult Social Care,Alophonsus Services Ltd,23/04/2020,,8292.06,ASC - Residential Care Permanent,321000 - Social Community Care Supplies & Services - Adult
Solihull MBC,Children's Services & Skills,Children & Education Services,Alpha Biolaboratories Ltd,08/04/2020,,369.67,Professional Fees,Not Yet Classified
Solihull MBC,Adult Social Care,Adult Social Care,Alpha Health Care Ltd,23/04/2020,,448.30,ASC - Residential Care Permanent,321000 - Social Community Care Supplies & Services - Adult
Solihull MBC,Adult Social Care,Adult Social Care,Alpha Health Care Ltd,23/04/2020,,1951.32,ASC - Residential Care Permanent,321000 - Social Community Care Supplies & Services - Adult
Solihull MBC,Public Health & Commissioning,Central Services to the Public,Alpha Partnership (IFA) Ltd,15/04/2020,,10000.00,Grant & Subscription (SCITT),Not Yet Classified
Solihull MBC,Adult Social Care,Adult Social Care,Alphabet GB Ltd,14/04/2020,,163.37,Transport-Contract Hire,Not Yet Classified
Solihull MBC,Adult Social Care,Adult Social Care,Alphabet GB Ltd,14/04/2020,,657.82,Transport-Contract Hire,Not Yet Classified
Solihull MBC,Adult Social Care,Adult Social Care,Alphabet GB Ltd,14/04/2020,,-328.91,Transport-Contract Hire,Not Yet Classified
Solihull MBC,Adult Social Care,Adult Social Care,Alphabet GB Ltd,14/04/2020,,159.03,Transport-Contract Hire,Not Yet Classified
Solihull MBC,Public Health & Commissioning,Central Services to the Public,AM Convenience (Catherine-De-Barnes Ltd),21/04/2020,,10000.00,Grant & Subscription (SCITT),Not Yet Classified
Solihull MBC,Adult Social Care,Adult Social Care,Amberley Court Nursing Home,23/04/2020,,301.72,ASC - Nursing Care Permanent,321000 - Social Community Care Supplies & Services - Adult
Solihull MBC,Adult Social Care,Adult Social Care,Amberley Court Nursing Home,23/04/2020,,754.30,ASC - Nursing Care Permanent,321000 - Social Community Care Supplies & Services - Adult
Solihull MBC,Adult Social Care,Adult Social Care,Amberley Court Nursing Home,23/04/2020,,3303.30,ASC - Nursing Care Permanent,321000 - Social Community Care Supplies & Services - Adult
Solihull MBC,Public Health & Commissioning,Central Services to the Public,Ambleside Caravan Storage,24/04/2020,,10000.00,Grant & Subscription (SCITT),Not Yet Classified
Solihull MBC,Public Health & Commissioning,Central Services to the Public,Amincus Veterinary,15/04/2020,,10000.00,Grant & Subscription (SCITT),Not Yet Classified
Solihull MBC,Economy and Infrastructure,Planning & Development Services,Amion Consulting,01/04/2020,,3024.00,Professional Fees,Not Yet Classified
Solihull MBC,Public Health & Commissioning,Central Services to the Public,Amplifon Ltd,03/04/2020,,25000.00,Grant & Subscription (SCITT),Not Yet Classified
Solihull MBC,Resources,Central Services to the Public,Amz*Connected247,01/04/2020,Card Transaction,-1032.00,Telephones,161000 - Domestic Goods - Commercial
Solihull MBC,Resources,Central Services to the Public,Amz*Connected247,27/03/2020,Card Transaction,-860.00,Telephones,161000 - Domestic Goods - Commercial
Solihull MBC,Children's Services & Skills,Children & Education Services,Amznmktplace,05/03/2020,Card Transaction,270.79,General Office Expenses,161000 - Domestic Goods - Commercial
Solihull MBC,Children's Services & Skills,Children & Education Services,Amznmktplace,24/04/2020,Card Transaction,409.32,Purchase Card Statement Summary,161000 - Domestic Goods - Commercial
Solihull MBC,Children's Services & Skills,Children & Education Services,Amznmktplace,24/04/2020,Card Transaction,-328.99,Purchase Card Statement Summary,161000 - Domestic Goods - Commercial
Solihull MBC,Economy and Infrastructure,Environmental and Regulatory Services,Amznmktplace,24/04/2020,Card Transaction,467.82,Purchase Card Statement Summary,161000 - Domestic Goods - Commercial
Solihull MBC,Resources,Central Services to the Public,Amznmktplace,21/03/2020,Card Transaction,703.74,Telephones,161000 - Domestic Goods - Commercial
Solihull MBC,Resources,Central Services to the Public,Amznmktplace,21/03/2020,Card Transaction,703.74,Telephones,161000 - Domestic Goods - Commercial
Solihull MBC,Resources,Central Services to the Public,Amznmktplace,27/03/2020,Card Transaction,1521.67,Telephones,161000 - Domestic Goods - Commercial
Solihull MBC,Resources,Central Services to the Public,Amznmktplace,20/03/2020,Card Transaction,1748.67,Telephones,161000 - Domestic Goods - Commercial
Solihull MBC,Adult Social Care,Central Services to the Public,Amznmktplace,26/03/2020,Card Transaction,428.12,Materials,161000 - Domestic Goods - Commercial
Solihull MBC,Adult Social Care,Adult Social Care,Amznmktplace,24/04/2020,Card Transaction,332.43,Purchase Card Statement Summary,161000 - Domestic Goods - Commercial
Solihull MBC,Children's Services & Skills,Children & Education Services,Anchor Fostercare,14/04/2020,,4879.00,Clients Expenses,Not Yet Classified
Solihull MBC,Adult Social Care,Adult Social Care,Anchor Homes - Kerria Court,23/04/2020,,416.80,ASC - Residential Care Permanent,Not Yet Classified
Solihull MBC,Adult Social Care,Adult Social Care,Anchor Homes - Kerria Court,23/04/2020,,1819.02,ASC - Residential Care Permanent,Not Yet Classified
Solihull MBC,Adult Social Care,Adult Social Care,Anchor Trust,23/04/2020,,2590.01,ASC - Residential Care Permanent,321000 - Social Community Care Supplies & Services - Adult
Solihull MBC,Adult Social Care,Adult Social Care,Anchor Trust,23/04/2020,,-1195.39,ASC - Residential Care Permanent,321000 - Social Community Care Supplies & Services - Adult
Solihull MBC,Adult Social Care,Adult Social Care,Anchor Trust,23/04/2020,,-2789.24,ASC - Residential Care Permanent,321000 - Social Community Care Supplies & Services - Adult
Solihull MBC,Public Health & Commissioning,Central Services to the Public,Andaine Ltd,30/04/2020,,10000.00,Grant & Subscription (SCITT),Not Yet Classified
Solihull MBC,Children's Services - DSG Central.,Children & Education Services,Angels Daycare,09/04/2020,,13156.35,Grant & Subscription (SCITT),321100 - Social Community Care Supplies & Services - Children
Solihull MBC,Public Health & Commissioning,Central Services to the Public,Angels Healthcare Ltd,08/04/2020,,10000.00,Grant & Subscription (SCITT),Not Yet Classified
Solihull MBC,Adult Social Care,Adult Social Care,Angels Healthcare Ltd,29/04/2020,,397.62,ASC - Domiciliary Care,321000 - Social Community Care Supplies & Services - Adult
Solihull MBC,Adult Social Care,Adult Social Care,Angels Healthcare Ltd,02/04/2020,,875.52,ASC - Domiciliary Care,321000 - Social Community Care Supplies & Services - Adult
Solihull MBC,Adult Social Care,Adult Social Care,Angels Healthcare Ltd,02/04/2020,,875.52,ASC - Domiciliary Care,321000 - Social Community Care Supplies & Services - Adult
Solihull MBC,Adult Social Care,Adult Social Care,Angels Healthcare Ltd,29/04/2020,,723.33,ASC - Domiciliary Care,321000 - Social Community Care Supplies & Services - Adult
Solihull MBC,Adult Social Care,Adult Social Care,Angels Healthcare Ltd,29/04/2020,,723.33,ASC - Domiciliary Care,321000 - Social Community Care Supplies & Services - Adult
Solihull MBC,Adult Social Care,Adult Social Care,Angels Healthcare Ltd,02/04/2020,,430.08,ASC - Domiciliary Care,321000 - Social Community Care Supplies & Services - Adult
Solihull MBC,Adult Social Care,Adult Social Care,Angels Healthcare Ltd,29/04/2020,,355.32,ASC - Domiciliary Care,321000 - Social Community Care Supplies & Services - Adult
Solihull MBC,Adult Social Care,Adult Social Care,Angels Healthcare Ltd,29/04/2020,,566.82,ASC - Domiciliary Care,321000 - Social Community Care Supplies & Services - Adult
Solihull MBC,Adult Social Care,Adult Social Care,Angels Healthcare Ltd,29/04/2020,,566.82,ASC - Domiciliary Care,321000 - Social Community Care Supplies & Services - Adult
Solihull MBC,Adult Social Care,Adult Social Care,Angels Healthcare Ltd,02/04/2020,,921.60,ASC - Domiciliary Care,321000 - Social Community Care Supplies & Services - Adult
Solihull MBC,Adult Social Care,Adult Social Care,Angels Healthcare Ltd,02/04/2020,,645.12,ASC - Domiciliary Care,321000 - Social Community Care Supplies & Services - Adult
Solihull MBC,Adult Social Care,Adult Social Care,Angels Healthcare Ltd,29/04/2020,,532.98,ASC - Domiciliary Care,321000 - Social Community Care Supplies & Services - Adult
Solihull MBC,Adult Social Care,Adult Social Care,Angels Healthcare Ltd,02/04/2020,,460.80,ASC - Domiciliary Care,321000 - Social Community Care Supplies & Services - Adult
Solihull MBC,Adult Social Care,Adult Social Care,Angels Healthcare Ltd,29/04/2020,,380.70,ASC - Domiciliary Care,321000 - Social Community Care Supplies & Services - Adult
Solihull MBC,Adult Social Care,Adult Social Care,Angels Healthcare Ltd,02/04/2020,,291.84,ASC - Domiciliary Care,321000 - Social Community Care Supplies & Services - Adult
Solihull MBC,Adult Social Care,Adult Social Care,Angels Healthcare Ltd,02/04/2020,,460.80,ASC - Domiciliary Care,321000 - Social Community Care Supplies & Services - Adult
Solihull MBC,Adult Social Care,Adult Social Care,Angels Healthcare Ltd,02/04/2020,,460.80,ASC - Domiciliary Care,321000 - Social Community Care Supplies & Services - Adult
Solihull MBC,Adult Social Care,Adult Social Care,Angels Healthcare Ltd,29/04/2020,,380.70,ASC - Domiciliary Care,321000 - Social Community Care Supplies & Services - Adult
Solihull MBC,Adult Social Care,Adult Social Care,Angels Healthcare Ltd,29/04/2020,,380.70,ASC - Domiciliary Care,321000 - Social Community Care Supplies & Services - Adult
Solihull MBC,Adult Social Care,Adult Social Care,Angels Healthcare Ltd,02/04/2020,,752.64,ASC - Domiciliary Care,321000 - Social Community Care Supplies & Services - Adult
Solihull MBC,Adult Social Care,Adult Social Care,Angels Healthcare Ltd,29/04/2020,,621.81,ASC - Domiciliary Care,321000 - Social Community Care Supplies & Services - Adult
Solihull MBC,Adult Social Care,Adult Social Care,Angels Healthcare Ltd,02/04/2020,,1720.32,ASC - Domiciliary Care,321000 - Social Community Care Supplies & Services - Adult
Solihull MBC,Adult Social Care,Adult Social Care,Angels Healthcare Ltd,29/04/2020,,307.20,ASC - Domiciliary Care,321000 - Social Community Care Supplies & Services - Adult
Solihull MBC,Adult Social Care,Adult Social Care,Angels Healthcare Ltd,29/04/2020,,1421.28,ASC - Domiciliary Care,321000 - Social Community Care Supplies & Services - Adult
Solihull MBC,Adult Social Care,Adult Social Care,Angels Healthcare Ltd,02/04/2020,,430.08,ASC - Domiciliary Care,321000 - Social Community Care Supplies & Services - Adult
Solihull MBC,Adult Social Care,Adult Social Care,Angels Healthcare Ltd,29/04/2020,,355.32,ASC - Domiciliary Care,321000 - Social Community Care Supplies & Services - Adult
Solihull MBC,Adult Social Care,Adult Social Care,Angels Healthcare Ltd,02/04/2020,,860.16,ASC - Domiciliary Care,321000 - Social Community Care Supplies & Services - Adult
Solihull MBC,Adult Social Care,Adult Social Care,Angels Healthcare Ltd,29/04/2020,,710.64,ASC - Domiciliary Care,321000 - Social Community Care Supplies & Services - Adult
Solihull MBC,Adult Social Care,Adult Social Care,Angels Healthcare Ltd,02/04/2020,,645.12,ASC - Domiciliary Care,321000 - Social Community Care Supplies & Services - Adult
Solihull MBC,Adult Social Care,Adult Social Care,Angels Healthcare Ltd,02/04/2020,,645.12,ASC - Domiciliary Care,321000 - Social Community Care Supplies & Services - Adult
Solihull MBC,Adult Social Care,Adult Social Care,Angels Healthcare Ltd,29/04/2020,,532.98,ASC - Domiciliary Care,321000 - Social Community Care Supplies & Services - Adult
Solihull MBC,Adult Social Care,Adult Social Care,Angels Healthcare Ltd,29/04/2020,,532.98,ASC - Domiciliary Care,321000 - Social Community Care Supplies & Services - Adult
Solihull MBC,Adult Social Care,Adult Social Care,Angels Healthcare Ltd,02/04/2020,,322.56,ASC - Domiciliary Care,321000 - Social Community Care Supplies & Services - Adult
Solihull MBC,Adult Social Care,Adult Social Care,Angels Healthcare Ltd,29/04/2020,,266.49,ASC - Domiciliary Care,321000 - Social Community Care Supplies & Services - Adult
Solihull MBC,Adult Social Care,Adult Social Care,Angels Healthcare Ltd,29/04/2020,,329.94,ASC - Domiciliary Care,321000 - Social Community Care Supplies & Services - Adult
Solihull MBC,Adult Social Care,Adult Social Care,Angels Healthcare Ltd,29/04/2020,,456.84,ASC - Domiciliary Care,321000 - Social Community Care Supplies & Services - Adult
Solihull MBC,Adult Social Care,Adult Social Care,Angels Healthcare Ltd,29/04/2020,,456.84,ASC - Domiciliary Care,321000 - Social Community Care Supplies & Services - Adult
Solihull MBC,Adult Social Care,Adult Social Care,Angels Healthcare Ltd,29/04/2020,,473.76,ASC - Domiciliary Care,321000 - Social Community Care Supplies & Services - Adult
Solihull MBC,Adult Social Care,Adult Social Care,Angels Healthcare Ltd,02/04/2020,,1451.52,ASC - Domiciliary Care,321000 - Social Community Care Supplies & Services - Adult
Solihull MBC,Adult Social Care,Adult Social Care,Angels Healthcare Ltd,29/04/2020,,345.60,ASC - Domiciliary Care,321000 - Social Community Care Supplies & Services - Adult
Solihull MBC,Adult Social Care,Adult Social Care,Angels Healthcare Ltd,29/04/2020,,1598.94,ASC - Domiciliary Care,321000 - Social Community Care Supplies & Services - Adult
Solihull MBC,Adult Social Care,Adult Social Care,Angels Healthcare Ltd,02/04/2020,,322.56,ASC - Domiciliary Care,321000 - Social Community Care Supplies & Services - Adult
Solihull MBC,Adult Social Care,Adult Social Care,Angels Healthcare Ltd,02/04/2020,,537.60,ASC - Domiciliary Care,321000 - Social Community Care Supplies & Services - Adult
Solihull MBC,Adult Social Care,Adult Social Care,Angels Healthcare Ltd,29/04/2020,,266.49,ASC - Domiciliary Care,321000 - Social Community Care Supplies & Services - Adult
Solihull MBC,Adult Social Care,Adult Social Care,Angels Healthcare Ltd,29/04/2020,,444.15,ASC - Domiciliary Care,321000 - Social Community Care Supplies & Services - Adult
Solihull MBC,Adult Social Care,Adult Social Care,Angels Healthcare Ltd,02/04/2020,,1935.36,ASC - Domiciliary Care,321000 - Social Community Care Supplies & Services - Adult
Solihull MBC,Adult Social Care,Adult Social Care,Angels Healthcare Ltd,29/04/2020,,345.60,ASC - Domiciliary Care,321000 - Social Community Care Supplies & Services - Adult
Solihull MBC,Adult Social Care,Adult Social Care,Angels Healthcare Ltd,29/04/2020,,1598.94,ASC - Domiciliary Care,321000 - Social Community Care Supplies & Services - Adult
Solihull MBC,Public Health & Commissioning,Central Services to the Public,Anglian Windows Ltd,23/04/2020,,25000.00,Grant & Subscription (SCITT),Not Yet Classified
Solihull MBC,Adult Social Care,Adult Social Care,Anita Stone Court,23/04/2020,,520.10,ASC - Nursing Care Permanent,Not Yet Classified
Solihull MBC,Adult Social Care,Adult Social Care,Anita Stone Court,23/04/2020,,2247.21,ASC - Nursing Care Permanent,Not Yet Classified
Solihull MBC,Public Health & Commissioning,Central Services to the Public,Ann Hammond Residential Lettings Ltd,08/04/2020,,10000.00,Grant & Subscription (SCITT),Not Yet Classified
Solihull MBC,Resources,Central Services to the Public,Annodata Business Communications,01/04/2020,,69580.92,General Office Expenses,Not Yet Classified
Solihull MBC,Resources,Central Services to the Public,Annodata Business Communications,20/04/2020,,65571.14,General Office Expenses,Not Yet Classified
Solihull MBC,Resources,Central Services to the Public,Annodata Business Communications,23/04/2020,,65571.12,General Office Expenses,Not Yet Classified
Solihull MBC,Resources,Central Services to the Public,Annodata Business Communications,20/04/2020,,-69580.92,General Office Expenses,Not Yet Classified
Solihull MBC,Resources,Central Services to the Public,Annodata Business Communications,20/04/2020,,-65571.12,General Office Expenses,Not Yet Classified
Solihull MBC,Adult Social Care,Cultural & Related Services,Annodata Business Communications,01/04/2020,,1639.87,Furniture & Equipment,Not Yet Classified
Solihull MBC,Public Health & Commissioning,Central Services to the Public,Anthony Feeney Financial Services,24/04/2020,,10000.00,Grant & Subscription (SCITT),Not Yet Classified
Solihull MBC,Public Health & Commissioning,Central Services to the Public,Anthonyjohnhairsalon,21/04/2020,,10000.00,Grant & Subscription (SCITT),Not Yet Classified
Solihull MBC,Public Health & Commissioning,Central Services to the Public,Antler Ltd,03/04/2020,,25000.00,Grant & Subscription (SCITT),Not Yet Classified
Solihull MBC,Public Health & Commissioning,Central Services to the Public,APC Enterprises (Midlands) Ltd,29/04/2020,,10000.00,Grant & Subscription (SCITT),Not Yet Classified
Solihull MBC,Adult Social Care,Adult Social Care,Apetito Ltd,07/04/2020,,254.97,Catering Provisions,321000 - Social Community Care Supplies & Services - Adult
Solihull MBC,Children's Services & Skills,Children & Education Services,Apollo Home Healthcare Ltd,27/04/2020,,304.00,Clients Expenses,Not Yet Classified
Solihull MBC,Economy and Infrastructure,Cultural & Related Services,Apse,28/04/2020,,249.00,Other Contracted Services,261510 - Human Resources - Training & Conferences - Conferences
Solihull MBC,Economy and Infrastructure,Cultural & Related Services,Apse,06/04/2020,,3330.00,Other Contracted Services,261510 - Human Resources - Training & Conferences - Conferences
Solihull MBC,Public Health & Commissioning,Central Services to the Public,Aquasport Midlands,07/04/2020,,10000.00,Grant & Subscription (SCITT),Not Yet Classified
Solihull MBC,Public Health & Commissioning,Central Services to the Public,ARC Benefits Limited,09/04/2020,,10000.00,Grant & Subscription (SCITT),Not Yet Classified
Solihull MBC,Children's Services & Skills,Children & Education Services,Archways Care Ltd,24/04/2020,,17116.00,Other Contracted Services,Not Yet Classified
Solihull MBC,Children's Services - DSG Central.,Children & Education Services,Arden Academy Trust,02/04/2020,,-2070.63,Agency Staff,Not Yet Classified
Solihull MBC,Children's Services - DSG Central.,Children & Education Services,Arden Academy Trust,02/04/2020,,-2070.63,Agency Staff,Not Yet Classified
Solihull MBC,Children's Services - DSG Central.,Children & Education Services,Arden Academy Trust,02/04/2020,,-2244.82,Agency Staff,Not Yet Classified
Solihull MBC,Children's Services - DSG Central.,Children & Education Services,Arden Academy Trust,02/04/2020,,-2128.69,Agency Staff,Not Yet Classified
Solihull MBC,Children's Services - DSG Central.,Children & Education Services,Arden Academy Trust,02/04/2020,,-2159.82,Agency Staff,Not Yet Classified
Solihull MBC,Children's Services - DSG Central.,Children & Education Services,Arden Academy Trust,02/04/2020,,-2128.69,Agency Staff,Not Yet Classified
Solihull MBC,Public Health & Commissioning,Central Services to the Public,Arden Dental Lab Ltd,15/04/2020,,10000.00,Grant & Subscription (SCITT),Not Yet Classified
Solihull MBC,Public Health & Commissioning,Central Services to the Public,Arden House Hotel,14/04/2020,,10000.00,Grant & Subscription (SCITT),Not Yet Classified
Solihull MBC,Public Health & Commissioning,Central Services to the Public,Arden Kitchens,24/04/2020,,10000.00,Grant & Subscription (SCITT),Not Yet Classified
Solihull MBC,Adult Social Care,Adult Social Care,Ardenlea Court,23/04/2020,,524.60,ASC - Nursing Care Permanent,321000 - Social Community Care Supplies & Services - Adult
Solihull MBC,Adult Social Care,Adult Social Care,Ardenlea Court,23/04/2020,,2269.89,ASC - Nursing Care Permanent,321000 - Social Community Care Supplies & Services - Adult
Solihull MBC,Adult Social Care,Adult Social Care,Ardenlea Court,23/04/2020,,432.05,ASC - Nursing Care Permanent,321000 - Social Community Care Supplies & Services - Adult
Solihull MBC,Adult Social Care,Adult Social Care,Ardenlea Court,23/04/2020,,1877.40,ASC - Nursing Care Permanent,321000 - Social Community Care Supplies & Services - Adult
Solihull MBC,Adult Social Care,Adult Social Care,Ardenlea Grove Nursing Home,23/04/2020,,472.85,ASC - Residential Care Respite,321000 - Social Community Care Supplies & Services - Adult
Solihull MBC,Adult Social Care,Adult Social Care,Ardenlea Grove Nursing Home,23/04/2020,,2048.76,ASC - Residential Care Respite,321000 - Social Community Care Supplies & Services - Adult
Solihull MBC,Adult Social Care,Adult Social Care,Ardenlea Grove Nursing Home,23/04/2020,,472.85,ASC - Nursing Care Respite,321000 - Social Community Care Supplies & Services - Adult
Solihull MBC,Adult Social Care,Adult Social Care,Ardenlea Grove Nursing Home,23/04/2020,,2048.76,ASC - Nursing Care Respite,321000 - Social Community Care Supplies & Services - Adult
Solihull MBC,Adult Social Care,Adult Social Care,Ardenlea Grove Nursing Home,23/04/2020,,500.00,ASC - Nursing Care Permanent,321000 - Social Community Care Supplies & Services - Adult
Solihull MBC,Adult Social Care,Adult Social Care,Ardenlea Grove Nursing Home,23/04/2020,,2162.79,ASC - Nursing Care Permanent,321000 - Social Community Care Supplies & Services - Adult
Solihull MBC,Adult Social Care,Adult Social Care,Ardenlea Grove Nursing Home,23/04/2020,,472.85,ASC - Residential Care Permanent,321000 - Social Community Care Supplies & Services - Adult
Solihull MBC,Adult Social Care,Adult Social Care,Ardenlea Grove Nursing Home,23/04/2020,,2048.76,ASC - Residential Care Permanent,321000 - Social Community Care Supplies & Services - Adult
Solihull MBC,Adult Social Care,Adult Social Care,Ardenlea Grove Nursing Home,23/04/2020,,260.74,ASC - Nursing Care Permanent,321000 - Social Community Care Supplies & Services - Adult
Solihull MBC,Adult Social Care,Adult Social Care,Ardenlea Grove Nursing Home,23/04/2020,,651.86,ASC - Nursing Care Permanent,321000 - Social Community Care Supplies & Services - Adult
Solihull MBC,Adult Social Care,Adult Social Care,Ardenlea Grove Nursing Home,23/04/2020,,2800.56,ASC - Nursing Care Permanent,321000 - Social Community Care Supplies & Services - Adult
Solihull MBC,Adult Social Care,Adult Social Care,Ardenlea Grove Nursing Home,23/04/2020,,524.54,ASC - Nursing Care Permanent,321000 - Social Community Care Supplies & Services - Adult
Solihull MBC,Adult Social Care,Adult Social Care,Ardenlea Grove Nursing Home,23/04/2020,,2269.68,ASC - Nursing Care Permanent,321000 - Social Community Care Supplies & Services - Adult
Solihull MBC,Adult Social Care,Adult Social Care,Ardenlea Grove Nursing Home,23/04/2020,,285.12,ASC - Nursing Care Permanent,321000 - Social Community Care Supplies & Services - Adult
Solihull MBC,Adult Social Care,Adult Social Care,Ardenlea Grove Nursing Home,23/04/2020,,712.80,ASC - Nursing Care Permanent,321000 - Social Community Care Supplies & Services - Adult
Solihull MBC,Adult Social Care,Adult Social Care,Ardenlea Grove Nursing Home,23/04/2020,,1311.57,ASC - Nursing Care Permanent,321000 - Social Community Care Supplies & Services - Adult
Solihull MBC,Adult Social Care,Adult Social Care,Ardenlea Grove Nursing Home,23/04/2020,,432.05,ASC - Nursing Care Permanent,321000 - Social Community Care Supplies & Services - Adult
Solihull MBC,Adult Social Care,Adult Social Care,Ardenlea Grove Nursing Home,23/04/2020,,1877.40,ASC - Nursing Care Permanent,321000 - Social Community Care Supplies & Services - Adult
Solihull MBC,Adult Social Care,Adult Social Care,Ardenlea Grove Nursing Home,23/04/2020,,596.03,ASC - Nursing Care Permanent,321000 - Social Community Care Supplies & Services - Adult
Solihull MBC,Adult Social Care,Adult Social Care,Ardenlea Grove Nursing Home,23/04/2020,,2566.20,ASC - Nursing Care Permanent,321000 - Social Community Care Supplies & Services - Adult
Solihull MBC,Children's Services & Skills,Children & Education Services,Argos Ltd,24/04/2020,Card Transaction,210.92,Purchase Card Statement Summary,169999 - Domestic Goods - Not Elsewhere Classified
Solihull MBC,Children's Services & Skills,Children & Education Services,Argos Ltd,24/04/2020,Card Transaction,222.95,Purchase Card Statement Summary,169999 - Domestic Goods - Not Elsewhere Classified
Solihull MBC,Children's Services & Skills,Children & Education Services,Argos Ltd,24/04/2020,Card Transaction,279.99,Purchase Card Statement Summary,169999 - Domestic Goods - Not Elsewhere Classified
Solihull MBC,Children's Services & Skills,Children & Education Services,Argos Ltd,24/04/2020,Card Transaction,303.94,Purchase Card Statement Summary,169999 - Domestic Goods - Not Elsewhere Classified
Solihull MBC,Children's Services & Skills,Children & Education Services,Argos Ltd,24/04/2020,Card Transaction,318.95,Purchase Card Statement Summary,169999 - Domestic Goods - Not Elsewhere Classified
Solihull MBC,Resources,Cultural & Related Services,Aries Entertainment Ltd,08/04/2020,,575.00,Other Fees,290000 - Arts & Leisure Services
Solihull MBC,Public Health & Commissioning,Central Services to the Public,Aristocraft Kitchens And Bedrooms Ltd,07/04/2020,,10000.00,Grant & Subscription (SCITT),Not Yet Classified
Solihull MBC,Adult Social Care,Adult Social Care,Armac Demolition Ltd,01/04/2020,,39596.50,Contractors,"390000 - Works - Construction, Repair & Maintenance"
Solihull MBC,Public Health & Commissioning,Central Services to the Public,Armagaze Windows Ltd,21/04/2020,,10000.00,Grant & Subscription (SCITT),Not Yet Classified
Solihull MBC,Public Health & Commissioning,Central Services to the Public,Aroma Widney Road Ltd,15/04/2020,,10000.00,Grant & Subscription (SCITT),Not Yet Classified
Solihull MBC,Children's Services - DSG Central.,Children & Education Services,Arrow County Supplies,01/04/2020,,155.76,Cleaning,130000 - Cleaning & Janitorial
Solihull MBC,Children's Services - DSG Central.,Children & Education Services,Arrow County Supplies,01/04/2020,,147.40,Cleaning,130000 - Cleaning & Janitorial
Solihull MBC,Children's Services - DSG Central.,Children & Education Services,Arrow County Supplies,01/04/2020,,774.95,Cleaning,130000 - Cleaning & Janitorial
Solihull MBC,Children's Services - DSG Central.,Children & Education Services,Arrow County Supplies,01/04/2020,,299.64,Cleaning,130000 - Cleaning & Janitorial
Solihull MBC,Children's Services - DSG Central.,Children & Education Services,Arrow County Supplies,01/04/2020,,1228.92,Cleaning,130000 - Cleaning & Janitorial
Solihull MBC,Children's Services - DSG Central.,Children & Education Services,Arrow County Supplies,01/04/2020,,231.00,Cleaning,130000 - Cleaning & Janitorial
Solihull MBC,Children's Services - DSG Central.,Children & Education Services,Arrow County Supplies,01/04/2020,,662.20,Cleaning,130000 - Cleaning & Janitorial
Solihull MBC,Children's Services - DSG Central.,Children & Education Services,Arrow County Supplies,01/04/2020,,957.00,Cleaning,130000 - Cleaning & Janitorial
Solihull MBC,Children's Services - DSG Central.,Children & Education Services,Arrow County Supplies,01/04/2020,,564.30,Cleaning,130000 - Cleaning & Janitorial
Solihull MBC,Children's Services - DSG Central.,Children & Education Services,Arrow County Supplies,01/04/2020,,94.60,Cleaning,130000 - Cleaning & Janitorial
Solihull MBC,Children's Services - DSG Central.,Children & Education Services,Arrow County Supplies,01/04/2020,,56.76,Cleaning,130000 - Cleaning & Janitorial
Solihull MBC,Children's Services - DSG Central.,Children & Education Services,Arrow County Supplies,01/04/2020,,172.00,Cleaning,130000 - Cleaning & Janitorial
Solihull MBC,Children's Services - DSG Central.,Children & Education Services,Arrow County Supplies,01/04/2020,,3080.00,Cleaning,130000 - Cleaning & Janitorial
Solihull MBC,Children's Services - DSG Central.,Children & Education Services,Arrow County Supplies,01/04/2020,,172.00,Cleaning,130000 - Cleaning & Janitorial
Solihull MBC,Children's Services - DSG Central.,Children & Education Services,Arrow County Supplies,01/04/2020,,172.00,Cleaning,130000 - Cleaning & Janitorial
Solihull MBC,Children's Services - DSG Central.,Children & Education Services,Arrow County Supplies,01/04/2020,,10.80,Cleaning,130000 - Cleaning & Janitorial
Solihull MBC,Children's Services - DSG Central.,Children & Education Services,Arrow County Supplies,01/04/2020,,145.10,Cleaning,130000 - Cleaning & Janitorial
Solihull MBC,Children's Services - DSG Central.,Children & Education Services,Arrow County Supplies,01/04/2020,,84.00,Cleaning,130000 - Cleaning & Janitorial
Solihull MBC,Children's Services - DSG Central.,Children & Education Services,Arrow County Supplies,01/04/2020,,84.00,Cleaning,130000 - Cleaning & Janitorial
Solihull MBC,Children's Services - DSG Central.,Children & Education Services,Arrow County Supplies,01/04/2020,,204.40,Cleaning,130000 - Cleaning & Janitorial
Solihull MBC,Children's Services - DSG Central.,Children & Education Services,Arrow County Supplies,03/04/2020,,675.00,Cleaning,130000 - Cleaning & Janitorial
Solihull MBC,Children's Services - DSG Central.,Children & Education Services,Arrow County Supplies,07/04/2020,,172.00,Cleaning,130000 - Cleaning & Janitorial
Solihull MBC,Children's Services - DSG Central.,Children & Education Services,Arrow County Supplies,07/04/2020,,172.00,Cleaning,130000 - Cleaning & Janitorial
Solihull MBC,Children's Services - DSG Central.,Children & Education Services,Arrow County Supplies,21/04/2020,,1350.00,Cleaning,130000 - Cleaning & Janitorial
Solihull MBC,Children's Services - DSG Central.,Children & Education Services,Arrow County Supplies,24/04/2020,,688.00,Cleaning,130000 - Cleaning & Janitorial
Solihull MBC,Children's Services - DSG Central.,Children & Education Services,Arrow County Supplies,24/04/2020,,971.00,Cleaning,130000 - Cleaning & Janitorial
Solihull MBC,Children's Services - DSG Central.,Children & Education Services,Arrow County Supplies,24/04/2020,,85.00,Cleaning,130000 - Cleaning & Janitorial
Solihull MBC,Children's Services - DSG Central.,Children & Education Services,Arrow County Supplies,24/04/2020,,105.00,Cleaning,130000 - Cleaning & Janitorial
Solihull MBC,Children's Services - DSG Central.,Children & Education Services,Arrow County Supplies,24/04/2020,,1416.00,Cleaning,130000 - Cleaning & Janitorial
Solihull MBC,Children's Services - DSG Central.,Children & Education Services,Arrow County Supplies,28/04/2020,,212.75,Cleaning,130000 - Cleaning & Janitorial
Solihull MBC,Adult Social Care,Corporate & Democratic Core,Arthur Brett Catering Ltd,14/04/2020,,603.80,Catering Provisions,110000 - Catering
Solihull MBC,Adult Social Care,Corporate & Democratic Core,Arthur Brett Catering Ltd,15/04/2020,,754.40,Catering Provisions,110000 - Catering
Solihull MBC,Adult Social Care,Corporate & Democratic Core,Arthur Brett Catering Ltd,20/04/2020,,436.30,Catering Provisions,110000 - Catering
Solihull MBC,Adult Social Care,Corporate & Democratic Core,Arthur Brett Catering Ltd,22/04/2020,,960.90,Catering Provisions,110000 - Catering
Solihull MBC,Adult Social Care,Corporate & Democratic Core,Arthur Brett Catering Ltd,28/04/2020,,711.80,Catering Provisions,110000 - Catering
Solihull MBC,Resources,Children & Education Services,Arthur Brett Catering Ltd,29/04/2020,,314.28,Catering Provisions,110000 - Catering
Solihull MBC,Resources,Corporate & Democratic Core,Arthur J Gallagher Insurance Brokers Ltd,24/04/2020,,6720.00,Liability Insurance,Not Yet Classified
Solihull MBC,Public Health & Commissioning,Central Services to the Public,Artico Hair Limited,07/04/2020,,10000.00,Grant & Subscription (SCITT),Not Yet Classified
Solihull MBC,Public Health & Commissioning,Central Services to the Public,Artico Salon Ltd,09/04/2020,,25000.00,Grant & Subscription (SCITT),Not Yet Classified
Solihull MBC,Children's Services & Skills,Children & Education Services,Asda Stores 5881,12/03/2020,Card Transaction,300.00,Clients Expenses,111200 - Catering - Food & Beverages
Solihull MBC,Public Health & Commissioning,Central Services to the Public,Ash And Bailey,14/04/2020,,10000.00,Grant & Subscription (SCITT),Not Yet Classified
Solihull MBC,Adult Social Care,Adult Social Care,Ashdale Care Homes Ltd,23/04/2020,,514.30,ASC - Residential Care Permanent,321000 - Social Community Care Supplies & Services - Adult
Solihull MBC,Adult Social Care,Adult Social Care,Ashdale Care Homes Ltd,23/04/2020,,2216.13,ASC - Residential Care Permanent,321000 - Social Community Care Supplies & Services - Adult
Solihull MBC,Adult Social Care,Adult Social Care,Ashdale Care Homes Ltd,23/04/2020,,442.86,ASC - Residential Care Permanent,321000 - Social Community Care Supplies & Services - Adult
Solihull MBC,Adult Social Care,Adult Social Care,Ashdale Care Homes Ltd,23/04/2020,,1916.04,ASC - Residential Care Permanent,321000 - Social Community Care Supplies & Services - Adult
Solihull MBC,Adult Social Care,Adult Social Care,Ashdale Care Homes Ltd,23/04/2020,,514.29,ASC - Residential Care Permanent,321000 - Social Community Care Supplies & Services - Adult
Solihull MBC,Adult Social Care,Adult Social Care,Ashdale Care Homes Ltd,23/04/2020,,2216.13,ASC - Residential Care Permanent,321000 - Social Community Care Supplies & Services - Adult
Solihull MBC,Economy and Infrastructure,Environmental and Regulatory Services,Ashdown Supplies,20/04/2020,,5750.00,Other Contracted Services,120000 - Cemetery & Crematorium 
Solihull MBC,Public Health & Commissioning,Central Services to the Public,Ashtech Ltd,15/04/2020,,10000.00,Grant & Subscription (SCITT),Not Yet Classified
Solihull MBC,Public Health & Commissioning,Central Services to the Public,ASJ Financial Accounting Services Ltd,09/04/2020,,10000.00,Grant & Subscription (SCITT),Not Yet Classified
Solihull MBC,Public Health & Commissioning,Central Services to the Public,ASJ Financial Services Ltd,03/04/2020,,25000.00,Grant & Subscription (SCITT),Not Yet Classified
Solihull MBC,Public Health & Commissioning,Central Services to the Public,Ask Outlets Ltd,08/04/2020,,25000.00,Grant & Subscription (SCITT),Not Yet Classified
Solihull MBC,Adult Social Care,Adult Social Care,Aspects Care Ltd,29/04/2020,,2342.98,ASC - Supported Living Care Costs,Not Yet Classified
Solihull MBC,Adult Social Care,Adult Social Care,Aspects Care Ltd,29/04/2020,,2005.71,ASC - Supported Living Care Costs,Not Yet Classified
Solihull MBC,Adult Social Care,Adult Social Care,Aspects Care Ltd,29/04/2020,,260.00,ASC - Supported Living Care Costs,Not Yet Classified
Solihull MBC,Adult Social Care,Adult Social Care,Aspects Care Ltd,29/04/2020,,1123.20,ASC - Supported Living Care Costs,Not Yet Classified
Solihull MBC,Adult Social Care,Adult Social Care,Aspects Care Ltd,09/04/2020,,29000.00,ASC - Supported Living Care Costs,Not Yet Classified
Solihull MBC,Adult Social Care,Adult Social Care,Aspects Care Ltd,29/04/2020,,1109.83,ASC - Supported Living Care Costs,Not Yet Classified
Solihull MBC,Adult Social Care,Adult Social Care,Aspects Care Ltd,29/04/2020,,1925.49,ASC - Supported Living Care Costs,Not Yet Classified
Solihull MBC,Adult Social Care,Adult Social Care,Aspects Care Ltd,29/04/2020,,695.31,ASC - Supported Living Care Costs,Not Yet Classified
Solihull MBC,Adult Social Care,Adult Social Care,Aspects Care Ltd,29/04/2020,,708.69,ASC - Supported Living Care Costs,Not Yet Classified
Solihull MBC,Adult Social Care,Adult Social Care,Aspects Care Ltd,29/04/2020,,1337.14,ASC - Supported Living Care Costs,Not Yet Classified
Solihull MBC,Adult Social Care,Adult Social Care,Aspects Care Ltd,29/04/2020,,297.47,ASC - Supported Living Care Costs,Not Yet Classified
Solihull MBC,Adult Social Care,Adult Social Care,Aspects Care Ltd,29/04/2020,,3867.33,ASC - Supported Living Care Costs,Not Yet Classified
Solihull MBC,Adult Social Care,Adult Social Care,Aspects Care Ltd,29/04/2020,,260.00,ASC - Supported Living Care Costs,Not Yet Classified
Solihull MBC,Adult Social Care,Adult Social Care,Aspects Care Ltd,29/04/2020,,1604.57,ASC - Supported Living Care Costs,Not Yet Classified
Solihull MBC,Adult Social Care,Adult Social Care,Aspects Care Ltd,02/04/2020,,9555.84,ASC - Supported Living Care Costs,Not Yet Classified
Solihull MBC,Adult Social Care,Adult Social Care,Aspects Care Ltd,29/04/2020,,682.53,ASC - Supported Living Care Costs,Not Yet Classified
Solihull MBC,Adult Social Care,Adult Social Care,Aspects Care Ltd,29/04/2020,,8873.31,ASC - Supported Living Care Costs,Not Yet Classified
Solihull MBC,Adult Social Care,Adult Social Care,Aspects Care Ltd,29/04/2020,,464.36,ASC - Supported Living Care Costs,Not Yet Classified
Solihull MBC,Adult Social Care,Adult Social Care,Aspects Care Ltd,29/04/2020,,1256.91,ASC - Supported Living Care Costs,Not Yet Classified
Solihull MBC,Adult Social Care,Adult Social Care,Aspects Care Ltd,29/04/2020,,1818.51,ASC - Supported Living Care Costs,Not Yet Classified
Solihull MBC,Adult Social Care,Adult Social Care,Aspects Care Ltd,29/04/2020,,775.54,ASC - Supported Living Care Costs,Not Yet Classified
Solihull MBC,Adult Social Care,Adult Social Care,Aspects Care Ltd,29/04/2020,,802.29,ASC - Supported Living Care Costs,Not Yet Classified
Solihull MBC,Adult Social Care,Adult Social Care,Aspects Care Ltd,29/04/2020,,936.00,ASC - Supported Living Care Costs,Not Yet Classified
Solihull MBC,Adult Social Care,Adult Social Care,Aspects Care Ltd,29/04/2020,,855.77,ASC - Supported Living Care Costs,Not Yet Classified
Solihull MBC,Adult Social Care,Adult Social Care,Aspects Care Ltd,29/04/2020,,695.31,ASC - Supported Living Care Costs,Not Yet Classified
Solihull MBC,Adult Social Care,Adult Social Care,Aspects Care Ltd,29/04/2020,,1417.37,ASC - Supported Living Care Costs,Not Yet Classified
Solihull MBC,Adult Social Care,Adult Social Care,Aspects Care Ltd,29/04/2020,,464.36,ASC - Supported Living Care Costs,Not Yet Classified
Solihull MBC,Adult Social Care,Adult Social Care,Aspects Care Ltd,29/04/2020,,2874.86,ASC - Supported Living Care Costs,Not Yet Classified
Solihull MBC,Adult Social Care,Adult Social Care,Aspects Care Ltd,02/04/2020,,691.20,ASC - Supported Living Care Costs,Not Yet Classified
Solihull MBC,Adult Social Care,Adult Social Care,Aspects Care Ltd,29/04/2020,,641.83,ASC - Supported Living Care Costs,Not Yet Classified
Solihull MBC,Adult Social Care,Adult Social Care,Aspects Care Ltd,29/04/2020,,2206.29,ASC - Supported Living Care Costs,Not Yet Classified
Solihull MBC,Adult Social Care,Adult Social Care,Aspects Care Ltd,29/04/2020,,464.36,ASC - Supported Living Care Costs,Not Yet Classified
Solihull MBC,Adult Social Care,Adult Social Care,Aspects Care Ltd,29/04/2020,,1123.20,ASC - Supported Living Care Costs,Not Yet Classified
Solihull MBC,Adult Social Care,Adult Social Care,Aspects Care Ltd,29/04/2020,,2610.41,ASC - Supported Living Care Costs,Not Yet Classified
Solihull MBC,Adult Social Care,Adult Social Care,Aspects Care Ltd,29/04/2020,,829.03,ASC - Supported Living Care Costs,Not Yet Classified
Solihull MBC,Adult Social Care,Adult Social Care,Aspects Care Ltd,29/04/2020,,708.69,ASC - Supported Living Care Costs,Not Yet Classified
Solihull MBC,Adult Social Care,Adult Social Care,Aspects Care Ltd,29/04/2020,,1711.54,ASC - Supported Living Care Costs,Not Yet Classified
Solihull MBC,Adult Social Care,Adult Social Care,Aspects Care Ltd,29/04/2020,,695.31,ASC - Supported Living Care Costs,Not Yet Classified
Solihull MBC,Adult Social Care,Adult Social Care,Aspects Care Ltd,29/04/2020,,802.29,ASC - Supported Living Care Costs,Not Yet Classified
Solihull MBC,Public Health & Commissioning,Central Services to the Public,Asprey Management Solutions Ltd,15/04/2020,,10000.00,Grant & Subscription (SCITT),Not Yet Classified
Solihull MBC,Children's Services & Skills,Children & Education Services,Aston Childrens Care,08/04/2020,,15199.80,Clients Expenses,Not Yet Classified
Solihull MBC,Children's Services & Skills,Children & Education Services,Aston Childrens Care,08/04/2020,,14399.84,Clients Expenses,Not Yet Classified
Solihull MBC,Public Health & Commissioning,Central Services to the Public,ATF Screeds Ltd,08/04/2020,,10000.00,Grant & Subscription (SCITT),Not Yet Classified
Solihull MBC,Economy and Infrastructure,Highways & Transport Services,Atkins,02/04/2020,,-3689.20,Agency Staff,150000 - Consultancy
Solihull MBC,Economy and Infrastructure,Planning & Development Services,Atkins,30/04/2020,,-1824.38,Agency Staff,150000 - Consultancy
Solihull MBC,Economy and Infrastructure,Planning & Development Services,Atkins,01/04/2020,,2293.50,Agency Staff,150000 - Consultancy
Solihull MBC,Economy and Infrastructure,Planning & Development Services,Atkins,30/04/2020,,1824.38,Agency Staff,150000 - Consultancy
Solihull MBC,Economy and Infrastructure,Planning & Development Services,Atkins,30/04/2020,,1685.38,Agency Staff,150000 - Consultancy
Solihull MBC,Economy and Infrastructure,Planning & Development Services,Atkins,03/04/2020,,8138.00,Professional Fees,150000 - Consultancy
Solihull MBC,Economy and Infrastructure,Planning & Development Services,Atkins,21/04/2020,,5425.00,Professional Fees,150000 - Consultancy
Solihull MBC,Economy and Infrastructure,Planning & Development Services,Atkins Ltd,21/04/2020,,496.08,Professional Fees,150000 - Consultancy
Solihull MBC,Economy and Infrastructure,Planning & Development Services,Atkins Ltd,23/04/2020,,1434.65,Professional Fees,150000 - Consultancy
Solihull MBC,Economy and Infrastructure,Planning & Development Services,Atkins Ltd,21/04/2020,,18520.40,Professional Fees,150000 - Consultancy
Solihull MBC,Economy and Infrastructure,Planning & Development Services,Atkins Ltd,21/04/2020,,496.08,Professional Fees,150000 - Consultancy
Solihull MBC,Economy and Infrastructure,Planning & Development Services,Atkins Ltd,23/04/2020,,1434.65,Professional Fees,150000 - Consultancy
Solihull MBC,Economy and Infrastructure,Planning & Development Services,Atkins Ltd,21/04/2020,,496.08,Professional Fees,150000 - Consultancy
Solihull MBC,Economy and Infrastructure,Planning & Development Services,Atkins Ltd,23/04/2020,,1434.65,Professional Fees,150000 - Consultancy
Solihull MBC,Economy and Infrastructure,Planning & Development Services,Atkins Ltd,21/04/2020,,496.08,Professional Fees,150000 - Consultancy
Solihull MBC,Economy and Infrastructure,Planning & Development Services,Atkins Ltd,23/04/2020,,1434.65,Professional Fees,150000 - Consultancy
Solihull MBC,Economy and Infrastructure,Planning & Development Services,Atkins Ltd,03/04/2020,,3214.38,Professional Fees,150000 - Consultancy
Solihull MBC,Economy and Infrastructure,Planning & Development Services,Atkins Ltd,03/04/2020,,3301.25,Professional Fees,150000 - Consultancy
Solihull MBC,Economy and Infrastructure,Planning & Development Services,Atkins Ltd,08/04/2020,,2154.50,Professional Fees,150000 - Consultancy
Solihull MBC,Economy and Infrastructure,Planning & Development Services,Atkins Ltd,21/04/2020,,6720.00,Professional Fees,150000 - Consultancy
Solihull MBC,Economy and Infrastructure,Planning & Development Services,Atkins Ltd,23/04/2020,,11130.00,Professional Fees,150000 - Consultancy
Solihull MBC,Public Health & Commissioning,Central Services to the Public,Atlantis Castle Bromwich Limited,03/04/2020,,25000.00,Grant & Subscription (SCITT),Not Yet Classified
Solihull MBC,Public Health & Commissioning,Central Services to the Public,Audible And Visual Security Ltd,15/04/2020,,10000.00,Grant & Subscription (SCITT),Not Yet Classified
Solihull MBC,Resources,Central Services to the Public,Auditware Systems Ltd,01/04/2020,,825.00,Grant & Subscription (SCITT),270000 - Information Communication Technology
Solihull MBC,Resources,Other Housing Services,Auriga Services Ltd,14/04/2020,,1509.64,Clients Expenses,Not Yet Classified
Solihull MBC,Adult Social Care,Adult Social Care,Autism West Midlands,23/04/2020,,432.99,ASC - Residential Care Permanent,321000 - Social Community Care Supplies & Services - Adult
Solihull MBC,Adult Social Care,Adult Social Care,Autism West Midlands,23/04/2020,,1082.46,ASC - Residential Care Permanent,321000 - Social Community Care Supplies & Services - Adult
Solihull MBC,Adult Social Care,Adult Social Care,Autism West Midlands,23/04/2020,,4734.66,ASC - Residential Care Permanent,321000 - Social Community Care Supplies & Services - Adult
Solihull MBC,Adult Social Care,Adult Social Care,Autism West Midlands,02/04/2020,,-9657.70,ASC - Residential Care Permanent,321000 - Social Community Care Supplies & Services - Adult
Solihull MBC,Adult Social Care,Adult Social Care,Autism West Midlands,02/04/2020,,-15906.80,ASC - Residential Care Permanent,321000 - Social Community Care Supplies & Services - Adult
Solihull MBC,Adult Social Care,Adult Social Care,Autism West Midlands,02/04/2020,,6337.52,ASC - Residential Care Permanent,321000 - Social Community Care Supplies & Services - Adult
Solihull MBC,Adult Social Care,Adult Social Care,Autism West Midlands,23/04/2020,,452.68,ASC - Residential Care Permanent,321000 - Social Community Care Supplies & Services - Adult
Solihull MBC,Adult Social Care,Adult Social Care,Autism West Midlands,23/04/2020,,1131.70,ASC - Residential Care Permanent,321000 - Social Community Care Supplies & Services - Adult
Solihull MBC,Adult Social Care,Adult Social Care,Autism West Midlands,23/04/2020,,4941.51,ASC - Residential Care Permanent,321000 - Social Community Care Supplies & Services - Adult
Solihull MBC,Adult Social Care,Adult Social Care,Autism West Midlands,23/04/2020,,348.00,ASC - Residential Care Permanent,321000 - Social Community Care Supplies & Services - Adult
Solihull MBC,Adult Social Care,Adult Social Care,Autism West Midlands,23/04/2020,,870.00,ASC - Residential Care Permanent,321000 - Social Community Care Supplies & Services - Adult
Solihull MBC,Adult Social Care,Adult Social Care,Autism West Midlands,23/04/2020,,3842.37,ASC - Residential Care Permanent,321000 - Social Community Care Supplies & Services - Adult
Solihull MBC,Adult Social Care,Adult Social Care,Autism West Midlands,30/04/2020,,307.20,ASC - Domiciliary Care,321000 - Social Community Care Supplies & Services - Adult
Solihull MBC,Adult Social Care,Adult Social Care,Autism West Midlands,30/04/2020,,307.20,ASC - Domiciliary Care,321000 - Social Community Care Supplies & Services - Adult
Solihull MBC,Adult Social Care,Adult Social Care,Autism West Midlands,30/04/2020,,253.80,ASC - Domiciliary Care,321000 - Social Community Care Supplies & Services - Adult
Solihull MBC,Adult Social Care,Adult Social Care,Autism West Midlands,30/04/2020,,3010.56,ASC - Domiciliary Care,321000 - Social Community Care Supplies & Services - Adult
Solihull MBC,Adult Social Care,Adult Social Care,Autism West Midlands,30/04/2020,,3010.56,ASC - Domiciliary Care,321000 - Social Community Care Supplies & Services - Adult
Solihull MBC,Adult Social Care,Adult Social Care,Autism West Midlands,30/04/2020,,537.60,ASC - Domiciliary Care,321000 - Social Community Care Supplies & Services - Adult
Solihull MBC,Adult Social Care,Adult Social Care,Autism West Midlands,30/04/2020,,2487.24,ASC - Domiciliary Care,321000 - Social Community Care Supplies & Services - Adult
Solihull MBC,Adult Social Care,Adult Social Care,Autism West Midlands,30/04/2020,,2482.20,ASC - Supported Living Care Costs,321000 - Social Community Care Supplies & Services - Adult
Solihull MBC,Adult Social Care,Adult Social Care,Autism West Midlands,30/04/2020,,13549.20,ASC - Supported Living Care Costs,321000 - Social Community Care Supplies & Services - Adult
Solihull MBC,Adult Social Care,Adult Social Care,Autism West Midlands,30/04/2020,,2304.90,ASC - Supported Living Care Costs,321000 - Social Community Care Supplies & Services - Adult
Solihull MBC,Adult Social Care,Adult Social Care,Autism West Midlands,30/04/2020,,967.80,ASC - Supported Living Care Costs,321000 - Social Community Care Supplies & Services - Adult
Solihull MBC,Adult Social Care,Adult Social Care,Autism West Midlands,30/04/2020,,12581.40,ASC - Supported Living Care Costs,321000 - Social Community Care Supplies & Services - Adult
Solihull MBC,Resources,Planning & Development Services,Automotive Property Consultancy,28/04/2020,,6750.00,Professional Fees,Not Yet Classified
Solihull MBC,Public Health & Commissioning,Central Services to the Public,Avanti Fitted Kitchens Ltd,03/04/2020,,25000.00,Grant & Subscription (SCITT),Not Yet Classified
Solihull MBC,Adult Social Care,Adult Social Care,Avery Health Care,23/04/2020,,257.14,ASC - Residential Care Permanent,Not Yet Classified
Solihull MBC,Adult Social Care,Adult Social Care,Avery Health Care,23/04/2020,,642.86,ASC - Residential Care Permanent,Not Yet Classified
Solihull MBC,Adult Social Care,Adult Social Care,Avery Health Care,23/04/2020,,2756.04,ASC - Residential Care Permanent,Not Yet Classified
Solihull MBC,Adult Social Care,Adult Social Care,Avery Health Care,23/04/2020,,348.57,ASC - Residential Care Permanent,Not Yet Classified
Solihull MBC,Adult Social Care,Adult Social Care,Avery Health Care,23/04/2020,,871.43,ASC - Residential Care Permanent,Not Yet Classified
Solihull MBC,Adult Social Care,Adult Social Care,Avery Health Care,23/04/2020,,3716.16,ASC - Residential Care Permanent,Not Yet Classified
Solihull MBC,Adult Social Care,Adult Social Care,Avery Health Care,23/04/2020,,426.65,ASC - Residential Care Permanent,Not Yet Classified
Solihull MBC,Adult Social Care,Adult Social Care,Avery Health Care,23/04/2020,,1860.39,ASC - Residential Care Permanent,Not Yet Classified
Solihull MBC,Adult Social Care,Adult Social Care,Avery Health Care,23/04/2020,,284.00,ASC - Nursing Care Permanent,Not Yet Classified
Solihull MBC,Adult Social Care,Adult Social Care,Avery Health Care,23/04/2020,,710.00,ASC - Nursing Care Permanent,Not Yet Classified
Solihull MBC,Adult Social Care,Adult Social Care,Avery Health Care,23/04/2020,,3044.79,ASC - Nursing Care Permanent,Not Yet Classified
Solihull MBC,Adult Social Care,Adult Social Care,Avery Health Care,23/04/2020,,1075.50,ASC - Nursing Care Permanent,Not Yet Classified
Solihull MBC,Adult Social Care,Adult Social Care,Avery Health Care,23/04/2020,,260.57,ASC - Nursing Care Permanent,Not Yet Classified
Solihull MBC,Adult Social Care,Adult Social Care,Avery Health Care,23/04/2020,,651.42,ASC - Nursing Care Permanent,Not Yet Classified
Solihull MBC,Adult Social Care,Adult Social Care,Avery Health Care,23/04/2020,,2802.45,ASC - Nursing Care Permanent,Not Yet Classified
Solihull MBC,Adult Social Care,Adult Social Care,Avery Homes (Nelson) Ltd,23/04/2020,,571.45,ASC - Nursing Care Respite,Not Yet Classified
Solihull MBC,Adult Social Care,Adult Social Care,Avery Homes (Nelson) Ltd,23/04/2020,,2462.88,ASC - Nursing Care Respite,Not Yet Classified
Solihull MBC,Adult Social Care,Adult Social Care,Avery Homes (Nelson) Ltd,23/04/2020,,3398.57,ASC - Nursing Care Permanent,Not Yet Classified
Solihull MBC,Adult Social Care,Adult Social Care,Avery Homes (Nelson) Ltd,23/04/2020,,500.00,ASC - Nursing Care Permanent,Not Yet Classified
Solihull MBC,Adult Social Care,Adult Social Care,Avery Homes (Nelson) Ltd,23/04/2020,,2162.79,ASC - Nursing Care Permanent,Not Yet Classified
Solihull MBC,Adult Social Care,Adult Social Care,Avery Homes (Nelson) Ltd,23/04/2020,,567.90,ASC - Nursing Care Permanent,Not Yet Classified
Solihull MBC,Adult Social Care,Adult Social Care,Avery Homes (Nelson) Ltd,23/04/2020,,2447.97,ASC - Nursing Care Permanent,Not Yet Classified
Solihull MBC,Adult Social Care,Adult Social Care,Avery Homes (Nelson) Ltd,23/04/2020,,271.43,ASC - Nursing Care Permanent,Not Yet Classified
Solihull MBC,Adult Social Care,Adult Social Care,Avery Homes (Nelson) Ltd,23/04/2020,,678.57,ASC - Nursing Care Permanent,Not Yet Classified
Solihull MBC,Adult Social Care,Adult Social Care,Avery Homes (Nelson) Ltd,23/04/2020,,2916.48,ASC - Nursing Care Permanent,Not Yet Classified
Solihull MBC,Adult Social Care,Adult Social Care,Avery Homes (Nelson) Ltd,23/04/2020,,432.05,ASC - Nursing Care Permanent,Not Yet Classified
Solihull MBC,Adult Social Care,Adult Social Care,Avery Homes (Nelson) Ltd,23/04/2020,,1877.40,ASC - Nursing Care Permanent,Not Yet Classified
Solihull MBC,Adult Social Care,Adult Social Care,Avery Homes (Nelson) Ltd,23/04/2020,,571.43,ASC - Nursing Care Permanent,Not Yet Classified
Solihull MBC,Adult Social Care,Adult Social Care,Avery Homes (Nelson) Ltd,23/04/2020,,2462.88,ASC - Nursing Care Permanent,Not Yet Classified
Solihull MBC,Adult Social Care,Adult Social Care,Avery Homes (Nelson) Ltd,23/04/2020,,472.85,ASC - Nursing Care Permanent,Not Yet Classified
Solihull MBC,Adult Social Care,Adult Social Care,Avery Homes (Nelson) Ltd,23/04/2020,,2048.76,ASC - Nursing Care Permanent,Not Yet Classified
Solihull MBC,Adult Social Care,Adult Social Care,Avery Homes (Nelson) Ltd,23/04/2020,,2142.86,ASC - Residential Care Respite,Not Yet Classified
Solihull MBC,Adult Social Care,Adult Social Care,Avery Homes (Nelson) Ltd,23/04/2020,,900.00,ASC - Residential Care Respite,Not Yet Classified
Solihull MBC,Adult Social Care,Adult Social Care,Avery Homes (Nelson) Ltd,23/04/2020,,446.43,ASC - Residential Care Respite,Not Yet Classified
Solihull MBC,Adult Social Care,Adult Social Care,Avery Homes (Nelson) Ltd,23/04/2020,,982.14,ASC - Residential Care Respite,Not Yet Classified
Solihull MBC,Adult Social Care,Adult Social Care,Avery Homes (Nelson) Ltd,23/04/2020,,267.86,ASC - Residential Care Respite,Not Yet Classified
Solihull MBC,Adult Social Care,Adult Social Care,Avery Homes (Nelson) Ltd,23/04/2020,,892.86,ASC - Residential Care Respite,Not Yet Classified
Solihull MBC,Adult Social Care,Adult Social Care,Avery Homes (Nelson) Ltd,23/04/2020,,803.57,ASC - Residential Care Respite,Not Yet Classified
Solihull MBC,Adult Social Care,Adult Social Care,Avery Homes (Nelson) Ltd,23/04/2020,,446.43,ASC - Residential Care Respite,Not Yet Classified
Solihull MBC,Adult Social Care,Adult Social Care,Avery Homes (Nelson) Ltd,23/04/2020,,892.86,ASC - Residential Care Respite,Not Yet Classified
Solihull MBC,Adult Social Care,Adult Social Care,Avery Homes (Nelson) Ltd,23/04/2020,,407.14,ASC - Residential Care Respite,Not Yet Classified
Solihull MBC,Adult Social Care,Adult Social Care,Avery Homes (Nelson) Ltd,23/04/2020,,271.43,ASC - Residential Care Respite,Not Yet Classified
Solihull MBC,Adult Social Care,Adult Social Care,Avery Homes (Nelson) Ltd,23/04/2020,,3528.57,ASC - Residential Care Respite,Not Yet Classified
Solihull MBC,Adult Social Care,Adult Social Care,Avery Homes (Nelson) Ltd,23/04/2020,,982.14,ASC - Residential Care Respite,Not Yet Classified
Solihull MBC,Adult Social Care,Adult Social Care,Avery Homes (Nelson) Ltd,23/04/2020,,446.43,ASC - Residential Care Respite,Not Yet Classified
Solihull MBC,Adult Social Care,Adult Social Care,Avery Homes (Nelson) Ltd,23/04/2020,,892.86,ASC - Residential Care Respite,Not Yet Classified
Solihull MBC,Adult Social Care,Adult Social Care,Avery Homes (Nelson) Ltd,23/04/2020,,1100.00,ASC - Nursing Care Respite,Not Yet Classified
Solihull MBC,Adult Social Care,Adult Social Care,Avery Homes (Nelson) Ltd,23/04/2020,,500.00,ASC - Nursing Care Respite,Not Yet Classified
Solihull MBC,Adult Social Care,Adult Social Care,Avery Homes (Nelson) Ltd,23/04/2020,,1000.00,ASC - Nursing Care Respite,Not Yet Classified
Solihull MBC,Adult Social Care,Adult Social Care,Avery Homes (Nelson) Ltd,23/04/2020,,300.00,ASC - Nursing Care Respite,Not Yet Classified
Solihull MBC,Adult Social Care,Adult Social Care,Avery Homes (Nelson) Ltd,23/04/2020,,500.00,ASC - Nursing Care Respite,Not Yet Classified
Solihull MBC,Adult Social Care,Adult Social Care,Avery Homes (Nelson) Ltd,23/04/2020,,1000.00,ASC - Nursing Care Respite,Not Yet Classified
Solihull MBC,Adult Social Care,Adult Social Care,Avery Homes (Nelson) Ltd,23/04/2020,,900.00,ASC - Nursing Care Respite,Not Yet Classified
Solihull MBC,Adult Social Care,Adult Social Care,Avery Homes (Nelson) Ltd,23/04/2020,,500.00,ASC - Nursing Care Respite,Not Yet Classified
Solihull MBC,Adult Social Care,Adult Social Care,Avery Homes (Nelson) Ltd,23/04/2020,,1000.00,ASC - Nursing Care Respite,Not Yet Classified
Solihull MBC,Adult Social Care,Adult Social Care,Avery Homes (Nelson) Ltd,23/04/2020,,300.00,ASC - Nursing Care Respite,Not Yet Classified
Solihull MBC,Adult Social Care,Adult Social Care,Avery Homes (Nelson) Ltd,23/04/2020,,1100.00,ASC - Nursing Care Respite,Not Yet Classified
Solihull MBC,Adult Social Care,Adult Social Care,Avery Homes (Nelson) Ltd,23/04/2020,,500.00,ASC - Nursing Care Respite,Not Yet Classified
Solihull MBC,Adult Social Care,Adult Social Care,Avery Homes (Nelson) Ltd,23/04/2020,,1000.00,ASC - Nursing Care Respite,Not Yet Classified
Solihull MBC,Adult Social Care,Adult Social Care,Avery Homes (Nelson) Ltd,23/04/2020,,500.00,ASC - Nursing Care Respite,Not Yet Classified
Solihull MBC,Adult Social Care,Adult Social Care,Avery Homes (Nelson) Ltd,23/04/2020,,1000.00,ASC - Nursing Care Respite,Not Yet Classified
Solihull MBC,Adult Social Care,Adult Social Care,Avery Homes (Nelson) Ltd,23/04/2020,,1100.00,ASC - Nursing Care Respite,Not Yet Classified
Solihull MBC,Adult Social Care,Adult Social Care,Avery Homes (Nelson) Ltd,23/04/2020,,500.00,ASC - Nursing Care Respite,Not Yet Classified
Solihull MBC,Adult Social Care,Adult Social Care,Avery Homes (Nelson) Ltd,23/04/2020,,1000.00,ASC - Nursing Care Respite,Not Yet Classified
Solihull MBC,Adult Social Care,Adult Social Care,Avery Homes (Nelson) Ltd,23/04/2020,,1000.00,ASC - Nursing Care Respite,Not Yet Classified
Solihull MBC,Adult Social Care,Adult Social Care,Avery Homes (Nelson) Ltd,23/04/2020,,271.43,ASC - Nursing Care Permanent,Not Yet Classified
Solihull MBC,Adult Social Care,Adult Social Care,Avery Homes (Nelson) Ltd,23/04/2020,,678.57,ASC - Nursing Care Permanent,Not Yet Classified
Solihull MBC,Adult Social Care,Adult Social Care,Avery Homes (Nelson) Ltd,23/04/2020,,2912.70,ASC - Nursing Care Permanent,Not Yet Classified
Solihull MBC,Adult Social Care,Central Services to the Public,Avoira Ltd,14/04/2020,,-1381.90,Telephones,Not Yet Classified
Solihull MBC,Adult Social Care,Central Services to the Public,Avoira Ltd,14/04/2020,,690.95,Telephones,Not Yet Classified
Solihull MBC,Adult Social Care,Central Services to the Public,Avoira Ltd,01/04/2020,,690.95,Telephones,Not Yet Classified
Solihull MBC,Adult Social Care,Central Services to the Public,Avoira Ltd,02/04/2020,,546.75,Telephones,Not Yet Classified
Solihull MBC,Adult Social Care,Central Services to the Public,Avoira Ltd,14/04/2020,,961.22,Telephones,Not Yet Classified
Solihull MBC,Public Health & Commissioning,Central Services to the Public,Avon Homes Ltd,29/04/2020,,10000.00,Grant & Subscription (SCITT),Not Yet Classified
Solihull MBC,Public Health & Commissioning,Central Services to the Public,Avon Utilities And Generation Ltd,15/04/2020,,10000.00,Grant & Subscription (SCITT),Not Yet Classified
Solihull MBC,Public Health & Commissioning,Central Services to the Public,AWAS Consulting Ltd,21/04/2020,,10000.00,Grant & Subscription (SCITT),Not Yet Classified
Solihull MBC,Public Health & Commissioning,Central Services to the Public,AWF Electrical Contractors Ltd,29/04/2020,,10000.00,Grant & Subscription (SCITT),Not Yet Classified
Solihull MBC,Adult Social Care,Cultural & Related Services,Axiell Ltd,14/04/2020,,2329.08,IT Equipment & Software,270000 - Information Communication Technology
Solihull MBC,Public Health & Commissioning,Central Services to the Public,B Ali (Indian West Limited),03/04/2020,,25000.00,Grant & Subscription (SCITT),Not Yet Classified
Solihull MBC,Adult Social Care,Adult Social Care,B&M Investments Ltd (Reference:Tm0318),23/04/2020,,475.95,ASC - Nursing Care Permanent,Not Yet Classified
Solihull MBC,Adult Social Care,Adult Social Care,B&M Investments Ltd (Reference:Tm0318),23/04/2020,,2061.78,ASC - Nursing Care Permanent,Not Yet Classified
Solihull MBC,Public Health & Commissioning,Central Services to the Public,B&W United Healthcare Ltd,21/04/2020,,10000.00,Grant & Subscription (SCITT),Not Yet Classified
Solihull MBC,Public Health & Commissioning,Central Services to the Public,Babybabyonline Ltd,07/04/2020,,10000.00,Grant & Subscription (SCITT),Not Yet Classified
Solihull MBC,Resources,Central Services to the Public,BACS Payment Schemes Ltd,07/04/2020,,340.00,IT Equipment & Software,Not Yet Classified
Solihull MBC,Public Health & Commissioning,Central Services to the Public,Bad Apple Hair Solihull,09/04/2020,,25000.00,Grant & Subscription (SCITT),Not Yet Classified
Solihull MBC,Economy and Infrastructure,Highways & Transport Services,Balfour Beatty Living Places Ltd,09/04/2020,,32252.21,Other Contracted Services,"391400 - Works - Construction, Repair & Maintenance"
Solihull MBC,Economy and Infrastructure,Highways & Transport Services,Balfour Beatty Living Places Ltd,09/04/2020,,85793.55,Other Contracted Services,"391400 - Works - Construction, Repair & Maintenance"
Solihull MBC,Economy and Infrastructure,Highways & Transport Services,Balfour Beatty Living Places Ltd,09/04/2020,,14462.54,Other Contracted Services,"391400 - Works - Construction, Repair & Maintenance"
Solihull MBC,Economy and Infrastructure,Highways & Transport Services,Balfour Beatty Living Places Ltd,09/04/2020,,100.00,Other Contracted Services,"391400 - Works - Construction, Repair & Maintenance"
Solihull MBC,Economy and Infrastructure,Highways & Transport Services,Balfour Beatty Living Places Ltd,09/04/2020,,121.10,Other Contracted Services,"391400 - Works - Construction, Repair & Maintenance"
Solihull MBC,Economy and Infrastructure,Highways & Transport Services,Balfour Beatty Living Places Ltd,09/04/2020,,2062.96,Other Contracted Services,"391400 - Works - Construction, Repair & Maintenance"
Solihull MBC,Economy and Infrastructure,Highways & Transport Services,Balfour Beatty Living Places Ltd,09/04/2020,,75.92,Other Contracted Services,"391400 - Works - Construction, Repair & Maintenance"
Solihull MBC,Economy and Infrastructure,Highways & Transport Services,Balfour Beatty Living Places Ltd,09/04/2020,,7170.54,Other Contracted Services,"391400 - Works - Construction, Repair & Maintenance"
Solihull MBC,Economy and Infrastructure,Highways & Transport Services,Balfour Beatty Living Places Ltd,09/04/2020,,4317.12,Other Contracted Services,"391400 - Works - Construction, Repair & Maintenance"
Solihull MBC,Economy and Infrastructure,Highways & Transport Services,Balfour Beatty Living Places Ltd,09/04/2020,,69.96,Other Contracted Services,"391400 - Works - Construction, Repair & Maintenance"
Solihull MBC,Economy and Infrastructure,Highways & Transport Services,Balfour Beatty Living Places Ltd,09/04/2020,,370.00,Other Contracted Services,"391400 - Works - Construction, Repair & Maintenance"
Solihull MBC,Economy and Infrastructure,Highways & Transport Services,Balfour Beatty Living Places Ltd,09/04/2020,,152.70,Other Contracted Services,"391400 - Works - Construction, Repair & Maintenance"
Solihull MBC,Economy and Infrastructure,Highways & Transport Services,Balfour Beatty Living Places Ltd,09/04/2020,,358.33,Other Contracted Services,"391400 - Works - Construction, Repair & Maintenance"
Solihull MBC,Economy and Infrastructure,Highways & Transport Services,Balfour Beatty Living Places Ltd,09/04/2020,,188.55,Other Contracted Services,"391400 - Works - Construction, Repair & Maintenance"
Solihull MBC,Economy and Infrastructure,Highways & Transport Services,Balfour Beatty Living Places Ltd,09/04/2020,,1140.37,Other Contracted Services,"391400 - Works - Construction, Repair & Maintenance"
Solihull MBC,Economy and Infrastructure,Highways & Transport Services,Balfour Beatty Living Places Ltd,09/04/2020,,457.68,Other Contracted Services,"391400 - Works - Construction, Repair & Maintenance"
Solihull MBC,Economy and Infrastructure,Highways & Transport Services,Balfour Beatty Living Places Ltd,09/04/2020,,467.64,Other Contracted Services,"391400 - Works - Construction, Repair & Maintenance"
Solihull MBC,Economy and Infrastructure,Highways & Transport Services,Balfour Beatty Living Places Ltd,09/04/2020,,467.64,Other Contracted Services,"391400 - Works - Construction, Repair & Maintenance"
Solihull MBC,Economy and Infrastructure,Highways & Transport Services,Balfour Beatty Living Places Ltd,09/04/2020,,58.94,Other Contracted Services,"391400 - Works - Construction, Repair & Maintenance"
Solihull MBC,Economy and Infrastructure,Highways & Transport Services,Balfour Beatty Living Places Ltd,09/04/2020,,17823.11,Other Contracted Services,"391400 - Works - Construction, Repair & Maintenance"
Solihull MBC,Economy and Infrastructure,Highways & Transport Services,Balfour Beatty Living Places Ltd,09/04/2020,,284.23,Other Contracted Services,"391400 - Works - Construction, Repair & Maintenance"
Solihull MBC,Economy and Infrastructure,Highways & Transport Services,Balfour Beatty Living Places Ltd,09/04/2020,,9964.69,Other Contracted Services,"391400 - Works - Construction, Repair & Maintenance"
Solihull MBC,Economy and Infrastructure,Highways & Transport Services,Balfour Beatty Living Places Ltd,09/04/2020,,571.09,Other Contracted Services,"391400 - Works - Construction, Repair & Maintenance"
Solihull MBC,Economy and Infrastructure,Highways & Transport Services,Balfour Beatty Living Places Ltd,09/04/2020,,1710.08,Other Contracted Services,"391400 - Works - Construction, Repair & Maintenance"
Solihull MBC,Economy and Infrastructure,Highways & Transport Services,Balfour Beatty Living Places Ltd,09/04/2020,,0.01,Other Contracted Services,"391400 - Works - Construction, Repair & Maintenance"
Solihull MBC,Economy and Infrastructure,Highways & Transport Services,Balfour Beatty Living Places Ltd,09/04/2020,,0.01,Other Contracted Services,"391400 - Works - Construction, Repair & Maintenance"
Solihull MBC,Economy and Infrastructure,Highways & Transport Services,Balfour Beatty Living Places Ltd,09/04/2020,,3273.72,Other Contracted Services,"391400 - Works - Construction, Repair & Maintenance"
Solihull MBC,Economy and Infrastructure,Highways & Transport Services,Balfour Beatty Living Places Ltd,09/04/2020,,5053.42,Other Contracted Services,"391400 - Works - Construction, Repair & Maintenance"
Solihull MBC,Economy and Infrastructure,Highways & Transport Services,Balfour Beatty Living Places Ltd,09/04/2020,,780.19,Other Contracted Services,"391400 - Works - Construction, Repair & Maintenance"
Solihull MBC,Economy and Infrastructure,Highways & Transport Services,Balfour Beatty Living Places Ltd,09/04/2020,,72.78,Other Contracted Services,"391400 - Works - Construction, Repair & Maintenance"
Solihull MBC,Economy and Infrastructure,Highways & Transport Services,Balfour Beatty Living Places Ltd,09/04/2020,,30.81,Other Contracted Services,"391400 - Works - Construction, Repair & Maintenance"
Solihull MBC,Economy and Infrastructure,Highways & Transport Services,Balfour Beatty Living Places Ltd,09/04/2020,,266.46,Other Contracted Services,"391400 - Works - Construction, Repair & Maintenance"
Solihull MBC,Economy and Infrastructure,Highways & Transport Services,Balfour Beatty Living Places Ltd,09/04/2020,,25.61,Other Contracted Services,"391400 - Works - Construction, Repair & Maintenance"
Solihull MBC,Economy and Infrastructure,Highways & Transport Services,Balfour Beatty Living Places Ltd,09/04/2020,,809.13,Other Contracted Services,"391400 - Works - Construction, Repair & Maintenance"
Solihull MBC,Economy and Infrastructure,Highways & Transport Services,Balfour Beatty Living Places Ltd,09/04/2020,,189.87,Other Contracted Services,"391400 - Works - Construction, Repair & Maintenance"
Solihull MBC,Economy and Infrastructure,Highways & Transport Services,Balfour Beatty Living Places Ltd,09/04/2020,,91.04,Other Contracted Services,"391400 - Works - Construction, Repair & Maintenance"
Solihull MBC,Economy and Infrastructure,Highways & Transport Services,Balfour Beatty Living Places Ltd,09/04/2020,,110.98,Other Contracted Services,"391400 - Works - Construction, Repair & Maintenance"
Solihull MBC,Economy and Infrastructure,Highways & Transport Services,Balfour Beatty Living Places Ltd,09/04/2020,,150.76,Other Contracted Services,"391400 - Works - Construction, Repair & Maintenance"
Solihull MBC,Economy and Infrastructure,Highways & Transport Services,Balfour Beatty Living Places Ltd,09/04/2020,,32.16,Other Contracted Services,"391400 - Works - Construction, Repair & Maintenance"
Solihull MBC,Economy and Infrastructure,Highways & Transport Services,Balfour Beatty Living Places Ltd,09/04/2020,,38.18,Other Contracted Services,"391400 - Works - Construction, Repair & Maintenance"
Solihull MBC,Economy and Infrastructure,Highways & Transport Services,Balfour Beatty Living Places Ltd,09/04/2020,,12067.13,Other Contracted Services,"391400 - Works - Construction, Repair & Maintenance"
Solihull MBC,Economy and Infrastructure,Highways & Transport Services,Balfour Beatty Living Places Ltd,09/04/2020,,265.12,Other Contracted Services,"391400 - Works - Construction, Repair & Maintenance"
Solihull MBC,Economy and Infrastructure,Highways & Transport Services,Balfour Beatty Living Places Ltd,09/04/2020,,184.69,Other Contracted Services,"391400 - Works - Construction, Repair & Maintenance"
Solihull MBC,Economy and Infrastructure,Highways & Transport Services,Balfour Beatty Living Places Ltd,09/04/2020,,507.00,Other Contracted Services,"391400 - Works - Construction, Repair & Maintenance"
Solihull MBC,Economy and Infrastructure,Highways & Transport Services,Balfour Beatty Living Places Ltd,09/04/2020,,130.58,Other Contracted Services,"391400 - Works - Construction, Repair & Maintenance"
Solihull MBC,Economy and Infrastructure,Highways & Transport Services,Balfour Beatty Living Places Ltd,09/04/2020,,72.78,Other Contracted Services,"391400 - Works - Construction, Repair & Maintenance"
Solihull MBC,Economy and Infrastructure,Highways & Transport Services,Balfour Beatty Living Places Ltd,09/04/2020,,130.57,Other Contracted Services,"391400 - Works - Construction, Repair & Maintenance"
Solihull MBC,Economy and Infrastructure,Highways & Transport Services,Balfour Beatty Living Places Ltd,09/04/2020,,278.80,Other Contracted Services,"391400 - Works - Construction, Repair & Maintenance"
Solihull MBC,Economy and Infrastructure,Highways & Transport Services,Balfour Beatty Living Places Ltd,09/04/2020,,168.83,Other Contracted Services,"391400 - Works - Construction, Repair & Maintenance"
Solihull MBC,Economy and Infrastructure,Highways & Transport Services,Balfour Beatty Living Places Ltd,09/04/2020,,779.52,Other Contracted Services,"391400 - Works - Construction, Repair & Maintenance"
Solihull MBC,Economy and Infrastructure,Highways & Transport Services,Balfour Beatty Living Places Ltd,09/04/2020,,95.68,Other Contracted Services,"391400 - Works - Construction, Repair & Maintenance"
Solihull MBC,Economy and Infrastructure,Highways & Transport Services,Balfour Beatty Living Places Ltd,09/04/2020,,30.55,Other Contracted Services,"391400 - Works - Construction, Repair & Maintenance"
Solihull MBC,Economy and Infrastructure,Highways & Transport Services,Balfour Beatty Living Places Ltd,09/04/2020,,11592.78,Other Contracted Services,"391400 - Works - Construction, Repair & Maintenance"
Solihull MBC,Economy and Infrastructure,Highways & Transport Services,Balfour Beatty Living Places Ltd,09/04/2020,,354.98,Other Contracted Services,"391400 - Works - Construction, Repair & Maintenance"
Solihull MBC,Economy and Infrastructure,Highways & Transport Services,Balfour Beatty Living Places Ltd,09/04/2020,,3983.73,Other Contracted Services,"391400 - Works - Construction, Repair & Maintenance"
Solihull MBC,Economy and Infrastructure,Highways & Transport Services,Balfour Beatty Living Places Ltd,09/04/2020,,9182.19,Other Contracted Services,"391400 - Works - Construction, Repair & Maintenance"
Solihull MBC,Economy and Infrastructure,Highways & Transport Services,Balfour Beatty Living Places Ltd,09/04/2020,,11546.24,Other Contracted Services,"391400 - Works - Construction, Repair & Maintenance"
Solihull MBC,Economy and Infrastructure,Highways & Transport Services,Balfour Beatty Living Places Ltd,09/04/2020,,2000.00,Other Contracted Services,"391400 - Works - Construction, Repair & Maintenance"
Solihull MBC,Economy and Infrastructure,Highways & Transport Services,Balfour Beatty Living Places Ltd,09/04/2020,,2000.00,Other Contracted Services,"391400 - Works - Construction, Repair & Maintenance"
Solihull MBC,Economy and Infrastructure,Highways & Transport Services,Balfour Beatty Living Places Ltd,09/04/2020,,2000.00,Other Contracted Services,"391400 - Works - Construction, Repair & Maintenance"
Solihull MBC,Economy and Infrastructure,Highways & Transport Services,Balfour Beatty Living Places Ltd,09/04/2020,,390.89,Other Contracted Services,"391400 - Works - Construction, Repair & Maintenance"
Solihull MBC,Economy and Infrastructure,Highways & Transport Services,Balfour Beatty Living Places Ltd,09/04/2020,,19149.48,Other Contracted Services,"391400 - Works - Construction, Repair & Maintenance"
Solihull MBC,Economy and Infrastructure,Highways & Transport Services,Balfour Beatty Living Places Ltd,09/04/2020,,17916.36,Other Contracted Services,"391400 - Works - Construction, Repair & Maintenance"
Solihull MBC,Economy and Infrastructure,Highways & Transport Services,Balfour Beatty Living Places Ltd,09/04/2020,,9.48,Other Contracted Services,"391400 - Works - Construction, Repair & Maintenance"
Solihull MBC,Economy and Infrastructure,Highways & Transport Services,Balfour Beatty Living Places Ltd,09/04/2020,,99.79,Other Contracted Services,"391400 - Works - Construction, Repair & Maintenance"
Solihull MBC,Economy and Infrastructure,Highways & Transport Services,Balfour Beatty Living Places Ltd,09/04/2020,,143.40,Other Contracted Services,"391400 - Works - Construction, Repair & Maintenance"
Solihull MBC,Economy and Infrastructure,Highways & Transport Services,Balfour Beatty Living Places Ltd,09/04/2020,,402.57,Other Contracted Services,"391400 - Works - Construction, Repair & Maintenance"
Solihull MBC,Economy and Infrastructure,Highways & Transport Services,Balfour Beatty Living Places Ltd,09/04/2020,,18288.70,Other Contracted Services,"391400 - Works - Construction, Repair & Maintenance"
Solihull MBC,Economy and Infrastructure,Highways & Transport Services,Balfour Beatty Living Places Ltd,09/04/2020,,6754.31,Other Contracted Services,"391400 - Works - Construction, Repair & Maintenance"
Solihull MBC,Economy and Infrastructure,Highways & Transport Services,Balfour Beatty Living Places Ltd,09/04/2020,,261.30,Other Contracted Services,"391400 - Works - Construction, Repair & Maintenance"
Solihull MBC,Economy and Infrastructure,Highways & Transport Services,Balfour Beatty Living Places Ltd,09/04/2020,,2777.80,Other Contracted Services,"391400 - Works - Construction, Repair & Maintenance"
Solihull MBC,Economy and Infrastructure,Highways & Transport Services,Balfour Beatty Living Places Ltd,09/04/2020,,192.10,Other Contracted Services,"391400 - Works - Construction, Repair & Maintenance"
Solihull MBC,Economy and Infrastructure,Highways & Transport Services,Balfour Beatty Living Places Ltd,09/04/2020,,152.55,Other Contracted Services,"391400 - Works - Construction, Repair & Maintenance"
Solihull MBC,Economy and Infrastructure,Highways & Transport Services,Balfour Beatty Living Places Ltd,09/04/2020,,501.72,Other Contracted Services,"391400 - Works - Construction, Repair & Maintenance"
Solihull MBC,Economy and Infrastructure,Highways & Transport Services,Balfour Beatty Living Places Ltd,09/04/2020,,274.08,Other Contracted Services,"391400 - Works - Construction, Repair & Maintenance"
Solihull MBC,Economy and Infrastructure,Highways & Transport Services,Balfour Beatty Living Places Ltd,09/04/2020,,13333.08,Other Contracted Services,"391400 - Works - Construction, Repair & Maintenance"
Solihull MBC,Economy and Infrastructure,Highways & Transport Services,Balfour Beatty Living Places Ltd,09/04/2020,,151.54,Other Contracted Services,"391400 - Works - Construction, Repair & Maintenance"
Solihull MBC,Economy and Infrastructure,Highways & Transport Services,Balfour Beatty Living Places Ltd,09/04/2020,,485.46,Other Contracted Services,"391400 - Works - Construction, Repair & Maintenance"
Solihull MBC,Economy and Infrastructure,Highways & Transport Services,Balfour Beatty Living Places Ltd,09/04/2020,,221.20,Other Contracted Services,"391400 - Works - Construction, Repair & Maintenance"
Solihull MBC,Economy and Infrastructure,Highways & Transport Services,Balfour Beatty Living Places Ltd,09/04/2020,,189.60,Other Contracted Services,"391400 - Works - Construction, Repair & Maintenance"
Solihull MBC,Economy and Infrastructure,Highways & Transport Services,Balfour Beatty Living Places Ltd,09/04/2020,,19149.48,Other Contracted Services,"391400 - Works - Construction, Repair & Maintenance"
Solihull MBC,Economy and Infrastructure,Highways & Transport Services,Balfour Beatty Living Places Ltd,09/04/2020,,119.60,Other Contracted Services,"391400 - Works - Construction, Repair & Maintenance"
Solihull MBC,Economy and Infrastructure,Highways & Transport Services,Balfour Beatty Living Places Ltd,09/04/2020,,91.36,Other Contracted Services,"391400 - Works - Construction, Repair & Maintenance"
Solihull MBC,Economy and Infrastructure,Highways & Transport Services,Balfour Beatty Living Places Ltd,09/04/2020,,44.48,Other Contracted Services,"391400 - Works - Construction, Repair & Maintenance"
Solihull MBC,Economy and Infrastructure,Highways & Transport Services,Balfour Beatty Living Places Ltd,09/04/2020,,93.68,Other Contracted Services,"391400 - Works - Construction, Repair & Maintenance"
Solihull MBC,Economy and Infrastructure,Highways & Transport Services,Balfour Beatty Living Places Ltd,09/04/2020,,5612.69,Other Contracted Services,"391400 - Works - Construction, Repair & Maintenance"
Solihull MBC,Economy and Infrastructure,Highways & Transport Services,Balfour Beatty Living Places Ltd,09/04/2020,,266.90,Other Contracted Services,"391400 - Works - Construction, Repair & Maintenance"
Solihull MBC,Economy and Infrastructure,Highways & Transport Services,Balfour Beatty Living Places Ltd,09/04/2020,,151.54,Other Contracted Services,"391400 - Works - Construction, Repair & Maintenance"
Solihull MBC,Economy and Infrastructure,Highways & Transport Services,Balfour Beatty Living Places Ltd,09/04/2020,,121.10,Other Contracted Services,"391400 - Works - Construction, Repair & Maintenance"
Solihull MBC,Economy and Infrastructure,Highways & Transport Services,Balfour Beatty Living Places Ltd,09/04/2020,,151.54,Other Contracted Services,"391400 - Works - Construction, Repair & Maintenance"
Solihull MBC,Economy and Infrastructure,Highways & Transport Services,Balfour Beatty Living Places Ltd,09/04/2020,,54.72,Other Contracted Services,"391400 - Works - Construction, Repair & Maintenance"
Solihull MBC,Economy and Infrastructure,Highways & Transport Services,Balfour Beatty Living Places Ltd,09/04/2020,,81.88,Other Contracted Services,"391400 - Works - Construction, Repair & Maintenance"
Solihull MBC,Economy and Infrastructure,Highways & Transport Services,Balfour Beatty Living Places Ltd,09/04/2020,,101.72,Other Contracted Services,"391400 - Works - Construction, Repair & Maintenance"
Solihull MBC,Economy and Infrastructure,Highways & Transport Services,Balfour Beatty Living Places Ltd,09/04/2020,,345.50,Other Contracted Services,"391400 - Works - Construction, Repair & Maintenance"
Solihull MBC,Economy and Infrastructure,Highways & Transport Services,Balfour Beatty Living Places Ltd,09/04/2020,,261.72,Other Contracted Services,"391400 - Works - Construction, Repair & Maintenance"
Solihull MBC,Economy and Infrastructure,Highways & Transport Services,Balfour Beatty Living Places Ltd,09/04/2020,,151.54,Other Contracted Services,"391400 - Works - Construction, Repair & Maintenance"
Solihull MBC,Economy and Infrastructure,Highways & Transport Services,Balfour Beatty Living Places Ltd,09/04/2020,,175.45,Other Contracted Services,"391400 - Works - Construction, Repair & Maintenance"
Solihull MBC,Economy and Infrastructure,Highways & Transport Services,Balfour Beatty Living Places Ltd,09/04/2020,,30.50,Other Contracted Services,"391400 - Works - Construction, Repair & Maintenance"
Solihull MBC,Economy and Infrastructure,Highways & Transport Services,Balfour Beatty Living Places Ltd,09/04/2020,,84.59,Other Contracted Services,"391400 - Works - Construction, Repair & Maintenance"
Solihull MBC,Economy and Infrastructure,Highways & Transport Services,Balfour Beatty Living Places Ltd,09/04/2020,,676.69,Other Contracted Services,"391400 - Works - Construction, Repair & Maintenance"
Solihull MBC,Economy and Infrastructure,Highways & Transport Services,Balfour Beatty Living Places Ltd,09/04/2020,,71.76,Other Contracted Services,"391400 - Works - Construction, Repair & Maintenance"
Solihull MBC,Economy and Infrastructure,Highways & Transport Services,Balfour Beatty Living Places Ltd,09/04/2020,,408.33,Other Contracted Services,"391400 - Works - Construction, Repair & Maintenance"
Solihull MBC,Economy and Infrastructure,Highways & Transport Services,Balfour Beatty Living Places Ltd,09/04/2020,,149.03,Other Contracted Services,"391400 - Works - Construction, Repair & Maintenance"
Solihull MBC,Economy and Infrastructure,Highways & Transport Services,Balfour Beatty Living Places Ltd,09/04/2020,,152.49,Other Contracted Services,"391400 - Works - Construction, Repair & Maintenance"
Solihull MBC,Economy and Infrastructure,Highways & Transport Services,Balfour Beatty Living Places Ltd,09/04/2020,,866.62,Other Contracted Services,"391400 - Works - Construction, Repair & Maintenance"
Solihull MBC,Economy and Infrastructure,Highways & Transport Services,Balfour Beatty Living Places Ltd,09/04/2020,,494.86,Other Contracted Services,"391400 - Works - Construction, Repair & Maintenance"
Solihull MBC,Economy and Infrastructure,Highways & Transport Services,Balfour Beatty Living Places Ltd,09/04/2020,,809.51,Other Contracted Services,"391400 - Works - Construction, Repair & Maintenance"
Solihull MBC,Economy and Infrastructure,Highways & Transport Services,Balfour Beatty Living Places Ltd,09/04/2020,,206.21,Other Contracted Services,"391400 - Works - Construction, Repair & Maintenance"
Solihull MBC,Economy and Infrastructure,Highways & Transport Services,Balfour Beatty Living Places Ltd,09/04/2020,,111.67,Other Contracted Services,"391400 - Works - Construction, Repair & Maintenance"
Solihull MBC,Economy and Infrastructure,Highways & Transport Services,Balfour Beatty Living Places Ltd,09/04/2020,,1526.47,Other Contracted Services,"391400 - Works - Construction, Repair & Maintenance"
Solihull MBC,Economy and Infrastructure,Highways & Transport Services,Balfour Beatty Living Places Ltd,09/04/2020,,352.10,Other Contracted Services,"391400 - Works - Construction, Repair & Maintenance"
Solihull MBC,Economy and Infrastructure,Highways & Transport Services,Balfour Beatty Living Places Ltd,09/04/2020,,14.24,Other Contracted Services,"391400 - Works - Construction, Repair & Maintenance"
Solihull MBC,Economy and Infrastructure,Highways & Transport Services,Balfour Beatty Living Places Ltd,09/04/2020,,76.98,Other Contracted Services,"391400 - Works - Construction, Repair & Maintenance"
Solihull MBC,Economy and Infrastructure,Highways & Transport Services,Balfour Beatty Living Places Ltd,09/04/2020,,161.78,Other Contracted Services,"391400 - Works - Construction, Repair & Maintenance"
Solihull MBC,Economy and Infrastructure,Highways & Transport Services,Balfour Beatty Living Places Ltd,09/04/2020,,193.55,Other Contracted Services,"391400 - Works - Construction, Repair & Maintenance"
Solihull MBC,Economy and Infrastructure,Highways & Transport Services,Balfour Beatty Living Places Ltd,09/04/2020,,67.58,Other Contracted Services,"391400 - Works - Construction, Repair & Maintenance"
Solihull MBC,Economy and Infrastructure,Highways & Transport Services,Balfour Beatty Living Places Ltd,09/04/2020,,151.54,Other Contracted Services,"391400 - Works - Construction, Repair & Maintenance"
Solihull MBC,Economy and Infrastructure,Highways & Transport Services,Balfour Beatty Living Places Ltd,09/04/2020,,183.35,Other Contracted Services,"391400 - Works - Construction, Repair & Maintenance"
Solihull MBC,Economy and Infrastructure,Highways & Transport Services,Balfour Beatty Living Places Ltd,09/04/2020,,57.27,Other Contracted Services,"391400 - Works - Construction, Repair & Maintenance"
Solihull MBC,Economy and Infrastructure,Highways & Transport Services,Balfour Beatty Living Places Ltd,09/04/2020,,151.54,Other Contracted Services,"391400 - Works - Construction, Repair & Maintenance"
Solihull MBC,Economy and Infrastructure,Highways & Transport Services,Balfour Beatty Living Places Ltd,09/04/2020,,234.33,Other Contracted Services,"391400 - Works - Construction, Repair & Maintenance"
Solihull MBC,Economy and Infrastructure,Highways & Transport Services,Balfour Beatty Living Places Ltd,09/04/2020,,140.52,Other Contracted Services,"391400 - Works - Construction, Repair & Maintenance"
Solihull MBC,Economy and Infrastructure,Highways & Transport Services,Balfour Beatty Living Places Ltd,09/04/2020,,93.68,Other Contracted Services,"391400 - Works - Construction, Repair & Maintenance"
Solihull MBC,Economy and Infrastructure,Highways & Transport Services,Balfour Beatty Living Places Ltd,09/04/2020,,151.54,Other Contracted Services,"391400 - Works - Construction, Repair & Maintenance"
Solihull MBC,Economy and Infrastructure,Highways & Transport Services,Balfour Beatty Living Places Ltd,09/04/2020,,93.68,Other Contracted Services,"391400 - Works - Construction, Repair & Maintenance"
Solihull MBC,Economy and Infrastructure,Highways & Transport Services,Balfour Beatty Living Places Ltd,09/04/2020,,93.68,Other Contracted Services,"391400 - Works - Construction, Repair & Maintenance"
Solihull MBC,Economy and Infrastructure,Highways & Transport Services,Balfour Beatty Living Places Ltd,09/04/2020,,140.65,Other Contracted Services,"391400 - Works - Construction, Repair & Maintenance"
Solihull MBC,Economy and Infrastructure,Highways & Transport Services,Balfour Beatty Living Places Ltd,09/04/2020,,93.68,Other Contracted Services,"391400 - Works - Construction, Repair & Maintenance"
Solihull MBC,Economy and Infrastructure,Highways & Transport Services,Balfour Beatty Living Places Ltd,09/04/2020,,129.71,Other Contracted Services,"391400 - Works - Construction, Repair & Maintenance"
Solihull MBC,Economy and Infrastructure,Highways & Transport Services,Balfour Beatty Living Places Ltd,09/04/2020,,120.72,Other Contracted Services,"391400 - Works - Construction, Repair & Maintenance"
Solihull MBC,Economy and Infrastructure,Highways & Transport Services,Balfour Beatty Living Places Ltd,09/04/2020,,93.68,Other Contracted Services,"391400 - Works - Construction, Repair & Maintenance"
Solihull MBC,Economy and Infrastructure,Highways & Transport Services,Balfour Beatty Living Places Ltd,09/04/2020,,130.68,Other Contracted Services,"391400 - Works - Construction, Repair & Maintenance"
Solihull MBC,Economy and Infrastructure,Highways & Transport Services,Balfour Beatty Living Places Ltd,09/04/2020,,53.15,Other Contracted Services,"391400 - Works - Construction, Repair & Maintenance"
Solihull MBC,Economy and Infrastructure,Highways & Transport Services,Balfour Beatty Living Places Ltd,09/04/2020,,98.93,Other Contracted Services,"391400 - Works - Construction, Repair & Maintenance"
Solihull MBC,Economy and Infrastructure,Highways & Transport Services,Balfour Beatty Living Places Ltd,09/04/2020,,143.50,Other Contracted Services,"391400 - Works - Construction, Repair & Maintenance"
Solihull MBC,Economy and Infrastructure,Highways & Transport Services,Balfour Beatty Living Places Ltd,09/04/2020,,1.00,Other Contracted Services,"391400 - Works - Construction, Repair & Maintenance"
Solihull MBC,Economy and Infrastructure,Highways & Transport Services,Balfour Beatty Living Places Ltd,09/04/2020,,93.68,Other Contracted Services,"391400 - Works - Construction, Repair & Maintenance"
Solihull MBC,Economy and Infrastructure,Highways & Transport Services,Balfour Beatty Living Places Ltd,09/04/2020,,93.68,Other Contracted Services,"391400 - Works - Construction, Repair & Maintenance"
Solihull MBC,Economy and Infrastructure,Highways & Transport Services,Balfour Beatty Living Places Ltd,09/04/2020,,93.68,Other Contracted Services,"391400 - Works - Construction, Repair & Maintenance"
Solihull MBC,Economy and Infrastructure,Highways & Transport Services,Balfour Beatty Living Places Ltd,09/04/2020,,93.68,Other Contracted Services,"391400 - Works - Construction, Repair & Maintenance"
Solihull MBC,Economy and Infrastructure,Highways & Transport Services,Balfour Beatty Living Places Ltd,09/04/2020,,93.68,Other Contracted Services,"391400 - Works - Construction, Repair & Maintenance"
Solihull MBC,Economy and Infrastructure,Highways & Transport Services,Balfour Beatty Living Places Ltd,09/04/2020,,46.84,Other Contracted Services,"391400 - Works - Construction, Repair & Maintenance"
Solihull MBC,Economy and Infrastructure,Highways & Transport Services,Balfour Beatty Living Places Ltd,09/04/2020,,111.67,Other Contracted Services,"391400 - Works - Construction, Repair & Maintenance"
Solihull MBC,Economy and Infrastructure,Highways & Transport Services,Balfour Beatty Living Places Ltd,09/04/2020,,93.68,Other Contracted Services,"391400 - Works - Construction, Repair & Maintenance"
Solihull MBC,Economy and Infrastructure,Highways & Transport Services,Balfour Beatty Living Places Ltd,09/04/2020,,160.57,Other Contracted Services,"391400 - Works - Construction, Repair & Maintenance"
Solihull MBC,Economy and Infrastructure,Highways & Transport Services,Balfour Beatty Living Places Ltd,09/04/2020,,120.72,Other Contracted Services,"391400 - Works - Construction, Repair & Maintenance"
Solihull MBC,Economy and Infrastructure,Highways & Transport Services,Balfour Beatty Living Places Ltd,09/04/2020,,130.68,Other Contracted Services,"391400 - Works - Construction, Repair & Maintenance"
Solihull MBC,Economy and Infrastructure,Highways & Transport Services,Balfour Beatty Living Places Ltd,09/04/2020,,46.84,Other Contracted Services,"391400 - Works - Construction, Repair & Maintenance"
Solihull MBC,Economy and Infrastructure,Highways & Transport Services,Balfour Beatty Living Places Ltd,09/04/2020,,53.15,Other Contracted Services,"391400 - Works - Construction, Repair & Maintenance"
Solihull MBC,Economy and Infrastructure,Highways & Transport Services,Balfour Beatty Living Places Ltd,09/04/2020,,5.73,Other Contracted Services,"391400 - Works - Construction, Repair & Maintenance"
Solihull MBC,Economy and Infrastructure,Highways & Transport Services,Balfour Beatty Living Places Ltd,09/04/2020,,7500.00,Other Contracted Services,"391400 - Works - Construction, Repair & Maintenance"
Solihull MBC,Economy and Infrastructure,Highways & Transport Services,Balfour Beatty Living Places Ltd,09/04/2020,,438.02,Other Contracted Services,"391400 - Works - Construction, Repair & Maintenance"
Solihull MBC,Economy and Infrastructure,Environmental and Regulatory Services,Balfour Beatty Living Places Ltd,09/04/2020,,303.08,Other Contracted Services,"391400 - Works - Construction, Repair & Maintenance"
Solihull MBC,Economy and Infrastructure,Highways & Transport Services,Balfour Beatty Living Places Ltd,09/04/2020,,290.62,Contractors,"391400 - Works - Construction, Repair & Maintenance"
Solihull MBC,Economy and Infrastructure,Highways & Transport Services,Balfour Beatty Living Places Ltd,09/04/2020,,78.22,Contractors,"391400 - Works - Construction, Repair & Maintenance"
Solihull MBC,Economy and Infrastructure,Highways & Transport Services,Balfour Beatty Living Places Ltd,09/04/2020,,401.25,Contractors,"391400 - Works - Construction, Repair & Maintenance"
Solihull MBC,Economy and Infrastructure,Highways & Transport Services,Balfour Beatty Living Places Ltd,09/04/2020,,133.96,Contractors,"391400 - Works - Construction, Repair & Maintenance"
Solihull MBC,Economy and Infrastructure,Highways & Transport Services,Balfour Beatty Living Places Ltd,09/04/2020,,986.32,Contractors,"391400 - Works - Construction, Repair & Maintenance"
Solihull MBC,Economy and Infrastructure,Highways & Transport Services,Balfour Beatty Living Places Ltd,09/04/2020,,113.36,Contractors,"391400 - Works - Construction, Repair & Maintenance"
Solihull MBC,Economy and Infrastructure,Highways & Transport Services,Balfour Beatty Living Places Ltd,09/04/2020,,116.58,Contractors,"391400 - Works - Construction, Repair & Maintenance"
Solihull MBC,Economy and Infrastructure,Highways & Transport Services,Balfour Beatty Living Places Ltd,09/04/2020,,106.24,Contractors,"391400 - Works - Construction, Repair & Maintenance"
Solihull MBC,Economy and Infrastructure,Highways & Transport Services,Balfour Beatty Living Places Ltd,09/04/2020,,321.45,Contractors,"391400 - Works - Construction, Repair & Maintenance"
Solihull MBC,Economy and Infrastructure,Highways & Transport Services,Balfour Beatty Living Places Ltd,09/04/2020,,19149.48,Contractors,"391400 - Works - Construction, Repair & Maintenance"
Solihull MBC,Economy and Infrastructure,Highways & Transport Services,Balfour Beatty Living Places Ltd,09/04/2020,,835.43,Contractors,"391400 - Works - Construction, Repair & Maintenance"
Solihull MBC,Economy and Infrastructure,Highways & Transport Services,Balfour Beatty Living Places Ltd,09/04/2020,,2417.17,Contractors,"391400 - Works - Construction, Repair & Maintenance"
Solihull MBC,Economy and Infrastructure,Highways & Transport Services,Balfour Beatty Living Places Ltd,09/04/2020,,42534.62,Contractors,"391400 - Works - Construction, Repair & Maintenance"
Solihull MBC,Economy and Infrastructure,Highways & Transport Services,Balfour Beatty Living Places Ltd,09/04/2020,,32214.74,Contractors,"391400 - Works - Construction, Repair & Maintenance"
Solihull MBC,Economy and Infrastructure,Highways & Transport Services,Balfour Beatty Living Places Ltd,09/04/2020,,15973.94,Contractors,"391400 - Works - Construction, Repair & Maintenance"
Solihull MBC,Economy and Infrastructure,Highways & Transport Services,Balfour Beatty Living Places Ltd,09/04/2020,,15400.62,Contractors,"391400 - Works - Construction, Repair & Maintenance"
Solihull MBC,Economy and Infrastructure,Highways & Transport Services,Balfour Beatty Living Places Ltd,09/04/2020,,22275.88,Contractors,"391400 - Works - Construction, Repair & Maintenance"
Solihull MBC,Economy and Infrastructure,Highways & Transport Services,Balfour Beatty Living Places Ltd,09/04/2020,,6203.23,Contractors,"391400 - Works - Construction, Repair & Maintenance"
Solihull MBC,Economy and Infrastructure,Highways & Transport Services,Balfour Beatty Living Places Ltd,09/04/2020,,8807.31,Contractors,"391400 - Works - Construction, Repair & Maintenance"
Solihull MBC,Economy and Infrastructure,Highways & Transport Services,Balfour Beatty Living Places Ltd,09/04/2020,,9685.23,Contractors,"391400 - Works - Construction, Repair & Maintenance"
Solihull MBC,Economy and Infrastructure,Highways & Transport Services,Balfour Beatty Living Places Ltd,09/04/2020,,36696.61,Contractors,"391400 - Works - Construction, Repair & Maintenance"
Solihull MBC,Economy and Infrastructure,Highways & Transport Services,Balfour Beatty Living Places Ltd,09/04/2020,,308.09,Contractors,"391400 - Works - Construction, Repair & Maintenance"
Solihull MBC,Economy and Infrastructure,Highways & Transport Services,Balfour Beatty Living Places Ltd,09/04/2020,,1892.55,Contractors,"391400 - Works - Construction, Repair & Maintenance"
Solihull MBC,Economy and Infrastructure,Highways & Transport Services,Balfour Beatty Living Places Ltd,09/04/2020,,1867.82,Contractors,"391400 - Works - Construction, Repair & Maintenance"
Solihull MBC,Economy and Infrastructure,Highways & Transport Services,Balfour Beatty Living Places Ltd,09/04/2020,,27957.36,Contractors,"391400 - Works - Construction, Repair & Maintenance"
Solihull MBC,Economy and Infrastructure,Highways & Transport Services,Balfour Beatty Living Places Ltd,09/04/2020,,10508.57,Contractors,"391400 - Works - Construction, Repair & Maintenance"
Solihull MBC,Economy and Infrastructure,Highways & Transport Services,Balfour Beatty Living Places Ltd,09/04/2020,,14148.04,Contractors,"391400 - Works - Construction, Repair & Maintenance"
Solihull MBC,Economy and Infrastructure,Highways & Transport Services,Balfour Beatty Living Places Ltd,09/04/2020,,26245.72,Contractors,"391400 - Works - Construction, Repair & Maintenance"
Solihull MBC,Economy and Infrastructure,Highways & Transport Services,Balfour Beatty Living Places Ltd,09/04/2020,,7777.47,Contractors,"391400 - Works - Construction, Repair & Maintenance"
Solihull MBC,Economy and Infrastructure,Highways & Transport Services,Balfour Beatty Living Places Ltd,09/04/2020,,32023.61,Contractors,"391400 - Works - Construction, Repair & Maintenance"
Solihull MBC,Economy and Infrastructure,Highways & Transport Services,Balfour Beatty Living Places Ltd,09/04/2020,,23918.57,Contractors,"391400 - Works - Construction, Repair & Maintenance"
Solihull MBC,Economy and Infrastructure,Highways & Transport Services,Balfour Beatty Living Places Ltd,09/04/2020,,43984.64,Contractors,"391400 - Works - Construction, Repair & Maintenance"
Solihull MBC,Economy and Infrastructure,Highways & Transport Services,Balfour Beatty Living Places Ltd,09/04/2020,,12863.93,Contractors,"391400 - Works - Construction, Repair & Maintenance"
Solihull MBC,Economy and Infrastructure,Highways & Transport Services,Balfour Beatty Living Places Ltd,09/04/2020,,23789.75,Contractors,"391400 - Works - Construction, Repair & Maintenance"
Solihull MBC,Economy and Infrastructure,Highways & Transport Services,Balfour Beatty Living Places Ltd,09/04/2020,,30503.76,Contractors,"391400 - Works - Construction, Repair & Maintenance"
Solihull MBC,Economy and Infrastructure,Highways & Transport Services,Balfour Beatty Living Places Ltd,09/04/2020,,180.26,Contractors,"391400 - Works - Construction, Repair & Maintenance"
Solihull MBC,Economy and Infrastructure,Highways & Transport Services,Balfour Beatty Living Places Ltd,09/04/2020,,625.96,Contractors,"391400 - Works - Construction, Repair & Maintenance"
Solihull MBC,Economy and Infrastructure,Highways & Transport Services,Balfour Beatty Living Places Ltd,09/04/2020,,1239.89,Contractors,"391400 - Works - Construction, Repair & Maintenance"
Solihull MBC,Economy and Infrastructure,Highways & Transport Services,Balfour Beatty Living Places Ltd,09/04/2020,,855.19,Contractors,"391400 - Works - Construction, Repair & Maintenance"
Solihull MBC,Economy and Infrastructure,Highways & Transport Services,Balfour Beatty Living Places Ltd,09/04/2020,,1191.80,Contractors,"391400 - Works - Construction, Repair & Maintenance"
Solihull MBC,Economy and Infrastructure,Highways & Transport Services,Balfour Beatty Living Places Ltd,09/04/2020,,744.70,Contractors,"391400 - Works - Construction, Repair & Maintenance"
Solihull MBC,Economy and Infrastructure,Highways & Transport Services,Balfour Beatty Living Places Ltd,09/04/2020,,142.10,Contractors,"391400 - Works - Construction, Repair & Maintenance"
Solihull MBC,Economy and Infrastructure,Highways & Transport Services,Balfour Beatty Living Places Ltd,09/04/2020,,482.81,Contractors,"391400 - Works - Construction, Repair & Maintenance"
Solihull MBC,Economy and Infrastructure,Highways & Transport Services,Balfour Beatty Living Places Ltd,09/04/2020,,928.56,Contractors,"391400 - Works - Construction, Repair & Maintenance"
Solihull MBC,Economy and Infrastructure,Highways & Transport Services,Balfour Beatty Living Places Ltd,09/04/2020,,5000.00,Contractors,"391400 - Works - Construction, Repair & Maintenance"
Solihull MBC,Economy and Infrastructure,Highways & Transport Services,Balfour Beatty Living Places Ltd,09/04/2020,,558.89,Contractors,"391400 - Works - Construction, Repair & Maintenance"
Solihull MBC,Economy and Infrastructure,Highways & Transport Services,Balfour Beatty Living Places Ltd,09/04/2020,,900.31,Contractors,"391400 - Works - Construction, Repair & Maintenance"
Solihull MBC,Economy and Infrastructure,Highways & Transport Services,Balfour Beatty Living Places Ltd,09/04/2020,,115.09,Contractors,"391400 - Works - Construction, Repair & Maintenance"
Solihull MBC,Economy and Infrastructure,Highways & Transport Services,Balfour Beatty Living Places Ltd,09/04/2020,,383.95,Contractors,"391400 - Works - Construction, Repair & Maintenance"
Solihull MBC,Resources,Planning & Development Services,Balfour Beatty Living Places Ltd,09/04/2020,,3.18,Other Contracted Services,"391400 - Works - Construction, Repair & Maintenance"
Solihull MBC,Economy and Infrastructure,Cultural & Related Services,Balfour Beatty Living Places Ltd,09/04/2020,,697.79,Other Contracted Services,"391400 - Works - Construction, Repair & Maintenance"
Solihull MBC,Economy and Infrastructure,Cultural & Related Services,Balfour Beatty Living Places Ltd,09/04/2020,,1773.19,Other Contracted Services,"391400 - Works - Construction, Repair & Maintenance"
Solihull MBC,Economy and Infrastructure,Highways & Transport Services,Balfour Beatty Living Places Ltd,09/04/2020,,1628.83,Strategic Highways Contract,"391400 - Works - Construction, Repair & Maintenance"
Solihull MBC,Public Health & Commissioning,Central Services to the Public,Balsall & Berkswell Jubilee Project,14/04/2020,,10000.00,Grant & Subscription (SCITT),Not Yet Classified
Solihull MBC,Public Health & Commissioning,Central Services to the Public,Balsall Carpets Ltd,07/04/2020,,10000.00,Grant & Subscription (SCITT),Not Yet Classified
Solihull MBC,Public Health & Commissioning,Central Services to the Public,Balsall Common Dentists(Dr Ashley Davenport),21/04/2020,,10000.00,Grant & Subscription (SCITT),Not Yet Classified
Solihull MBC,Children's Services - DSG Central.,Children & Education Services,Balsall Common Primary School,09/04/2020,,36536.40,Grant & Subscription (SCITT),Not Yet Classified
Solihull MBC,Resources - Non Monitored,Precepts Paid to Parish Councils,Balsall Parish Council,02/04/2020,,49127.50,Parish Precepts,Not Yet Classified
Solihull MBC,Children's Services - DSG Central.,Children & Education Services,Baltimore Consulting Group,28/04/2020,,3600.00,Agency Staff,Not Yet Classified
Solihull MBC,Public Health & Commissioning,Central Services to the Public,Banbury Club,20/04/2020,,25000.00,Grant & Subscription (SCITT),Not Yet Classified
Solihull MBC,Children's Services & Skills,Children & Education Services,Banya,27/04/2020,,3199.20,External Fostering,Not Yet Classified
Solihull MBC,Children's Services & Skills,Children & Education Services,Banya,14/04/2020,,3220.00,External Fostering,Not Yet Classified
Solihull MBC,Children's Services & Skills,Children & Education Services,Banya,14/04/2020,,3392.00,External Fostering,Not Yet Classified
Solihull MBC,Children's Services & Skills,Children & Education Services,Banya,30/04/2020,,3371.12,External Fostering,Not Yet Classified
Solihull MBC,Public Health & Commissioning,Central Services to the Public,Bar Beauty Ltd,14/04/2020,,10000.00,Grant & Subscription (SCITT),Not Yet Classified
Solihull MBC,Children's Services - DSG Central.,Children & Education Services,Barbara Priestman Academy,01/04/2020,,1624.34,Other Contracted Services,Not Yet Classified
Solihull MBC,Public Health & Commissioning,Central Services to the Public,Barber 93,21/04/2020,,10000.00,Grant & Subscription (SCITT),Not Yet Classified
Solihull MBC,Adult Social Care,Adult Social Care,Barchester Healthcare Homes Ltd,23/04/2020,,405.85,ASC - Residential Care Permanent,321000 - Social Community Care Supplies & Services - Adult
Solihull MBC,Adult Social Care,Adult Social Care,Barchester Healthcare Homes Ltd,23/04/2020,,1760.64,ASC - Residential Care Permanent,321000 - Social Community Care Supplies & Services - Adult
Solihull MBC,Adult Social Care,Adult Social Care,Barchester Healthcare Homes Ltd,23/04/2020,,365.71,ASC - Residential Care Permanent,321000 - Social Community Care Supplies & Services - Adult
Solihull MBC,Adult Social Care,Adult Social Care,Barchester Healthcare Homes Ltd,23/04/2020,,914.29,ASC - Residential Care Permanent,321000 - Social Community Care Supplies & Services - Adult
Solihull MBC,Adult Social Care,Adult Social Care,Barchester Healthcare Homes Ltd,23/04/2020,,3896.13,ASC - Residential Care Permanent,321000 - Social Community Care Supplies & Services - Adult
Solihull MBC,Adult Social Care,Adult Social Care,Barchester Healthcare Homes Ltd,23/04/2020,,272.86,ASC - Nursing Care Permanent,321000 - Social Community Care Supplies & Services - Adult
Solihull MBC,Adult Social Care,Adult Social Care,Barchester Healthcare Homes Ltd,23/04/2020,,682.15,ASC - Nursing Care Permanent,321000 - Social Community Care Supplies & Services - Adult
Solihull MBC,Adult Social Care,Adult Social Care,Barchester Healthcare Homes Ltd,23/04/2020,,2927.82,ASC - Nursing Care Permanent,321000 - Social Community Care Supplies & Services - Adult
Solihull MBC,Economy and Infrastructure,Environmental and Regulatory Services,Barclaycard,14/04/2020,,50.00,Other Fees,Not Yet Classified
Solihull MBC,Economy and Infrastructure,Environmental and Regulatory Services,Barclaycard,14/04/2020,,178.18,Other Fees,Not Yet Classified
Solihull MBC,Resources,Central Services to the Public,Barclaycard,14/04/2020,,300.85,Debit Card Charges,Not Yet Classified
Solihull MBC,Resources,Central Services to the Public,Barclaycard,14/04/2020,,1746.91,Other Fees,Not Yet Classified
Solihull MBC,Resources,Central Services to the Public,Barclaycard,14/04/2020,,2769.17,Other Fees,Not Yet Classified
Solihull MBC,Resources,Central Services to the Public,Barclaycard,14/04/2020,,1854.72,Other Fees,Not Yet Classified
Solihull MBC,Resources,Corporate & Democratic Core,Barclaycard,14/04/2020,,4.80,Other Contracted Services,Not Yet Classified
Solihull MBC,Resources,Corporate & Democratic Core,Barclaycard,14/04/2020,,325.00,Other Contracted Services,Not Yet Classified
Solihull MBC,Resources,Corporate & Democratic Core,Barclaycard,14/04/2020,,45.34,Other Contracted Services,Not Yet Classified
Solihull MBC,Adult Social Care,Cultural & Related Services,Barclaycard,14/04/2020,,30.00,Other Fees,Not Yet Classified
Solihull MBC,Adult Social Care,Cultural & Related Services,Barclaycard,14/04/2020,,28.05,Other Fees,Not Yet Classified
Solihull MBC,Adult Social Care,Cultural & Related Services,Barclaycard,14/04/2020,,25.00,Other Fees,Not Yet Classified
Solihull MBC,Adult Social Care,Cultural & Related Services,Barclaycard,14/04/2020,,-1.26,Other Fees,Not Yet Classified
Solihull MBC,Adult Social Care,Cultural & Related Services,Barclaycard,14/04/2020,,53.41,Other Fees,Not Yet Classified
Solihull MBC,Adult Social Care,Cultural & Related Services,Barclaycard,14/04/2020,,50.00,Other Fees,Not Yet Classified
Solihull MBC,Adult Social Care,Cultural & Related Services,Barclaycard,14/04/2020,,36.41,Other Fees,Not Yet Classified
Solihull MBC,Resources,Children & Education Services,Barclaycard,14/04/2020,,25.00,IT Equipment & Software,Not Yet Classified
Solihull MBC,Children's Services & Skills,Children & Education Services,Barnardo Services Ltd,28/04/2020,,2940.20,External Fostering,321100 - Social Community Care Supplies & Services - Children
Solihull MBC,Children's Services & Skills,Children & Education Services,Barnardo Services Ltd,28/04/2020,,2940.20,External Fostering,321100 - Social Community Care Supplies & Services - Children
Solihull MBC,Children's Services & Skills,Children & Education Services,Barnardo Services Ltd,28/04/2020,,2940.20,External Fostering,321100 - Social Community Care Supplies & Services - Children
Solihull MBC,Children's Services & Skills,Children & Education Services,Barnardo Services Ltd,28/04/2020,,1995.14,External Fostering,321100 - Social Community Care Supplies & Services - Children
Solihull MBC,Children's Services & Skills,Children & Education Services,Barnardos,30/04/2020,,6691.20,External Fostering,Not Yet Classified
Solihull MBC,Children's Services & Skills,Children & Education Services,Barnardos,30/04/2020,,-3356.00,External Fostering,Not Yet Classified
Solihull MBC,Children's Services - DSG Central.,Children & Education Services,Barnhouse Nursey T/A Daycare At St Martins,30/04/2020,,702.00,Grant & Subscription (SCITT),321100 - Social Community Care Supplies & Services - Children
Solihull MBC,Children's Services - DSG Central.,Children & Education Services,Barnhouse Nursey T/A Daycare At St Martins,09/04/2020,,46207.80,Grant & Subscription (SCITT),321100 - Social Community Care Supplies & Services - Children
Solihull MBC,Public Health & Commissioning,Central Services to the Public,Barrett Sausage,15/04/2020,,10000.00,Grant & Subscription (SCITT),Not Yet Classified
Solihull MBC,Public Health & Commissioning,Central Services to the Public,Barston Memorial Institute,21/04/2020,,10000.00,Grant & Subscription (SCITT),Not Yet Classified
Solihull MBC,Economy and Infrastructure,Planning & Development Services,Barston Parish Council,27/04/2020,,11251.98,Capital Grants Unapplied,Not Yet Classified
Solihull MBC,Economy and Infrastructure,Environmental and Regulatory Services,Barston Parish Council,01/04/2020,,250.00,Other Contracted Services,Not Yet Classified
Solihull MBC,Economy and Infrastructure,Environmental and Regulatory Services,Barston Parish Council,15/04/2020,,250.00,Furniture & Equipment,Not Yet Classified
Solihull MBC,Resources - Non Monitored,Precepts Paid to Parish Councils,Barston Parish Council,02/04/2020,,7243.50,Parish Precepts,Not Yet Classified
Solihull MBC,Public Health & Commissioning,Central Services to the Public,Bastock & Bruce,07/04/2020,,10000.00,Grant & Subscription (SCITT),Not Yet Classified
Solihull MBC,Public Health & Commissioning,Central Services to the Public,Bastock (Contracts) Ltd,14/04/2020,,25000.00,Grant & Subscription (SCITT),Not Yet Classified
Solihull MBC,Public Health & Commissioning,Central Services to the Public,BDWholesale Meats (South Birmingham) Ltd,07/04/2020,,10000.00,Grant & Subscription (SCITT),Not Yet Classified
Solihull MBC,Children's Services - DSG Central.,Children & Education Services,Beatle Woods,09/04/2020,,14972.76,Grant & Subscription (SCITT),Not Yet Classified
Solihull MBC,Children's Services - DSG Central.,Children & Education Services,Beatle Woods,09/04/2020,,2154.60,Grant & Subscription (SCITT),Not Yet Classified
Solihull MBC,Public Health & Commissioning,Central Services to the Public,Beaumont Storage Ltd,07/04/2020,,10000.00,Grant & Subscription (SCITT),Not Yet Classified
Solihull MBC,Public Health & Commissioning,Central Services to the Public,Beautique Studio Ltd,28/04/2020,,10000.00,Grant & Subscription (SCITT),Not Yet Classified
Solihull MBC,Public Health & Commissioning,Central Services to the Public,Beauty At Two Ten,08/04/2020,,10000.00,Grant & Subscription (SCITT),Not Yet Classified
Solihull MBC,Resources,Central Services to the Public,Bechtle Direct Ltd,01/04/2020,,9.95,Hardware,Not Yet Classified
Solihull MBC,Resources,Central Services to the Public,Bechtle Direct Ltd,01/04/2020,,10887.00,Hardware,Not Yet Classified
Solihull MBC,Resources,Central Services to the Public,Bechtle Direct Ltd,24/04/2020,,9.95,Hardware,Not Yet Classified
Solihull MBC,Resources,Central Services to the Public,Bechtle Direct Ltd,24/04/2020,,21730.50,Hardware,Not Yet Classified
Solihull MBC,Resources,Central Services to the Public,Bechtle Direct Ltd,30/04/2020,,19.90,Hardware,Not Yet Classified
Solihull MBC,Resources,Central Services to the Public,Bechtle Direct Ltd,30/04/2020,,2919.70,Hardware,Not Yet Classified
Solihull MBC,Public Health & Commissioning,Central Services to the Public,Bedeck Ltd,03/04/2020,,25000.00,Grant & Subscription (SCITT),Not Yet Classified
Solihull MBC,Children's Services - DSG Central.,Children & Education Services,Beechwood Childcare,09/04/2020,,10722.12,Grant & Subscription (SCITT),321100 - Social Community Care Supplies & Services - Children
Solihull MBC,Children's Services - DSG Central.,Children & Education Services,Beechwood Childcare,09/04/2020,,17050.32,Grant & Subscription (SCITT),321100 - Social Community Care Supplies & Services - Children
Solihull MBC,Children's Services - DSG Central.,Children & Education Services,Beechwood Childcare,09/04/2020,,2154.60,Grant & Subscription (SCITT),321100 - Social Community Care Supplies & Services - Children
Solihull MBC,Children's Services - DSG Central.,Children & Education Services,Beechwood Childcare (Mill Lodge),09/04/2020,,2872.80,Grant & Subscription (SCITT),321100 - Social Community Care Supplies & Services - Children
Solihull MBC,Public Health & Commissioning,Central Services to the Public,Belladonna,14/04/2020,,10000.00,Grant & Subscription (SCITT),Not Yet Classified
Solihull MBC,Resources,Corporate & Democratic Core,Bellway Homes Ltd,08/04/2020,,1500.00,Professional Fees,Not Yet Classified
Solihull MBC,Public Health & Commissioning,Central Services to the Public,Belmont Sandbanks Ltd T/A Belmont Healthcare,21/04/2020,,10000.00,Grant & Subscription (SCITT),Not Yet Classified
Solihull MBC,Public Health & Commissioning,Central Services to the Public,Bengal Brasserie (Balsall Common) Ltd,03/04/2020,,25000.00,Grant & Subscription (SCITT),Not Yet Classified
Solihull MBC,Public Health & Commissioning,Central Services to the Public,Benito Brow Bar Stores Ltd,15/04/2020,,25000.00,Grant & Subscription (SCITT),Not Yet Classified
Solihull MBC,Public Health & Commissioning,Central Services to the Public,Bentley Heath Barber Co Ltd,27/04/2020,,10000.00,Grant & Subscription (SCITT),Not Yet Classified
Solihull MBC,Public Health & Commissioning,Central Services to the Public,Bentley Heath Community Association,14/04/2020,,10000.00,Grant & Subscription (SCITT),Not Yet Classified
Solihull MBC,Public Health & Commissioning,Central Services to the Public,Bentley Heath Post Office,14/04/2020,,10000.00,Grant & Subscription (SCITT),Not Yet Classified
Solihull MBC,Public Health & Commissioning,Central Services to the Public,Berkswell And District Royal British Legion Social Club Ltd,14/04/2020,,10000.00,Grant & Subscription (SCITT),Not Yet Classified
Solihull MBC,Resources - Non Monitored,Precepts Paid to Parish Councils,Berkswell Parish Council,02/04/2020,,21799.00,Parish Precepts,Not Yet Classified
Solihull MBC,Public Health & Commissioning,Central Services to the Public,Berkswell Village Stores(Mr & Mrs John Ebbans),22/04/2020,,10000.00,Grant & Subscription (SCITT),Not Yet Classified
Solihull MBC,Adult Social Care,Adult Social Care,BES Rehab Ltd,01/04/2020,,1438.92,Furniture & Equipment,Not Yet Classified
Solihull MBC,Adult Social Care,Adult Social Care,BES Rehab Ltd,01/04/2020,,130.00,Furniture & Equipment,Not Yet Classified
Solihull MBC,Adult Social Care,Adult Social Care,BES Rehab Ltd,01/04/2020,,-719.40,Furniture & Equipment,Not Yet Classified
Solihull MBC,Adult Social Care,Adult Social Care,BES Rehab Ltd,01/04/2020,,319.68,Furniture & Equipment,Not Yet Classified
Solihull MBC,Public Health & Commissioning,Central Services to the Public,Bespoke Brows & Beauty,07/04/2020,,10000.00,Grant & Subscription (SCITT),Not Yet Classified
Solihull MBC,Public Health & Commissioning,Central Services to the Public,Best Practice (Midlands) Ltd,15/04/2020,,10000.00,Grant & Subscription (SCITT),Not Yet Classified
Solihull MBC,Public Health & Commissioning,Central Services to the Public,Beverley Justine Ltd,27/04/2020,,10000.00,Grant & Subscription (SCITT),Not Yet Classified
Solihull MBC,Public Health & Commissioning,Central Services to the Public,Beyond Financial L,15/04/2020,,10000.00,Grant & Subscription (SCITT),Not Yet Classified
Solihull MBC,Public Health & Commissioning,Central Services to the Public,Beyond The Conference Ltd,15/04/2020,,10000.00,Grant & Subscription (SCITT),Not Yet Classified
Solihull MBC,Economy and Infrastructure,Cultural & Related Services,Bibliotheca,06/04/2020,,6495.00,Hardware,Not Yet Classified
Solihull MBC,Economy and Infrastructure,Cultural & Related Services,Bibliotheca,06/04/2020,,6495.00,Hardware,Not Yet Classified
Solihull MBC,Economy and Infrastructure,Cultural & Related Services,Bibliotheca,06/04/2020,,6495.00,Hardware,Not Yet Classified
Solihull MBC,Economy and Infrastructure,Cultural & Related Services,Bibliotheca,06/04/2020,,550.00,Hardware,Not Yet Classified
Solihull MBC,Economy and Infrastructure,Planning & Development Services,Bickenhill And Marston Green Parish Council,27/04/2020,,5665.84,Capital Grants Unapplied,Not Yet Classified
Solihull MBC,Resources - Non Monitored,Precepts Paid to Parish Councils,Bickenhill And Marston Green Parish Council,02/04/2020,,74750.00,Parish Precepts,Not Yet Classified
Solihull MBC,Adult Social Care,Adult Social Care,Bid Services For Deaf People,07/04/2020,,14984.75,Other Contracted Services,401401 - Social Community Care Supplies & Services - Children - Specialist Needs
Solihull MBC,Adult Social Care,Corporate & Democratic Core,Bidfood,07/04/2020,,1391.88,Catering Provisions,Not Yet Classified
Solihull MBC,Adult Social Care,Corporate & Democratic Core,Bidfood,14/04/2020,,2106.13,Catering Provisions,Not Yet Classified
Solihull MBC,Adult Social Care,Corporate & Democratic Core,Bidfood,15/04/2020,,3782.24,Catering Provisions,Not Yet Classified
Solihull MBC,Adult Social Care,Corporate & Democratic Core,Bidfood,22/04/2020,,3990.99,Catering Provisions,Not Yet Classified
Solihull MBC,Adult Social Care,Corporate & Democratic Core,Bidfood,22/04/2020,,719.10,Catering Provisions,Not Yet Classified
Solihull MBC,Adult Social Care,Corporate & Democratic Core,Bidfood,24/04/2020,,411.30,Catering Provisions,Not Yet Classified
Solihull MBC,Adult Social Care,Corporate & Democratic Core,Bidfood,29/04/2020,,2889.73,Catering Provisions,Not Yet Classified
Solihull MBC,Public Health & Commissioning,Central Services to the Public,Big Bitez Ltd,14/04/2020,,10000.00,Grant & Subscription (SCITT),Not Yet Classified
Solihull MBC,Public Health & Commissioning,Central Services to the Public,Big Bitez Ltd,21/04/2020,,15000.00,Grant & Subscription (SCITT),Not Yet Classified
Solihull MBC,Public Health & Commissioning,Central Services to the Public,Bilash (Knowle) Limited,20/04/2020,,10000.00,Grant & Subscription (SCITT),Not Yet Classified
Solihull MBC,Children's Services - DSG Central.,Children & Education Services,Billy Bears Nursery,09/04/2020,,23641.20,Grant & Subscription (SCITT),321100 - Social Community Care Supplies & Services - Children
Solihull MBC,Adult Social Care,Adult Social Care,Bionicare,03/04/2020,,4768.12,ASC - Supported Living Care Costs,321000 - Social Community Care Supplies & Services - Adult
Solihull MBC,Adult Social Care,Adult Social Care,Birchmere Mews (Wt Opco3 Ltd),23/04/2020,,328.57,ASC - Residential Care Permanent,Not Yet Classified
Solihull MBC,Adult Social Care,Adult Social Care,Birchmere Mews (Wt Opco3 Ltd),23/04/2020,,821.43,ASC - Residential Care Permanent,Not Yet Classified
Solihull MBC,Adult Social Care,Adult Social Care,Birchmere Mews (Wt Opco3 Ltd),23/04/2020,,3506.16,ASC - Residential Care Permanent,Not Yet Classified
Solihull MBC,Adult Social Care,Adult Social Care,Birchmere Mews (Wt Opco3 Ltd),23/04/2020,,328.58,ASC - Residential Care Permanent,Not Yet Classified
Solihull MBC,Adult Social Care,Adult Social Care,Birchmere Mews (Wt Opco3 Ltd),23/04/2020,,821.45,ASC - Residential Care Permanent,Not Yet Classified
Solihull MBC,Adult Social Care,Adult Social Care,Birchmere Mews (Wt Opco3 Ltd),23/04/2020,,3506.16,ASC - Residential Care Permanent,Not Yet Classified
Solihull MBC,Adult Social Care,Adult Social Care,Birchmere Mews (Wt Opco3 Ltd),23/04/2020,,328.58,ASC - Residential Care Permanent,Not Yet Classified
Solihull MBC,Adult Social Care,Adult Social Care,Birchmere Mews (Wt Opco3 Ltd),23/04/2020,,821.45,ASC - Residential Care Permanent,Not Yet Classified
Solihull MBC,Adult Social Care,Adult Social Care,Birchmere Mews (Wt Opco3 Ltd),23/04/2020,,3518.55,ASC - Residential Care Permanent,Not Yet Classified
Solihull MBC,Adult Social Care,Adult Social Care,Birmingham And Solihull Mental Health Trust,03/04/2020,,789.00,Furniture & Equipment,Not Yet Classified
Solihull MBC,Public Health & Commissioning,Central Services to the Public,Birmingham Boys Brigade Trading Limited,30/04/2020,,25000.00,Grant & Subscription (SCITT),Not Yet Classified
Solihull MBC,Resources,Central Services to the Public,Birmingham City Council,20/04/2020,,4433.16,Postage & Courier Services,Not Yet Classified
Solihull MBC,Resources,Central Services to the Public,Birmingham City Council Shared Services,22/04/2020,,5828.45,Postage & Courier Services,Not Yet Classified
Solihull MBC,Adult Social Care,Adult Social Care,Birmingham Community Healthcare NHS,21/04/2020,,800.61,Furniture & Equipment,Not Yet Classified
Solihull MBC,Economy and Infrastructure,Planning & Development Services,Birmingham Dogs Home,15/04/2020,,425.00,Other Fees,Not Yet Classified
Solihull MBC,Public Health & Commissioning,Central Services to the Public,Birmingham Exiles RFC Ltd,27/04/2020,,25000.00,Grant & Subscription (SCITT),Not Yet Classified
Solihull MBC,Adult Social Care,Adult Social Care,Birmingham Focus,02/04/2020,,2200.00,ASC - Day Care,321000 - Social Community Care Supplies & Services - Adult
Solihull MBC,Adult Social Care,Adult Social Care,Birmingham Multicare,30/04/2020,,306.44,ASC - Residential Care Respite,321100 - Social Community Care Supplies & Services - Children
Solihull MBC,Public Health & Commissioning,Central Services to the Public,Birmingham Runner Sports Ltd,07/04/2020,,10000.00,Grant & Subscription (SCITT),Not Yet Classified
Solihull MBC,Adult Social Care,Adult Social Care,Birmingham Social Services,23/04/2020,,1114.29,ASC - Shared Lives,Not Yet Classified
Solihull MBC,Children's Services - DSG Central.,Children & Education Services,Birmingham Tuition Centre,21/04/2020,,3240.00,Professional Fees,Not Yet Classified
Solihull MBC,Public Health & Commissioning,Central Services to the Public,Birminham/Soliull Womens Aid,14/04/2020,,10000.00,Grant & Subscription (SCITT),Not Yet Classified
Solihull MBC,Adult Social Care,Adult Social Care,BJCC,23/04/2020,,475.25,ASC - Nursing Care Permanent,Not Yet Classified
Solihull MBC,Adult Social Care,Adult Social Care,BJCC,23/04/2020,,2058.84,ASC - Nursing Care Permanent,Not Yet Classified
Solihull MBC,Adult Social Care,Adult Social Care,BJCC,23/04/2020,,2364.25,ASC - Nursing Care Respite,Not Yet Classified
Solihull MBC,Public Health & Commissioning,Central Services to the Public,BL Shirley Ltd,27/04/2020,,10000.00,Grant & Subscription (SCITT),Not Yet Classified
Solihull MBC,Public Health & Commissioning,Central Services to the Public,Black And Golds Limited,15/04/2020,,10000.00,Grant & Subscription (SCITT),Not Yet Classified
Solihull MBC,Resources,Central Services to the Public,Black And White Lettings,22/04/2020,,1538.00,Rents For Premises,Not Yet Classified
Solihull MBC,Resources,Central Services to the Public,Black And White Lettings,07/04/2020,,575.00,Rents For Premises,Not Yet Classified
Solihull MBC,Children's Services - DSG Central.,Children & Education Services,Blackwater Academy,01/04/2020,,15194.60,Other Contracted Services,Not Yet Classified
Solihull MBC,Children's Services - DSG Central.,Children & Education Services,Blossoms Pre-School Limited,16/04/2020,,2462.63,Grant & Subscription (SCITT),Not Yet Classified
Solihull MBC,Children's Services - DSG Central.,Children & Education Services,Blossoms Pre-School Limited,09/04/2020,,331.34,Grant & Subscription (SCITT),Not Yet Classified
Solihull MBC,Children's Services - DSG Central.,Children & Education Services,Blossoms Pre-School Limited,16/04/2020,,1316.70,Grant & Subscription (SCITT),Not Yet Classified
Solihull MBC,Public Health & Commissioning,Central Services to the Public,Blossoms Pre-School Ltd,14/04/2020,,10000.00,Grant & Subscription (SCITT),Not Yet Classified
Solihull MBC,Economy and Infrastructure,Planning & Development Services,Blue Orchid,03/04/2020,,22083.33,Professional Fees,150000 - Consultancy
Solihull MBC,Adult Social Care,Adult Social Care,Bluebird Care (Solihull),09/04/2020,,828.00,ASC - Domiciliary Care,Not Yet Classified
Solihull MBC,Public Health & Commissioning,Central Services to the Public,BMB Clothing Ltd,30/04/2020,,25000.00,Grant & Subscription (SCITT),Not Yet Classified
Solihull MBC,Public Health & Commissioning,Central Services to the Public,Bob Dil Ltd,15/04/2020,,10000.00,Grant & Subscription (SCITT),Not Yet Classified
Solihull MBC,Public Health & Commissioning,Central Services to the Public,Bodytech Solihull,15/04/2020,,10000.00,Grant & Subscription (SCITT),Not Yet Classified
Solihull MBC,Economy and Infrastructure,Cultural & Related Services,Bolinda Publishing,24/04/2020,Card Transaction,446.39,Purchase Card Statement Summary,349999 - Stationery - Not Elsewhere Classified
Solihull MBC,Economy and Infrastructure,Cultural & Related Services,Bolinda Publishing,24/04/2020,Card Transaction,500.00,Purchase Card Statement Summary,349999 - Stationery - Not Elsewhere Classified
Solihull MBC,Economy and Infrastructure,Cultural & Related Services,Bolinda Publishing,24/04/2020,Card Transaction,500.00,Purchase Card Statement Summary,349999 - Stationery - Not Elsewhere Classified
Solihull MBC,Economy and Infrastructure,Cultural & Related Services,Bolinda Publishing,24/04/2020,Card Transaction,500.00,Purchase Card Statement Summary,349999 - Stationery - Not Elsewhere Classified
Solihull MBC,Adult Social Care,Adult Social Care,Bondcare (Bromford) Ltd,23/04/2020,,2458.82,ASC - Nursing Care Permanent,321000 - Social Community Care Supplies & Services - Adult
Solihull MBC,Adult Social Care,Adult Social Care,Bondcare (Bromford) Ltd,23/04/2020,,529.90,ASC - Nursing Care Permanent,321000 - Social Community Care Supplies & Services - Adult
Solihull MBC,Adult Social Care,Adult Social Care,Bondcare (Bromford) Ltd,23/04/2020,,2292.15,ASC - Nursing Care Permanent,321000 - Social Community Care Supplies & Services - Adult
Solihull MBC,Adult Social Care,Adult Social Care,Bondcare (Bromford) Ltd,23/04/2020,,601.31,ASC - Nursing Care Permanent,321000 - Social Community Care Supplies & Services - Adult
Solihull MBC,Adult Social Care,Adult Social Care,Bondcare (Bromford) Ltd,23/04/2020,,2588.25,ASC - Nursing Care Permanent,321000 - Social Community Care Supplies & Services - Adult
Solihull MBC,Public Health & Commissioning,Central Services to the Public,Bonhams 1793 Ltd,14/04/2020,,25000.00,Grant & Subscription (SCITT),Not Yet Classified
Solihull MBC,Children's Services - DSG Central.,Children & Education Services,Booktrust,21/04/2020,,10076.04,Professional Fees,Not Yet Classified
Solihull MBC,Public Health & Commissioning,Central Services to the Public,Bora Food And Beverage Company Ltd,14/04/2020,,25000.00,Grant & Subscription (SCITT),Not Yet Classified
Solihull MBC,Resources,Other Housing Services,Borshch Electric,22/04/2020,,424.99,Clients Expenses,110000 - Catering
Solihull MBC,Resources,Other Housing Services,Borshch Electric,06/04/2020,,412.49,Clients Expenses,110000 - Catering
Solihull MBC,Resources,Other Housing Services,Borshch Electric,06/04/2020,,233.33,Clients Expenses,110000 - Catering
Solihull MBC,Resources,Other Housing Services,Borshch Electric,06/04/2020,,233.33,Clients Expenses,110000 - Catering
Solihull MBC,Resources,Other Housing Services,Borshch Electric,21/04/2020,,254.16,Clients Expenses,110000 - Catering
Solihull MBC,Resources,Other Housing Services,Borshch Electric,28/04/2020,,279.16,Clients Expenses,110000 - Catering
Solihull MBC,Resources,Other Housing Services,Borshch Electric,21/04/2020,,495.82,Clients Expenses,110000 - Catering
Solihull MBC,Resources,Other Housing Services,Borshch Electric,21/04/2020,,495.82,Clients Expenses,110000 - Catering
Solihull MBC,Public Health & Commissioning,Central Services to the Public,Bosworth Food Store,07/04/2020,,10000.00,Grant & Subscription (SCITT),Not Yet Classified
Solihull MBC,Public Health & Commissioning,Central Services to the Public,Bosworth News,23/04/2020,,10000.00,Grant & Subscription (SCITT),Not Yet Classified
Solihull MBC,Children's Services - DSG Central.,Children & Education Services,Bosworth Wood Neighbourhood Nursery-Lawnswood,09/04/2020,,24178.50,Grant & Subscription (SCITT),321100 - Social Community Care Supplies & Services - Children
Solihull MBC,Children's Services - DSG Central.,Children & Education Services,Bosworth Wood Neighbourhood Nursery-Lawnswood,09/04/2020,,5027.40,Grant & Subscription (SCITT),321100 - Social Community Care Supplies & Services - Children
Solihull MBC,Public Health & Commissioning,Central Services to the Public,Bosworths Butchers Ltd,23/04/2020,,10000.00,Grant & Subscription (SCITT),Not Yet Classified
Solihull MBC,Resources,Central Services to the Public,Bournemouth University,14/04/2020,,-450.00,Training,Not Yet Classified
Solihull MBC,Adult Social Care,Adult Social Care,Bracebridge Court (Runwood Homes),23/04/2020,,388.45,ASC - Residential Care Permanent,Not Yet Classified
Solihull MBC,Adult Social Care,Adult Social Care,Bracebridge Court (Runwood Homes),23/04/2020,,1699.95,ASC - Residential Care Permanent,Not Yet Classified
Solihull MBC,Adult Social Care,Corporate & Democratic Core,Brake Bros Foodservice Ltd,29/04/2020,,219.02,Catering Provisions,110000 - Catering
Solihull MBC,Adult Social Care,Corporate & Democratic Core,Brake Bros Foodservice Ltd,29/04/2020,,491.69,Catering Provisions,110000 - Catering
Solihull MBC,Adult Social Care,Corporate & Democratic Core,Brake Bros Foodservice Ltd,29/04/2020,,71.66,Catering Provisions,110000 - Catering
Solihull MBC,Adult Social Care,Corporate & Democratic Core,Brake Bros Foodservice Ltd,29/04/2020,,240.80,Catering Provisions,110000 - Catering
Solihull MBC,Resources,Children & Education Services,Brake Bros Foodservice Ltd,02/04/2020,,25.39,Catering Provisions,110000 - Catering
Solihull MBC,Resources,Children & Education Services,Brake Bros Foodservice Ltd,02/04/2020,,241.48,Catering Provisions,110000 - Catering
Solihull MBC,Resources,Children & Education Services,Brake Bros Foodservice Ltd,02/04/2020,,163.99,Catering Provisions,110000 - Catering
Solihull MBC,Resources,Children & Education Services,Brake Bros Foodservice Ltd,29/04/2020,,701.06,Catering Provisions,110000 - Catering
Solihull MBC,Resources,Children & Education Services,Brake Bros Foodservice Ltd,29/04/2020,,155.73,Catering Provisions,110000 - Catering
Solihull MBC,Resources,Children & Education Services,Brake Bros Foodservice Ltd,29/04/2020,,630.32,Catering Provisions,110000 - Catering
Solihull MBC,Resources,Children & Education Services,Brake Bros Foodservice Ltd,29/04/2020,,250.52,Catering Provisions,110000 - Catering
Solihull MBC,Resources,Children & Education Services,Brake Bros Foodservice Ltd,02/04/2020,,221.85,Catering Provisions,110000 - Catering
Solihull MBC,Resources,Children & Education Services,Brake Bros Foodservice Ltd,29/04/2020,,115.71,Catering Provisions,110000 - Catering
Solihull MBC,Resources,Children & Education Services,Brake Bros Foodservice Ltd,29/04/2020,,16.74,Catering Provisions,110000 - Catering
Solihull MBC,Resources,Children & Education Services,Brake Bros Foodservice Ltd,02/04/2020,,139.40,Catering Provisions,110000 - Catering
Solihull MBC,Resources,Children & Education Services,Brake Bros Foodservice Ltd,02/04/2020,,9.25,Catering Provisions,110000 - Catering
Solihull MBC,Resources,Children & Education Services,Brake Bros Foodservice Ltd,02/04/2020,,221.32,Catering Provisions,110000 - Catering
Solihull MBC,Resources,Children & Education Services,Brake Bros Foodservice Ltd,29/04/2020,,170.09,Catering Provisions,110000 - Catering
Solihull MBC,Resources,Children & Education Services,Brake Bros Foodservice Ltd,02/04/2020,,109.35,Catering Provisions,110000 - Catering
Solihull MBC,Resources,Children & Education Services,Brake Bros Foodservice Ltd,02/04/2020,,221.85,Catering Provisions,110000 - Catering
Solihull MBC,Resources,Children & Education Services,Brake Bros Foodservice Ltd,02/04/2020,,219.66,Catering Provisions,110000 - Catering
Solihull MBC,Resources,Children & Education Services,Brake Bros Foodservice Ltd,02/04/2020,,196.10,Catering Provisions,110000 - Catering
Solihull MBC,Resources,Children & Education Services,Brake Bros Foodservice Ltd,02/04/2020,,46.10,Catering Provisions,110000 - Catering
Solihull MBC,Resources,Children & Education Services,Brake Bros Foodservice Ltd,02/04/2020,,24.31,Catering Provisions,110000 - Catering
Solihull MBC,Resources,Children & Education Services,Brake Bros Foodservice Ltd,02/04/2020,,209.32,Catering Provisions,110000 - Catering
Solihull MBC,Resources,Children & Education Services,Brake Bros Foodservice Ltd,29/04/2020,,233.62,Catering Provisions,110000 - Catering
Solihull MBC,Resources,Children & Education Services,Brake Bros Foodservice Ltd,29/04/2020,,45.30,Catering Provisions,110000 - Catering
Solihull MBC,Resources,Children & Education Services,Brake Bros Foodservice Ltd,29/04/2020,,529.62,Catering Provisions,110000 - Catering
Solihull MBC,Resources,Children & Education Services,Brake Bros Foodservice Ltd,02/04/2020,,67.59,Catering Provisions,110000 - Catering
Solihull MBC,Resources,Children & Education Services,Brake Bros Foodservice Ltd,29/04/2020,,16.66,Catering Provisions,110000 - Catering
Solihull MBC,Resources,Children & Education Services,Brake Bros Foodservice Ltd,02/04/2020,,6.89,Catering Provisions,110000 - Catering
Solihull MBC,Resources,Children & Education Services,Brake Bros Foodservice Ltd,02/04/2020,,49.02,Catering Provisions,110000 - Catering
Solihull MBC,Resources,Children & Education Services,Brake Bros Foodservice Ltd,29/04/2020,,24.59,Catering Provisions,110000 - Catering
Solihull MBC,Resources,Children & Education Services,Brake Bros Foodservice Ltd,02/04/2020,,13.05,Catering Provisions,110000 - Catering
Solihull MBC,Resources,Children & Education Services,Brake Bros Foodservice Ltd,29/04/2020,,32.74,Catering Provisions,110000 - Catering
Solihull MBC,Resources,Children & Education Services,Brake Bros Foodservice Ltd,02/04/2020,,45.30,Catering Provisions,110000 - Catering
Solihull MBC,Resources,Children & Education Services,Brake Bros Foodservice Ltd,02/04/2020,,32.08,Catering Provisions,110000 - Catering
Solihull MBC,Resources,Children & Education Services,Brake Bros Foodservice Ltd,02/04/2020,,27.23,Catering Provisions,110000 - Catering
Solihull MBC,Resources,Children & Education Services,Brake Bros Foodservice Ltd,02/04/2020,,78.72,Catering Provisions,110000 - Catering
Solihull MBC,Resources,Children & Education Services,Brake Bros Foodservice Ltd,02/04/2020,,75.50,Catering Provisions,110000 - Catering
Solihull MBC,Resources,Children & Education Services,Brake Bros Foodservice Ltd,02/04/2020,,183.56,Catering Provisions,110000 - Catering
Solihull MBC,Resources,Children & Education Services,Brake Bros Foodservice Ltd,02/04/2020,,15.97,Catering Provisions,110000 - Catering
Solihull MBC,Resources,Children & Education Services,Brake Bros Foodservice Ltd,29/04/2020,,117.50,Catering Provisions,110000 - Catering
Solihull MBC,Resources,Children & Education Services,Brake Bros Foodservice Ltd,29/04/2020,,62.03,Catering Provisions,110000 - Catering
Solihull MBC,Resources,Children & Education Services,Brake Bros Foodservice Ltd,29/04/2020,,48.09,Catering Provisions,110000 - Catering
Solihull MBC,Resources,Children & Education Services,Brake Bros Foodservice Ltd,02/04/2020,,50.14,Catering Provisions,110000 - Catering
Solihull MBC,Resources,Children & Education Services,Brake Bros Foodservice Ltd,02/04/2020,,13.94,Catering Provisions,110000 - Catering
Solihull MBC,Resources,Children & Education Services,Brake Bros Foodservice Ltd,29/04/2020,,31.48,Catering Provisions,110000 - Catering
Solihull MBC,Resources,Children & Education Services,Brake Bros Foodservice Ltd,02/04/2020,,72.20,Catering Provisions,110000 - Catering
Solihull MBC,Resources,Children & Education Services,Brake Bros Foodservice Ltd,29/04/2020,,50.31,Catering Provisions,110000 - Catering
Solihull MBC,Resources,Children & Education Services,Brake Bros Foodservice Ltd,29/04/2020,,351.41,Catering Provisions,110000 - Catering
Solihull MBC,Resources,Children & Education Services,Brake Bros Foodservice Ltd,02/04/2020,,76.41,Catering Provisions,110000 - Catering
Solihull MBC,Resources,Children & Education Services,Brake Bros Foodservice Ltd,29/04/2020,,474.36,Catering Provisions,110000 - Catering
Solihull MBC,Resources,Children & Education Services,Brake Bros Foodservice Ltd,29/04/2020,,345.33,Catering Provisions,110000 - Catering
Solihull MBC,Resources,Children & Education Services,Brake Bros Foodservice Ltd,29/04/2020,,582.64,Catering Provisions,110000 - Catering
Solihull MBC,Resources,Children & Education Services,Brake Bros Foodservice Ltd,29/04/2020,,169.60,Catering Provisions,110000 - Catering
Solihull MBC,Resources,Children & Education Services,Brake Bros Foodservice Ltd,29/04/2020,,427.01,Catering Provisions,110000 - Catering
Solihull MBC,Resources,Children & Education Services,Brake Bros Foodservice Ltd,02/04/2020,,98.76,Catering Provisions,110000 - Catering
Solihull MBC,Resources,Children & Education Services,Brake Bros Foodservice Ltd,02/04/2020,,55.00,Catering Provisions,110000 - Catering
Solihull MBC,Resources,Children & Education Services,Brake Bros Foodservice Ltd,02/04/2020,,41.23,Catering Provisions,110000 - Catering
Solihull MBC,Resources,Children & Education Services,Brake Bros Foodservice Ltd,02/04/2020,,52.25,Catering Provisions,110000 - Catering
Solihull MBC,Resources,Children & Education Services,Brake Bros Foodservice Ltd,02/04/2020,,127.43,Catering Provisions,110000 - Catering
Solihull MBC,Resources,Children & Education Services,Brake Bros Foodservice Ltd,02/04/2020,,202.28,Catering Provisions,110000 - Catering
Solihull MBC,Resources,Children & Education Services,Brake Bros Foodservice Ltd,02/04/2020,,44.88,Catering Provisions,110000 - Catering
Solihull MBC,Resources,Children & Education Services,Brake Bros Foodservice Ltd,29/04/2020,,45.44,Catering Provisions,110000 - Catering
Solihull MBC,Resources,Children & Education Services,Brake Bros Foodservice Ltd,02/04/2020,,55.64,Catering Provisions,110000 - Catering
Solihull MBC,Resources,Children & Education Services,Brake Bros Foodservice Ltd,02/04/2020,,69.79,Catering Provisions,110000 - Catering
Solihull MBC,Public Health & Commissioning,Central Services to the Public,Brandwood Clinic Ltd,30/04/2020,,25000.00,Grant & Subscription (SCITT),Not Yet Classified
Solihull MBC,Public Health & Commissioning,Central Services to the Public,Brevitt Rieker Ltd,14/04/2020,,25000.00,Grant & Subscription (SCITT),Not Yet Classified
Solihull MBC,Public Health & Commissioning,Central Services to the Public,Brides Of Solihull Ltd,03/04/2020,,25000.00,Grant & Subscription (SCITT),Not Yet Classified
Solihull MBC,Public Health & Commissioning,Central Services to the Public,Bridge Retail Ltd,14/04/2020,,25000.00,Grant & Subscription (SCITT),Not Yet Classified
Solihull MBC,Economy and Infrastructure,Highways & Transport Services,Bridgwater Garden Services,28/04/2020,,250.00,Other Contracted Services,Not Yet Classified
Solihull MBC,Public Health & Commissioning,Central Services to the Public,Briefclick Solutions Limited,30/04/2020,,10000.00,Grant & Subscription (SCITT),Not Yet Classified
Solihull MBC,Children's Services - DSG Central.,Children & Education Services,Bright Swans Day Nursery,06/04/2020,,8955.00,Grant & Subscription (SCITT),Not Yet Classified
Solihull MBC,Public Health & Commissioning,Central Services to the Public,Brighter Business UK Limited,07/04/2020,,10000.00,Grant & Subscription (SCITT),Not Yet Classified
Solihull MBC,Public Health & Commissioning,Central Services to the Public,Britannic Security Systems Ltd,07/04/2020,,10000.00,Grant & Subscription (SCITT),Not Yet Classified
Solihull MBC,Adult Social Care,Adult Social Care,British Gas,07/04/2020,,1712.92,Electricity,370000 - Utilities
Solihull MBC,Adult Social Care,Adult Social Care,British Gas,07/04/2020,,934.52,Electricity,370000 - Utilities
Solihull MBC,Economy and Infrastructure,Highways & Transport Services,British Telecommunications PLC,21/04/2020,,1180.82,Other Contracted Services,271699 - Information Communication Technology - Telecommunications
Solihull MBC,Adult Social Care,Adult Social Care,Broadham Care Ltd,23/04/2020,,549.76,ASC - Residential Care Permanent,Not Yet Classified
Solihull MBC,Adult Social Care,Adult Social Care,Broadham Care Ltd,23/04/2020,,1374.40,ASC - Residential Care Permanent,Not Yet Classified
Solihull MBC,Adult Social Care,Adult Social Care,Broadham Care Ltd,23/04/2020,,5960.85,ASC - Residential Care Permanent,Not Yet Classified
Solihull MBC,Public Health & Commissioning,Central Services to the Public,Broak Oaks H C Ltd,15/04/2020,,10000.00,Grant & Subscription (SCITT),Not Yet Classified
Solihull MBC,Children's Services & Skills,Children & Education Services,Bromford Housing Association,28/04/2020,,1480.72,Other Fees,Not Yet Classified
Solihull MBC,Adult Social Care,Adult Social Care,Bromford Housing Association,21/04/2020,,20853.90,Other Contracted Services,Not Yet Classified
Solihull MBC,Public Health & Commissioning,Central Services to the Public,Brooksure Ltd,23/04/2020,,10000.00,Grant & Subscription (SCITT),Not Yet Classified
Solihull MBC,Public Health & Commissioning,Central Services to the Public,Broughton Capital Ltd,23/04/2020,,10000.00,Grant & Subscription (SCITT),Not Yet Classified
Solihull MBC,Public Health & Commissioning,Central Services to the Public,Brown & Cooper Ltd,07/04/2020,,10000.00,Grant & Subscription (SCITT),Not Yet Classified
Solihull MBC,Economy and Infrastructure,Highways & Transport Services,Broxap Ltd,17/04/2020,,1959.60,Furniture & Equipment,"391400 - Works - Construction, Repair & Maintenance"
Solihull MBC,Economy and Infrastructure,Highways & Transport Services,Brunel University,20/04/2020,,291.67,Other Fees,Not Yet Classified
Solihull MBC,Public Health & Commissioning,Central Services to the Public,BS Sons Limited,15/04/2020,,10000.00,Grant & Subscription (SCITT),Not Yet Classified
Solihull MBC,Public Health & Commissioning,Central Services to the Public,BSME Ltd (Mr Johnson),15/04/2020,,10000.00,Grant & Subscription (SCITT),Not Yet Classified
Solihull MBC,Resources,Central Services to the Public,BT Global Services,01/04/2020,,1115.02,Telephones,271699 - Information Communication Technology - Telecommunications
Solihull MBC,Resources,Central Services to the Public,BT Global Services,28/04/2020,,1115.02,Telephones,271699 - Information Communication Technology - Telecommunications
Solihull MBC,Resources - Non Monitored,Central Services to the Public,BT Global Services,20/04/2020,,62157.24,General Creditors,271699 - Information Communication Technology - Telecommunications
Solihull MBC,Resources - Non Monitored,Central Services to the Public,BT Global Services,20/04/2020,,-31078.62,General Creditors,271699 - Information Communication Technology - Telecommunications
Solihull MBC,Resources - Non Monitored,Central Services to the Public,BT Global Services,02/04/2020,,14067.20,General Creditors,271699 - Information Communication Technology - Telecommunications
Solihull MBC,Public Health & Commissioning,Central Services to the Public,BTH Boiler Services (2010) Ltd,28/04/2020,,10000.00,Grant & Subscription (SCITT),Not Yet Classified
Solihull MBC,Adult Social Care,Adult Social Care,Buddi Ltd,28/04/2020,,594.00,Other Contracted Services,Not Yet Classified
Solihull MBC,Economy and Infrastructure,Highways & Transport Services,Building Software Limited,16/04/2020,,12950.00,Other Contracted Services,Not Yet Classified
Solihull MBC,Public Health & Commissioning,Central Services to the Public,Bull.Barston Ltd,08/04/2020,,25000.00,Grant & Subscription (SCITT),Not Yet Classified
Solihull MBC,Children's Services - DSG Central.,Children & Education Services,Bumble Bees Nursery,09/04/2020,,32775.30,Grant & Subscription (SCITT),Not Yet Classified
Solihull MBC,Children's Services - DSG Central.,Children & Education Services,Bumble Bees Nursery,09/04/2020,,15800.40,Grant & Subscription (SCITT),Not Yet Classified
Solihull MBC,Adult Social Care,Adult Social Care,Bupa Care Services,23/04/2020,,1671.43,ASC - Nursing Care Permanent,Not Yet Classified
Solihull MBC,Adult Social Care,Adult Social Care,Bupa Care Services,23/04/2020,,3600.00,ASC - Nursing Care Permanent,Not Yet Classified
Solihull MBC,Adult Social Care,Adult Social Care,Bupa Care Services,23/04/2020,,3600.00,ASC - Nursing Care Permanent,Not Yet Classified
Solihull MBC,Adult Social Care,Adult Social Care,Bupa Care Services,23/04/2020,,3600.00,ASC - Nursing Care Permanent,Not Yet Classified
Solihull MBC,Adult Social Care,Adult Social Care,Bupa Care Services,23/04/2020,,3600.00,ASC - Nursing Care Permanent,Not Yet Classified
Solihull MBC,Adult Social Care,Adult Social Care,Bupa Care Services,23/04/2020,,3600.00,ASC - Nursing Care Permanent,Not Yet Classified
Solihull MBC,Adult Social Care,Adult Social Care,Bupa Care Services,23/04/2020,,3600.00,ASC - Nursing Care Permanent,Not Yet Classified
Solihull MBC,Adult Social Care,Adult Social Care,Bupa Care Services,23/04/2020,,257.14,ASC - Nursing Care Permanent,Not Yet Classified
Solihull MBC,Adult Social Care,Adult Social Care,Bupa Care Services,23/04/2020,,3342.86,ASC - Nursing Care Permanent,Not Yet Classified
Solihull MBC,Adult Social Care,Adult Social Care,Bupa Care Services,23/04/2020,,394.20,ASC - Residential Care Permanent,Not Yet Classified
Solihull MBC,Adult Social Care,Adult Social Care,Bupa Care Services,23/04/2020,,1724.10,ASC - Residential Care Permanent,Not Yet Classified
Solihull MBC,Adult Social Care,Adult Social Care,Burgess Care Ltd,23/04/2020,,746.00,ASC - Residential Care Permanent,Not Yet Classified
Solihull MBC,Adult Social Care,Adult Social Care,Burgess Care Ltd,23/04/2020,,1865.00,ASC - Residential Care Permanent,Not Yet Classified
Solihull MBC,Adult Social Care,Adult Social Care,Burgess Care Ltd,23/04/2020,,8021.37,ASC - Residential Care Permanent,Not Yet Classified
Solihull MBC,Children's Services - DSG Central.,Children & Education Services,Burton Green Church Of England School,01/04/2020,,2685.66,Other Contracted Services,Not Yet Classified
Solihull MBC,Public Health & Commissioning,Central Services to the Public,Business NRG Limited,07/04/2020,,10000.00,Grant & Subscription (SCITT),Not Yet Classified
Solihull MBC,Children's Services - DSG Central.,Children & Education Services,Busy Bees Childcare Ltd,09/04/2020,,41193.00,Grant & Subscription (SCITT),321100 - Social Community Care Supplies & Services - Children
Solihull MBC,Children's Services - DSG Central.,Children & Education Services,Busy Bees Childcare Ltd,09/04/2020,,48476.40,Grant & Subscription (SCITT),321100 - Social Community Care Supplies & Services - Children
Solihull MBC,Children's Services - DSG Central.,Children & Education Services,Busy Bees Childcare Ltd,09/04/2020,,718.20,Grant & Subscription (SCITT),321100 - Social Community Care Supplies & Services - Children
Solihull MBC,Children's Services & Skills,Children & Education Services,Busy Bees Childcare Ltd,14/04/2020,,365.00,Clients Expenses,321100 - Social Community Care Supplies & Services - Children
Solihull MBC,Children's Services - DSG Central.,Children & Education Services,Busy Little Bees Nursery,09/04/2020,,27936.02,Grant & Subscription (SCITT),321100 - Social Community Care Supplies & Services - Children
Solihull MBC,Children's Services - DSG Central.,Children & Education Services,Busy Little Bees Nursery,09/04/2020,,2872.80,Grant & Subscription (SCITT),321100 - Social Community Care Supplies & Services - Children
Solihull MBC,Public Health & Commissioning,Central Services to the Public,Busy Little Bees Nursery (Shirley) Ltd,07/04/2020,,10000.00,Grant & Subscription (SCITT),Not Yet Classified
Solihull MBC,Public Health & Commissioning,Central Services to the Public,C & C Carpets Ltd,27/04/2020,,10000.00,Grant & Subscription (SCITT),Not Yet Classified
Solihull MBC,Public Health & Commissioning,Central Services to the Public,C Bastock (Contracts) Ltd,29/04/2020,,25000.00,Grant & Subscription (SCITT),Not Yet Classified
Solihull MBC,Public Health & Commissioning,Central Services to the Public,C H Brown & Son Ltd,21/04/2020,,25000.00,Grant & Subscription (SCITT),Not Yet Classified
Solihull MBC,Public Health & Commissioning,Central Services to the Public,C Rogers S Brown(Solihull Chiropody Ltd),15/04/2020,,10000.00,Grant & Subscription (SCITT),Not Yet Classified
Solihull MBC,Public Health & Commissioning,Central Services to the Public,Cafe Azzurro Events Ltd - Brg,09/04/2020,,10000.00,Grant & Subscription (SCITT),Not Yet Classified
Solihull MBC,Public Health & Commissioning,Central Services to the Public,Cafe Isabella Ltd,07/04/2020,,25000.00,Grant & Subscription (SCITT),Not Yet Classified
Solihull MBC,Public Health & Commissioning,Central Services to the Public,Cambabest Ltd,07/04/2020,,25000.00,Grant & Subscription (SCITT),Not Yet Classified
Solihull MBC,Economy and Infrastructure,Highways & Transport Services,Cambridge Direct Tree Seeds Ltd,17/04/2020,,8101.52,Professional Fees,Not Yet Classified
Solihull MBC,Economy and Infrastructure,Cultural & Related Services,Cambridge Direct Tree Seeds Ltd,17/04/2020,,7665.98,Maintenance Of Grounds,Not Yet Classified
